Workbook

Sheet Main
B10: 2023-02-10
B12: Sheet No. | C12: Template Name | D12: Summary
B13: 1 | C13: Future Intra | D13: For Intraday trading in F&O segment
B14: 2 | C14: Cash Intra | D14: For Intraday trading in cash market segment
B15: 3 | C15: Mid-cap Intra | D15: For Intraday trading in Mid-cap stocks
B16: 4 | C16: Bulk Deals | D16: Reveals Bulk Deals carried on NSE & BSE
B17: 5 | C17: Call Tracker
K27: `

Sheet Future Intra
M5: Back to Main Page
A6: FOR INTRA DAY TRADING | L6: =Main!B10 -> 2023-02-10
A9: Sr.no | B9: Sector | C9: Scrip | D9: Expiry Date | E9: CLOSE RATE | F9: Pivot Point | G9: Supports | J9: Resistances
E10: Point | F10: Point | G10: S1 | H10: S2 | I10: S3 | J10: R1 | K10: R2 | L10: R3 | M10: HIGH | N10: LOW | O10: OI | P10: % Change in OI
A11: 1 | B11: Index | C11: NIFTY | D11: 2023-02-23 | E11: 17945.85 | F11: 17913.90 | G11: 17852.85 | H11: 17759.85 | I11: 17698.80 | J11: 18006.90 | K11: 18067.95 | L11: 18160.95 | M11: 17974.95 | N11: 17820.9 | O11: 11359900 | P11: -1.29%
A12: 2 | B12: Index | C12: BANKNIFTY | D12: 2023-02-23 | E12: 41716.80 | F12: 41611.37 | G12: 41470.43 | H12: 41224.07 | I12: 41083.13 | J12: 41857.73 | K12: 41998.67 | L12: 42245.03 | M12: 41752.3 | N12: 41365 | O12: 2807075 | P12: 0.84%
A13: 3 | B13: Index | C13: FINNIFTY | D13: 2023-02-28 | E13: 18601.10 | F13: 18566.73 | G13: 18521.57 | H13: 18442.03 | I13: 18396.87 | J13: 18646.27 | K13: 18691.43 | L13: 18770.97 | M13: 18611.9 | N13: 18487.2 | O13: 12520 | P13: -3.10%
A14: 4 | B14: Index | C14: MIDCPNIFTY | D14: 2023-02-28 | E14: 6878.50 | F14: 2292.83 | G14: 4585.67 | H14: 2292.83 | I14: 4585.67 | J14: 4585.67 | K14: 2292.83 | L14: 4585.67 | M14: 0 | N14: 0 | O14: 0
A15: 5 | B15: Chemical | C15: AARTIIND | D15: 2023-02-23 | E15: 541.80 | F15: 546.15 | G15: 535.25 | H15: 528.70 | I15: 517.80 | J15: 552.70 | K15: 563.60 | L15: 570.15 | M15: 557.05 | N15: 539.6 | O15: 4341800 | P15: 10.35%
A16: 6 | B16: Capital_Goods | C16: ABB | D16: 2023-02-23 | E16: 3140.95 | F16: 3125.93 | G16: 3101.87 | H16: 3062.78 | I16: 3038.72 | J16: 3165.02 | K16: 3189.08 | L16: 3228.17 | M16: 3150 | N16: 3086.85 | O16: 1819250 | P16: 3.73%
A17: 7 | B17: Pharma | C17: ABBOTINDIA | D17: 2023-02-23 | E17: 20951.15 | F17: 21182.77 | G17: 20668.43 | H17: 20385.72 | I17: 19871.38 | J17: 21465.48 | K17: 21979.82 | L17: 22262.53 | M17: 21697.1 | N17: 20900.05 | O17: 44920 | P17: 6.24%
A18: 8 | B18: Others | C18: ABCAPITAL | D18: 2023-02-23 | E18: 147.45 | F18: 147.20 | G18: 146.05 | H18: 144.65 | I18: 143.50 | J18: 148.60 | K18: 149.75 | L18: 151.15 | M18: 148.35 | N18: 145.8 | O18: 33247800 | P18: 1.50%
A19: 9 | B19: Textile | C19: ABFRL | D19: 2023-02-23 | E19: 256.90 | F19: 254.18 | G19: 250.97 | H19: 245.03 | I19: 241.82 | J19: 260.12 | K19: 263.33 | L19: 269.27 | M19: 257.4 | N19: 248.25 | O19: 19747000 | P19: -2.05%
A20: 10 | B20: Cement | C20: ACC | D20: 2023-02-23 | E20: 1923.85 | F20: 1927.62 | G20: 1892.83 | H20: 1861.82 | I20: 1827.03 | J20: 1958.63 | K20: 1993.42 | L20: 2024.43 | M20: 1962.4 | N20: 1896.6 | O20: 3738750 | P20: 4.28%
A21: 11 | B21: Others | C21: ADANIENT | D21: 2023-02-23 | E21: 1928.70 | F21: 1938.78 | G21: 1725.82 | H21: 1522.93 | I21: 1309.97 | J21: 2141.67 | K21: 2354.63 | L21: 2557.52 | M21: 2151.75 | N21: 1735.9 | O21: 11234000 | P21: 4.96%
A22: 12 | B22: Others | C22: ADANIPORTS | D22: 2023-02-23 | E22: 584.55 | F22: 574.77 | G22: 558.43 | H22: 532.32 | I22: 515.98 | J22: 600.88 | K22: 617.22 | L22: 643.33 | M22: 591.1 | N22: 548.65 | O22: 56952500 | P22: 1.13%
A23: 13 | B23: Pharma | C23: ALKEM | D23: 2023-02-23 | E23: 3219.45 | F23: 3212.98 | G23: 3154.57 | H23: 3089.68 | I23: 3031.27 | J23: 3277.87 | K23: 3336.28 | L23: 3401.17 | M23: 3271.4 | N23: 3148.1 | O23: 436800 | P23: 13.51%
A24: 14 | B24: Cement | C24: AMBUJACEM | D24: 2023-02-23 | E24: 358.15 | F24: 362.52 | G24: 350.03 | H24: 341.92 | I24: 329.43 | J24: 370.63 | K24: 383.12 | L24: 391.23 | M24: 375 | N24: 354.4 | O24: 75889800 | P24: -3.18%
A25: 15 | B25: Others | C25: APOLLOHOSP | D25: 2023-02-23 | E25: 4395.65 | F25: 4381.38 | G25: 4344.42 | H25: 4293.18 | I25: 4256.22 | J25: 4432.62 | K25: 4469.58 | L25: 4520.82 | M25: 4418.35 | N25: 4330.15 | O25: 1631750 | P25: -0.97%
A26: 16 | B26: Automobile | C26: APOLLOTYRE | D26: 2023-02-23 | E26: 334.80 | F26: 335.00 | G26: 331.95 | H26: 329.10 | I26: 326.05 | J26: 337.85 | K26: 340.90 | L26: 343.75 | M26: 338.05 | N26: 332.15 | O26: 12859000 | P26: 4.17%
A27: 17 | B27: Automobile | C27: ASHOKLEY | D27: 2023-02-23 | E27: 149.10 | F27: 148.52 | G27: 147.73 | H27: 146.37 | I27: 145.58 | J27: 149.88 | K27: 150.67 | L27: 152.03 | M27: 149.3 | N27: 147.15 | O27: 79310000 | P27: -3.52%
A28: 18 | B28: FMCG | C28: ASIANPAINT | D28: 2023-02-23 | E28: 2819.55 | F28: 2806.57 | G28: 2788.18 | H28: 2756.82 | I28: 2738.43 | J28: 2837.93 | K28: 2856.32 | L28: 2887.68 | M28: 2824.95 | N28: 2775.2 | O28: 7847800 | P28: -1.14%
A29: 19 | B29: Others | C29: ASTRAL | D29: 2023-02-23 | E29: 2039.85 | F29: 2035.00 | G29: 2017.00 | H29: 1994.15 | I29: 1976.15 | J29: 2057.85 | K29: 2075.85 | L29: 2098.70 | M29: 2053 | N29: 2012.15 | O29: 1713525 | P29: -1.69%
A30: 20 | B30: Others | C30: ATUL | D30: 2023-02-23 | E30: 7200.35 | F30: 7214.12 | G30: 7148.23 | H30: 7096.12 | I30: 7030.23 | J30: 7266.23 | K30: 7332.12 | L30: 7384.23 | M30: 7280 | N30: 7162 | O30: 188850 | P30: -5.12%
A31: 21 | B31: Banking | C31: AUBANK | D31: 2023-02-23 | E31: 638.40 | F31: 641.68 | G31: 632.27 | H31: 626.13 | I31: 616.72 | J31: 647.82 | K31: 657.23 | L31: 663.37 | M31: 651.1 | N31: 635.55 | O31: 9971000 | P31: 4.51%
A32: 22 | B32: Pharma | C32: AUROPHARMA | D32: 2023-02-23 | E32: 441.35 | F32: 442.90 | G32: 433.50 | H32: 425.65 | I32: 416.25 | J32: 450.75 | K32: 460.15 | L32: 468.00 | M32: 452.3 | N32: 435.05 | O32: 17835000 | P32: 1.66%
A33: 23 | B33: Banking | C33: AXISBANK | D33: 2023-02-23 | E33: 871.85 | F33: 871.97 | G33: 865.28 | H33: 858.72 | I33: 852.03 | J33: 878.53 | K33: 885.22 | L33: 891.78 | M33: 878.65 | N33: 865.4 | O33: 47882400 | P33: 2.79%
A34: 24 | B34: Automobile | C34: BAJAJ-AUTO | D34: 2023-02-23 | E34: 3858.30 | F34: 3865.60 | G34: 3830.70 | H34: 3803.10 | I34: 3768.20 | J34: 3893.20 | K34: 3928.10 | L34: 3955.70 | M34: 3900.5 | N34: 3838 | O34: 1568500 | P34: -5.28%
A35: 25 | B35: Finance | C35: BAJAJFINSV | D35: 2023-02-23 | E35: 1406.45 | F35: 1393.77 | G35: 1374.78 | H35: 1343.12 | I35: 1324.13 | J35: 1425.43 | K35: 1444.42 | L35: 1476.08 | M35: 1412.75 | N35: 1362.1 | O35: 11491000 | P35: 0.40%
A36: 26 | B36: Finance | C36: BAJFINANCE | D36: 2023-02-23 | E36: 6463.10 | F36: 6434.57 | G36: 6374.13 | H36: 6285.17 | I36: 6224.73 | J36: 6523.53 | K36: 6583.97 | L36: 6672.93 | M36: 6495 | N36: 6345.6 | O36: 5164000 | P36: -2.89%
A37: 27 | B37: Automobile | C37: BALKRISIND | D37: 2023-02-23 | E37: 2290.80 | F37: 2298.90 | G37: 2274.40 | H37: 2258.00 | I37: 2233.50 | J37: 2315.30 | K37: 2339.80 | L37: 2356.20 | M37: 2323.4 | N37: 2282.5 | O37: 1748100 | P37: 0.02%
A38: 28 | B38: Others | C38: BALRAMCHIN | D38: 2023-02-23 | E38: 362.20 | F38: 361.33 | G38: 358.87 | H38: 355.53 | I38: 353.07 | J38: 364.67 | K38: 367.13 | L38: 370.47 | M38: 363.8 | N38: 358 | O38: 8435200 | P38: -1.00%
A39: 29 | B39: Banking | C39: BANDHANBNK | D39: 2023-02-23 | E39: 242.40 | F39: 240.80 | G39: 238.70 | H39: 235.00 | I39: 232.90 | J39: 244.50 | K39: 246.60 | L39: 250.30 | M39: 242.9 | N39: 237.1 | O39: 40244400 | P39: -0.88%
A40: 30 | B40: Banking | C40: BANKBARODA | D40: 2023-02-23 | E40: 170.15 | F40: 168.78 | G40: 165.97 | H40: 161.78 | I40: 158.97 | J40: 172.97 | K40: 175.78 | L40: 179.97 | M40: 171.6 | N40: 164.6 | O40: 109324800 | P40: -4.96%
A41: 31 | B41: FMCG | C41: BATAINDIA | D41: 2023-02-23 | E41: 1520.10 | F41: 1518.77 | G41: 1509.33 | H41: 1498.57 | I41: 1489.13 | J41: 1529.53 | K41: 1538.97 | L41: 1549.73 | M41: 1528.2 | N41: 1508 | O41: 2363625 | P41: -1.07%
A42: 32 | B42: Capital_Goods | C42: BEL | D42: 2023-02-23 | E42: 95.50 | F42: 95.70 | G42: 95.00 | H42: 94.50 | I42: 93.80 | J42: 96.20 | K42: 96.90 | L42: 97.40 | M42: 96.4 | N42: 95.2 | O42: 105256200 | P42: -0.80%
A43: 33 | B43: FMCG | C43: BERGEPAINT | D43: 2023-02-23 | E43: 570.15 | F43: 568.22 | G43: 564.88 | H43: 559.62 | I43: 556.28 | J43: 573.48 | K43: 576.82 | L43: 582.08 | M43: 571.55 | N43: 562.95 | O43: 7461300 | P43: -0.57%
A44: 34 | B44: Automobile | C44: BHARATFORG | D44: 2023-02-23 | E44: 873.65 | F44: 872.53 | G44: 866.92 | H44: 860.18 | I44: 854.57 | J44: 879.27 | K44: 884.88 | L44: 891.62 | M44: 878.15 | N44: 865.8 | O44: 7259000 | P44: -1.52%
A45: 35 | B45: Telecom | C45: BHARTIARTL | D45: 2023-02-23 | E45: 769.55 | F45: 770.52 | G45: 763.53 | H45: 757.52 | I45: 750.53 | J45: 776.53 | K45: 783.52 | L45: 789.53 | M45: 777.5 | N45: 764.5 | O45: 48440500 | P45: 4.62%
A46: 36 | B46: Capital_Goods | C46: BHEL | D46: 2023-02-23 | E46: 76.55 | F46: 76.15 | G46: 75.40 | H46: 74.25 | I46: 73.50 | J46: 77.30 | K46: 78.05 | L46: 79.20 | M46: 76.9 | N46: 75 | O46: 87969000 | P46: 0.13%
A47: 37 | B47: Pharma | C47: BIOCON | D47: 2023-02-23 | E47: 243.65 | F47: 243.63 | G47: 241.57 | H47: 239.48 | I47: 237.42 | J47: 245.72 | K47: 247.78 | L47: 249.87 | M47: 245.7 | N47: 241.55 | O47: 28025500 | P47: 3.72%
A48: 38 | B48: Automobile | C48: BOSCHLTD | D48: 2023-02-23 | E48: 17491.95 | F48: 17496.02 | G48: 17393.03 | H48: 17294.12 | I48: 17191.13 | J48: 17594.93 | K48: 17697.92 | L48: 17796.83 | M48: 17599 | N48: 17397.1 | O48: 136250 | P48: -2.01%
A49: 39 | B49: Oil_Gas | C49: BPCL | D49: 2023-02-23 | E49: 335.25 | F49: 335.28 | G49: 332.07 | H49: 328.88 | I49: 325.67 | J49: 338.47 | K49: 341.68 | L49: 344.87 | M49: 338.5 | N49: 332.1 | O49: 15364800 | P49: 0.00%
A50: 40 | B50: FMCG | C50: BRITANNIA | D50: 2023-02-23 | E50: 4646.45 | F50: 4631.12 | G50: 4600.33 | H50: 4554.22 | I50: 4523.43 | J50: 4677.23 | K50: 4708.02 | L50: 4754.13 | M50: 4661.9 | N50: 4585 | O50: 1632800 | P50: -0.18%
A51: 41 | B51: Technology | C51: BSOFT | D51: 2023-02-23 | E51: 289.70 | F51: 288.42 | G51: 286.33 | H51: 282.97 | I51: 280.88 | J51: 291.78 | K51: 293.87 | L51: 297.23 | M51: 290.5 | N51: 285.05 | O51: 9388000 | P51: 3.39%
A52: 42 | B52: Banking | C52: CANBK | D52: 2023-02-23 | E52: 293.95 | F52: 293.17 | G52: 289.28 | H52: 284.62 | I52: 280.73 | J52: 297.83 | K52: 301.72 | L52: 306.38 | M52: 297.05 | N52: 288.5 | O52: 42290100 | P52: -2.64%
A53: 43 | B53: Finance | C53: CANFINHOME | D53: 2023-02-23 | E53: 601.55 | F53: 597.08 | G53: 591.37 | H53: 581.18 | I53: 575.47 | J53: 607.27 | K53: 612.98 | L53: 623.17 | M53: 602.8 | N53: 586.9 | O53: 3445650 | P53: -5.25%
A54: 44 | B54: Others | C54: CHAMBLFERT | D54: 2023-02-23 | E54: 293.15 | F54: 292.08 | G54: 288.67 | H54: 284.18 | I54: 280.77 | J54: 296.57 | K54: 299.98 | L54: 304.47 | M54: 295.5 | N54: 287.6 | O54: 6264000 | P54: -0.36%
A55: 45 | B55: Finance | C55: CHOLAFIN | D55: 2023-02-23 | E55: 797.75 | F55: 797.35 | G55: 791.05 | H55: 784.35 | I55: 778.05 | J55: 804.05 | K55: 810.35 | L55: 817.05 | M55: 803.65 | N55: 790.65 | O55: 11430000 | P55: 1.03%
A56: 46 | B56: Pharma | C56: CIPLA | D56: 2023-02-23 | E56: 1026.25 | F56: 1032.87 | G56: 1018.23 | H56: 1010.22 | I56: 995.58 | J56: 1040.88 | K56: 1055.52 | L56: 1063.53 | M56: 1047.5 | N56: 1024.85 | O56: 9153300 | P56: 4.47%
A57: 47 | B57: Others | C57: COALINDIA | D57: 2023-02-23 | E57: 215.55 | F57: 215.63 | G57: 214.17 | H57: 212.78 | I57: 211.32 | J57: 217.02 | K57: 218.48 | L57: 219.87 | M57: 217.1 | N57: 214.25 | O57: 41861400 | P57: 0.01%
A58: 48 | B58: Technology | C58: COFORGE | D58: 2023-02-23 | E58: 4347.10 | F58: 4326.05 | G58: 4293.10 | H58: 4239.10 | I58: 4206.15 | J58: 4380.05 | K58: 4413.00 | L58: 4467.00 | M58: 4359 | N58: 4272.05 | O58: 1050300 | P58: 1.48%
A59: 49 | B59: FMCG | C59: COLPAL | D59: 2023-02-23 | E59: 1470.25 | F59: 1468.55 | G59: 1463.20 | H59: 1456.15 | I59: 1450.80 | J59: 1475.60 | K59: 1480.95 | L59: 1488.00 | M59: 1473.9 | N59: 1461.5 | O59: 2313500 | P59: -1.03%
A60: 50 | B60: Others | C60: CONCOR | D60: 2023-02-23 | E60: 618.95 | F60: 616.90 | G60: 612.90 | H60: 606.85 | I60: 602.85 | J60: 622.95 | K60: 626.95 | L60: 633.00 | M60: 620.9 | N60: 610.85 | O60: 9538000 | P60: 0.54%
A61: 51 | B61: Others | C61: COROMANDEL | D61: 2023-02-23 | E61: 916.40 | F61: 917.08 | G61: 910.17 | H61: 903.93 | I61: 897.02 | J61: 923.32 | K61: 930.23 | L61: 936.47 | M61: 924 | N61: 910.85 | O61: 2282700 | P61: -1.90%
A62: 52 | B62: Capital_Goods | C62: CROMPTON | D62: 2023-02-23 | E62: 315.30 | F62: 316.83 | G62: 313.17 | H62: 311.03 | I62: 307.37 | J62: 318.97 | K62: 322.63 | L62: 324.77 | M62: 320.5 | N62: 314.7 | O62: 3820500 | P62: 0.04%
A63: 53 | B63: Banking | C63: CUB | D63: 2023-02-23 | E63: 158.15 | F63: 158.67 | G63: 156.58 | H63: 155.02 | I63: 152.93 | J63: 160.23 | K63: 162.32 | L63: 163.88 | M63: 160.75 | N63: 157.1 | O63: 11300000 | P63: 5.90%
A64: 54 | B64: Capital_Goods | C64: CUMMINSIND | D64: 2023-02-23 | E64: 1573.80 | F64: 1573.13 | G64: 1533.32 | H64: 1492.83 | I64: 1453.02 | J64: 1613.62 | K64: 1653.43 | L64: 1693.92 | M64: 1612.95 | N64: 1532.65 | O64: 2451600 | P64: 48.47%
A65: 55 | B65: FMCG | C65: DABUR | D65: 2023-02-23 | E65: 535.05 | F65: 535.43 | G65: 532.67 | H65: 530.28 | I65: 527.52 | J65: 537.82 | K65: 540.58 | L65: 542.97 | M65: 538.2 | N65: 533.05 | O65: 10835000 | P65: 2.36%
A66: 56 | B66: Cement | C66: DALBHARAT | D66: 2023-02-23 | E66: 1931.45 | F66: 1925.52 | G66: 1913.53 | H66: 1895.62 | I66: 1883.63 | J66: 1943.43 | K66: 1955.42 | L66: 1973.33 | M66: 1937.5 | N66: 1907.6 | O66: 1627000 | P66: 0.53%
A67: 57 | B67: Chemical | C67: DEEPAKNTR | D67: 2023-02-23 | E67: 1814.05 | F67: 1818.82 | G67: 1806.28 | H67: 1798.52 | I67: 1785.98 | J67: 1826.58 | K67: 1839.12 | L67: 1846.88 | M67: 1831.35 | N67: 1811.05 | O67: 1600250 | P67: 1.36%
A68: 58 | B68: Others | C68: DELTACORP | D68: 2023-02-23 | E68: 197.65 | F68: 195.77 | G68: 192.83 | H68: 188.02 | I68: 185.08 | J68: 200.58 | K68: 203.52 | L68: 208.33 | M68: 198.7 | N68: 190.95 | O68: 17038000 | P68: 3.82%
A69: 59 | B69: Pharma | C69: DIVISLAB | D69: 2023-02-23 | E69: 2833.30 | F69: 2823.72 | G69: 2785.48 | H69: 2737.67 | I69: 2699.43 | J69: 2871.53 | K69: 2909.77 | L69: 2957.58 | M69: 2861.95 | N69: 2775.9 | O69: 3793500 | P69: 1.27%
A70: 60 | B70: Others | C70: DIXON | D70: 2023-02-23 | E70: 2703.85 | F70: 2697.57 | G70: 2655.13 | H70: 2606.42 | I70: 2563.98 | J70: 2746.28 | K70: 2788.72 | L70: 2837.43 | M70: 2740 | N70: 2648.85 | O70: 1016250 | P70: 4.24%
A71: 61 | B71: Realty | C71: DLF | D71: 2023-02-23 | E71: 357.80 | F71: 358.48 | G71: 353.57 | H71: 349.33 | I71: 344.42 | J71: 362.72 | K71: 367.63 | L71: 371.87 | M71: 363.4 | N71: 354.25 | O71: 45483900 | P71: 0.28%
A72: 62 | B72: Pharma | C72: DRREDDY | D72: 2023-02-23 | E72: 4501.20 | F72: 4499.73 | G72: 4465.32 | H72: 4429.43 | I72: 4395.02 | J72: 4535.62 | K72: 4570.03 | L72: 4605.92 | M72: 4534.15 | N72: 4463.85 | O72: 2239625 | P72: 0.70%
A73: 63 | B73: Automobile | C73: EICHERMOT | D73: 2023-02-23 | E73: 3243.30 | F73: 3228.23 | G73: 3203.12 | H73: 3162.93 | I73: 3137.82 | J73: 3268.42 | K73: 3293.53 | L73: 3333.72 | M73: 3253.35 | N73: 3188.05 | O73: 3270575 | P73: 2.51%
A74: 64 | B74: Automobile | C74: ESCORTS | D74: 2023-02-23 | E74: 1973.25 | F74: 1963.32 | G74: 1929.98 | H74: 1886.72 | I74: 1853.38 | J74: 2006.58 | K74: 2039.92 | L74: 2083.18 | M74: 1996.65 | N74: 1920.05 | O74: 950400 | P74: 4.92%
A75: 65 | B75: Automobile | C75: EXIDEIND | D75: 2023-02-23 | E75: 180.25 | F75: 179.65 | G75: 178.80 | H75: 177.35 | I75: 176.50 | J75: 181.10 | K75: 181.95 | L75: 183.40 | M75: 180.5 | N75: 178.2 | O75: 24192000 | P75: -1.42%
A76: 66 | B76: Banking | C76: FEDERALBNK | D76: 2023-02-23 | E76: 130.55 | F76: 130.58 | G76: 129.47 | H76: 128.38 | I76: 127.27 | J76: 131.67 | K76: 132.78 | L76: 133.87 | M76: 131.7 | N76: 129.5 | O76: 72455000 | P76: 2.67%
A77: 67 | B77: Technology | C77: FSL | D77: 2023-02-23 | E77: 120.55 | F77: 120.65 | G77: 119.55 | H77: 118.55 | I77: 117.45 | J77: 121.65 | K77: 122.75 | L77: 123.75 | M77: 121.75 | N77: 119.65 | O77: 16109600 | P77: 4.13%
A78: 68 | B78: Oil_Gas | C78: GAIL | D78: 2023-02-23 | E78: 96.35 | F78: 96.00 | G78: 95.45 | H78: 94.55 | I78: 94.00 | J78: 96.90 | K78: 97.45 | L78: 98.35 | M78: 96.55 | N78: 95.1 | O78: 49455750 | P78: 1.31%
A79: 69 | B79: Pharma | C79: GLENMARK | D79: 2023-02-23 | E79: 396.35 | F79: 398.10 | G79: 392.30 | H79: 388.25 | I79: 382.45 | J79: 402.15 | K79: 407.95 | L79: 412.00 | M79: 403.9 | N79: 394.05 | O79: 6114650 | P79: 1.86%
A80: 70 | B80: Infrastructure | C80: GMRINFRA | D80: 2023-02-23 | E80: 38.90 | F80: 38.77 | G80: 38.53 | H80: 38.17 | I80: 37.93 | J80: 39.13 | K80: 39.37 | L80: 39.73 | M80: 39 | N80: 38.4 | O80: 135517500 | P80: -1.60%
A81: 71 | B81: Others | C81: GNFC | D81: 2023-02-23 | E81: 534.30 | F81: 536.68 | G81: 528.42 | H81: 522.53 | I81: 514.27 | J81: 542.57 | K81: 550.83 | L81: 556.72 | M81: 544.95 | N81: 530.8 | O81: 7943000 | P81: 1.44%
A82: 72 | B82: FMCG | C82: GODREJCP | D82: 2023-02-23 | E82: 943.30 | F82: 944.42 | G82: 938.83 | H82: 934.37 | I82: 928.78 | J82: 948.88 | K82: 954.47 | L82: 958.93 | M82: 950 | N82: 939.95 | O82: 5417000 | P82: -0.79%
A83: 73 | B83: Realty | C83: GODREJPROP | D83: 2023-02-23 | E83: 1178.65 | F83: 1179.68 | G83: 1166.97 | H83: 1155.28 | I83: 1142.57 | J83: 1191.37 | K83: 1204.08 | L83: 1215.77 | M83: 1192.4 | N83: 1168 | O83: 4268275 | P83: -0.04%
A84: 74 | B84: Pharma | C84: GRANULES | D84: 2023-02-23 | E84: 291.10 | F84: 290.70 | G84: 287.40 | H84: 283.70 | I84: 280.40 | J84: 294.40 | K84: 297.70 | L84: 301.40 | M84: 294 | N84: 287 | O84: 7550000 | P84: 0.75%
A85: 75 | B85: Cement | C85: GRASIM | D85: 2023-02-23 | E85: 1646.20 | F85: 1646.72 | G85: 1628.68 | H85: 1611.17 | I85: 1593.13 | J85: 1664.23 | K85: 1682.27 | L85: 1699.78 | M85: 1664.75 | N85: 1629.2 | O85: 8927150 | P85: -2.62%
A86: 76 | B86: Oil_Gas | C86: GUJGASLTD | D86: 2023-02-23 | E86: 482.90 | F86: 480.68 | G86: 477.22 | H86: 471.53 | I86: 468.07 | J86: 486.37 | K86: 489.83 | L86: 495.52 | M86: 484.15 | N86: 475 | O86: 3741250 | P86: -1.55%
A87: 77 | B87: Others | C87: HAL | D87: 2023-02-23 | E87: 2412.85 | F87: 2419.28 | G87: 2359.57 | H87: 2306.28 | I87: 2246.57 | J87: 2472.57 | K87: 2532.28 | L87: 2585.57 | M87: 2479 | N87: 2366 | O87: 3222600 | P87: 2.43%
A88: 78 | B88: Capital_Goods | C88: HAVELLS | D88: 2023-02-23 | E88: 1238.05 | F88: 1236.97 | G88: 1226.28 | H88: 1214.52 | I88: 1203.83 | J88: 1248.73 | K88: 1259.42 | L88: 1271.18 | M88: 1247.65 | N88: 1225.2 | O88: 4399000 | P88: -0.08%
A89: 79 | B89: Technology | C89: HCLTECH | D89: 2023-02-23 | E89: 1150.70 | F89: 1148.67 | G89: 1142.48 | H89: 1134.27 | I89: 1128.08 | J89: 1156.88 | K89: 1163.07 | L89: 1171.28 | M89: 1154.85 | N89: 1140.45 | O89: 9844800 | P89: 3.68%
A90: 80 | B90: Finance | C90: HDFC | D90: 2023-02-23 | E90: 2685.95 | F90: 2684.90 | G90: 2667.85 | H90: 2649.75 | I90: 2632.70 | J90: 2703.00 | K90: 2720.05 | L90: 2738.15 | M90: 2701.95 | N90: 2666.8 | O90: 20687400 | P90: 2.75%
A91: 81 | B91: Finance | C91: HDFCAMC | D91: 2023-02-23 | E91: 1925.50 | F91: 1922.25 | G91: 1908.70 | H91: 1891.90 | I91: 1878.35 | J91: 1939.05 | K91: 1952.60 | L91: 1969.40 | M91: 1935.8 | N91: 1905.45 | O91: 2007300 | P91: -0.51%
A92: 82 | B92: Banking | C92: HDFCBANK | D92: 2023-02-23 | E92: 1656.80 | F92: 1654.38 | G92: 1645.12 | H92: 1633.43 | I92: 1624.17 | J92: 1666.07 | K92: 1675.33 | L92: 1687.02 | M92: 1663.65 | N92: 1642.7 | O92: 61238100 | P92: -0.33%
A93: 83 | B93: Finance | C93: HDFCLIFE | D93: 2023-02-23 | E93: 519.35 | F93: 515.62 | G93: 508.23 | H93: 497.12 | I93: 489.73 | J93: 526.73 | K93: 534.12 | L93: 545.23 | M93: 523 | N93: 504.5 | O93: 23774300 | P93: -2.90%
A94: 84 | B94: Automobile | C94: HEROMOTOCO | D94: 2023-02-23 | E94: 2570.05 | F94: 2582.23 | G94: 2545.37 | H94: 2520.68 | I94: 2483.82 | J94: 2606.92 | K94: 2643.78 | L94: 2668.47 | M94: 2619.1 | N94: 2557.55 | O94: 3255900 | P94: 13.35%
A95: 85 | B95: Metals | C95: HINDALCO | D95: 2023-02-23 | E95: 445.25 | F95: 441.85 | G95: 435.40 | H95: 425.55 | I95: 419.10 | J95: 451.70 | K95: 458.15 | L95: 468.00 | M95: 448.3 | N95: 432 | O95: 26829600 | P95: -3.07%
A96: 86 | B96: Metals | C96: HINDCOPPER | D96: 2023-02-23 | E96: 107.75 | F96: 108.05 | G96: 106.50 | H96: 105.25 | I96: 103.70 | J96: 109.30 | K96: 110.85 | L96: 112.10 | M96: 109.6 | N96: 106.8 | O96: 21912000 | P96: 1.29%
A97: 87 | B97: Oil_Gas | C97: HINDPETRO | D97: 2023-02-23 | E97: 233.25 | F97: 232.67 | G97: 230.68 | H97: 228.12 | I97: 226.13 | J97: 235.23 | K97: 237.22 | L97: 239.78 | M97: 234.65 | N97: 230.1 | O97: 20827800 | P97: 0.98%
A98: 88 | B98: FMCG | C98: HINDUNILVR | D98: 2023-02-23 | E98: 2598.35 | F98: 2594.78 | G98: 2580.07 | H98: 2561.78 | I98: 2547.07 | J98: 2613.07 | K98: 2627.78 | L98: 2646.07 | M98: 2609.5 | N98: 2576.5 | O98: 8072400 | P98: 0.66%
A99: 89 | B99: Others | C99: HONAUT | D99: 2023-02-23 | E99: 38158.50 | F99: 37776.80 | G99: 36953.65 | H99: 35748.80 | I99: 34925.65 | J99: 38981.65 | K99: 39804.80 | L99: 41009.65 | M99: 38599.95 | N99: 36571.95 | O99: 25815 | P99: -24.78%
A100: 90 | B100: Finance | C100: IBULHSGFIN | D100: 2023-02-23 | E100: 118.45 | F100: 118.73 | G100: 117.47 | H100: 116.48 | I100: 115.22 | J100: 119.72 | K100: 120.98 | L100: 121.97 | M100: 120 | N100: 117.75 | O100: 51704000 | P100: -1.84%
A101: 91 | B101: Banking | C101: ICICIBANK | D101: 2023-02-23 | E101: 864.75 | F101: 862.85 | G101: 858.15 | H101: 851.55 | I101: 846.85 | J101: 869.45 | K101: 874.15 | L101: 880.75 | M101: 867.55 | N101: 856.25 | O101: 83727000 | P101: -0.86%
A102: 92 | B102: Finance | C102: ICICIGI | D102: 2023-02-23 | E102: 1141.35 | F102: 1136.30 | G102: 1127.10 | H102: 1112.85 | I102: 1103.65 | J102: 1150.55 | K102: 1159.75 | L102: 1174.00 | M102: 1145.5 | N102: 1122.05 | O102: 3515175 | P102: 0.78%
A103: 93 | B103: Finance | C103: ICICIPRULI | D103: 2023-02-23 | E103: 439.25 | F103: 438.15 | G103: 436.10 | H103: 432.95 | I103: 430.90 | J103: 441.30 | K103: 443.35 | L103: 446.50 | M103: 440.2 | N103: 435 | O103: 13879500 | P103: 1.02%
A104: 94 | B104: Telecom | C104: IDEA | D104: 2023-02-23 | E104: 7.90 | F104: 7.85 | G104: 7.75 | H104: 7.60 | I104: 7.50 | J104: 8.00 | K104: 8.10 | L104: 8.25 | M104: 7.95 | N104: 7.7 | O104: 628600000 | P104: -0.17%
A105: 95 | B105: Finance | C105: IDFC | D105: 2023-02-23 | E105: 91.25 | F105: 91.43 | G105: 90.67 | H105: 90.08 | I105: 89.32 | J105: 92.02 | K105: 92.78 | L105: 93.37 | M105: 92.2 | N105: 90.85 | O105: 146650000 | P105: 4.50%
A106: 96 | B106: Banking | C106: IDFCFIRSTB | D106: 2023-02-23 | E106: 58.85 | F106: 58.98 | G106: 58.17 | H106: 57.48 | I106: 56.67 | J106: 59.67 | K106: 60.48 | L106: 61.17 | M106: 59.8 | N106: 58.3 | O106: 162900000 | P106: 2.77%
A107: 97 | B107: Others | C107: IEX | D107: 2023-02-23 | E107: 136.35 | F107: 137.25 | G107: 135.20 | H107: 134.05 | I107: 132.00 | J107: 138.40 | K107: 140.45 | L107: 141.60 | M107: 139.3 | N107: 136.1 | O107: 40545000 | P107: 3.95%
A108: 98 | B108: Oil_Gas | C108: IGL | D108: 2023-02-23 | E108: 434.40 | F108: 433.82 | G108: 429.73 | H108: 425.07 | I108: 420.98 | J108: 438.48 | K108: 442.57 | L108: 447.23 | M108: 437.9 | N108: 429.15 | O108: 8079500 | P108: 1.00%
A109: 99 | B109: Infrastructure | C109: INDHOTEL | D109: 2023-02-23 | E109: 320.30 | F109: 320.55 | G109: 318.45 | H109: 316.60 | I109: 314.50 | J109: 322.40 | K109: 324.50 | L109: 326.35 | M109: 322.65 | N109: 318.7 | O109: 28480000 | P109: -1.15%
A110: 100 | B110: Cement | C110: INDIACEM | D110: 2023-02-23 | E110: 193.15 | F110: 192.07 | G110: 189.88 | H110: 186.62 | I110: 184.43 | J110: 195.33 | K110: 197.52 | L110: 200.78 | M110: 194.25 | N110: 188.8 | O110: 14787100 | P110: -1.58%
A111: 101 | B111: Others | C111: INDIAMART | D111: 2023-02-23 | E111: 4745.70 | F111: 4715.15 | G111: 4671.55 | H111: 4597.40 | I111: 4553.80 | J111: 4789.30 | K111: 4832.90 | L111: 4907.05 | M111: 4758.75 | N111: 4641 | O111: 366000 | P111: 1.04%
A112: 102 | B112: Others | C112: INDIGO | D112: 2023-02-23 | E112: 2028.65 | F112: 2036.40 | G112: 2013.80 | H112: 1998.95 | I112: 1976.35 | J112: 2051.25 | K112: 2073.85 | L112: 2088.70 | M112: 2059 | N112: 2021.55 | O112: 3411000 | P112: -0.25%
A113: 103 | B113: Banking | C113: INDUSINDBK | D113: 2023-02-23 | E113: 1165.15 | F113: 1158.27 | G113: 1146.53 | H113: 1127.92 | I113: 1116.18 | J113: 1176.88 | K113: 1188.62 | L113: 1207.23 | M113: 1170 | N113: 1139.65 | O113: 24993900 | P113: -1.99%
A114: 104 | B114: Telecom | C114: INDUSTOWER | D114: 2023-02-23 | E114: 158.60 | F114: 159.78 | G114: 155.72 | H114: 152.83 | I114: 148.77 | J114: 162.67 | K114: 166.73 | L114: 169.62 | M114: 163.85 | N114: 156.9 | O114: 33353600 | P114: 2.49%
A115: 105 | B115: Technology | C115: INFY | D115: 2023-02-23 | E115: 1617.70 | F115: 1608.73 | G115: 1597.67 | H115: 1577.63 | I115: 1566.57 | J115: 1628.77 | K115: 1639.83 | L115: 1659.87 | M115: 1619.8 | N115: 1588.7 | O115: 31984800 | P115: 0.02%
A116: 106 | B116: Technology | C116: INTELLECT | D116: 2023-02-23 | E116: 466.20 | F116: 465.22 | G116: 460.28 | H116: 454.37 | I116: 449.43 | J116: 471.13 | K116: 476.07 | L116: 481.98 | M116: 470.15 | N116: 459.3 | O116: 4605000 | P116: -0.71%
A117: 107 | B117: Oil_Gas | C117: IOC | D117: 2023-02-23 | E117: 79.95 | F117: 79.97 | G117: 79.13 | H117: 78.32 | I117: 77.48 | J117: 80.78 | K117: 81.62 | L117: 82.43 | M117: 80.8 | N117: 79.15 | O117: 76128000 | P117: 0.70%
A118: 108 | B118: Pharma | C118: IPCALAB | D118: 2023-02-23 | E118: 873.15 | F118: 876.13 | G118: 863.62 | H118: 854.08 | I118: 841.57 | J118: 885.67 | K118: 898.18 | L118: 907.72 | M118: 888.65 | N118: 866.6 | O118: 1788800 | P118: 1.18%
A119: 109 | B119: Others | C119: IRCTC | D119: 2023-02-23 | E119: 648.70 | F119: 646.63 | G119: 639.47 | H119: 630.23 | I119: 623.07 | J119: 655.87 | K119: 663.03 | L119: 672.27 | M119: 653.8 | N119: 637.4 | O119: 14776125 | P119: 4.47%
A120: 110 | B120: FMCG | C120: ITC | D120: 2023-02-23 | E120: 370.00 | F120: 370.62 | G120: 366.53 | H120: 363.07 | I120: 358.98 | J120: 374.08 | K120: 378.17 | L120: 381.63 | M120: 374.7 | N120: 367.15 | O120: 56556800 | P120: -0.03%
A121: 111 | B121: Metals | C121: JINDALSTEL | D121: 2023-02-23 | E121: 599.85 | F121: 597.52 | G121: 593.08 | H121: 586.32 | I121: 581.88 | J121: 604.28 | K121: 608.72 | L121: 615.48 | M121: 601.95 | N121: 590.75 | O121: 20240000 | P121: -1.53%
A122: 112 | B122: Cement | C122: JKCEMENT | D122: 2023-02-23 | E122: 2768.35 | F122: 2755.88 | G122: 2723.77 | H122: 2679.18 | I122: 2647.07 | J122: 2800.47 | K122: 2832.58 | L122: 2877.17 | M122: 2788 | N122: 2711.3 | O122: 607750 | P122: -3.22%
A123: 113 | B123: Metals | C123: JSWSTEEL | D123: 2023-02-23 | E123: 724.55 | F123: 728.07 | G123: 719.13 | H123: 713.72 | I123: 704.78 | J123: 733.48 | K123: 742.42 | L123: 747.83 | M123: 737 | N123: 722.65 | O123: 24935850 | P123: -0.94%
A124: 114 | B124: Others | C124: JUBLFOOD | D124: 2023-02-23 | E124: 459.20 | F124: 454.17 | G124: 447.38 | H124: 435.57 | I124: 428.78 | J124: 465.98 | K124: 472.77 | L124: 484.58 | M124: 460.95 | N124: 442.35 | O124: 13056250 | P124: -3.26%
A125: 115 | B125: Banking | C125: KOTAKBANK | D125: 2023-02-23 | E125: 1774.40 | F125: 1769.08 | G125: 1760.42 | H125: 1746.43 | I125: 1737.77 | J125: 1783.07 | K125: 1791.73 | L125: 1805.72 | M125: 1777.75 | N125: 1755.1 | O125: 42103200 | P125: 0.49%
A126: 116 | B126: Finance | C126: L&TFH | D126: 2023-02-23 | E126: 94.40 | F126: 93.80 | G126: 92.90 | H126: 91.40 | I126: 90.50 | J126: 95.30 | K126: 96.20 | L126: 97.70 | M126: 94.7 | N126: 92.3 | O126: 66403484 | P126: -0.87%
A127: 117 | B127: Others | C127: LALPATHLAB | D127: 2023-02-23 | E127: 1966.00 | F127: 1955.20 | G127: 1938.00 | H127: 1910.00 | I127: 1892.80 | J127: 1983.20 | K127: 2000.40 | L127: 2028.40 | M127: 1972.4 | N127: 1927.2 | O127: 1132500 | P127: -0.88%
A128: 118 | B128: Pharma | C128: LAURUSLABS | D128: 2023-02-23 | E128: 339.65 | F128: 341.22 | G128: 336.03 | H128: 332.42 | I128: 327.23 | J128: 344.83 | K128: 350.02 | L128: 353.63 | M128: 346.4 | N128: 337.6 | O128: 9524900 | P128: 0.69%
A129: 119 | B129: Finance | C129: LICHSGFIN | D129: 2023-02-23 | E129: 381.40 | F129: 383.03 | G129: 377.82 | H129: 374.23 | I129: 369.02 | J129: 386.62 | K129: 391.83 | L129: 395.42 | M129: 388.25 | N129: 379.45 | O129: 11256000 | P129: -2.44%
A130: 120 | B130: Capital_Goods | C130: LT | D130: 2023-02-23 | E130: 2157.00 | F130: 2154.15 | G130: 2147.55 | H130: 2138.10 | I130: 2131.50 | J130: 2163.60 | K130: 2170.20 | L130: 2179.65 | M130: 2160.75 | N130: 2144.7 | O130: 8617200 | P130: -1.13%
A131: 121 | B131: Technology | C131: LTIM | D131: 2023-02-23 | E131: 4717.75 | F131: 4716.25 | G131: 4672.50 | H131: 4627.25 | I131: 4583.50 | J131: 4761.50 | K131: 4805.25 | L131: 4850.50 | M131: 4760 | N131: 4671 | O131: 1488750 | P131: -2.36%
A132: 122 | B132: Technology | C132: LTTS | D132: 2023-02-23 | E132: 3605.45 | F132: 3571.13 | G132: 3530.27 | H132: 3455.08 | I132: 3414.22 | J132: 3646.32 | K132: 3687.18 | L132: 3762.37 | M132: 3612 | N132: 3495.95 | O132: 1048200 | P132: -3.11%
A133: 123 | B133: Pharma | C133: LUPIN | D133: 2023-02-23 | E133: 775.45 | F133: 777.25 | G133: 766.25 | H133: 757.05 | I133: 746.05 | J133: 786.45 | K133: 797.45 | L133: 806.65 | M133: 788.25 | N133: 768.05 | O133: 6693750 | P133: 8.29%
A134: 124 | B134: Automobile | C134: M&M | D134: 2023-02-23 | E134: 1374.00 | F134: 1376.25 | G134: 1363.70 | H134: 1353.40 | I134: 1340.85 | J134: 1386.55 | K134: 1399.10 | L134: 1409.40 | M134: 1388.8 | N134: 1365.95 | O134: 12471900 | P134: -0.34%
A135: 125 | B135: Finance | C135: M&MFIN | D135: 2023-02-23 | E135: 270.20 | F135: 269.73 | G135: 268.07 | H135: 265.93 | I135: 264.27 | J135: 271.87 | K135: 273.53 | L135: 275.67 | M135: 271.4 | N135: 267.6 | O135: 29292000 | P135: 1.36%
A136: 126 | B136: Finance | C136: MANAPPURAM | D136: 2023-02-23 | E136: 114.05 | F136: 113.78 | G136: 112.47 | H136: 110.88 | I136: 109.57 | J136: 115.37 | K136: 116.68 | L136: 118.27 | M136: 115.1 | N136: 112.2 | O136: 44298000 | P136: -1.98%
A137: 127 | B137: FMCG | C137: MARICO | D137: 2023-02-23 | E137: 496.30 | F137: 498.35 | G137: 492.00 | H137: 487.70 | I137: 481.35 | J137: 502.65 | K137: 509.00 | L137: 513.30 | M137: 504.7 | N137: 494.05 | O137: 7687200 | P137: 5.28%
A138: 128 | B138: Automobile | C138: MARUTI | D138: 2023-02-23 | E138: 8836.35 | F138: 8811.22 | G138: 8757.13 | H138: 8677.92 | I138: 8623.83 | J138: 8890.43 | K138: 8944.52 | L138: 9023.73 | M138: 8865.3 | N138: 8732 | O138: 2141600 | P138: 1.05%
A139: 129 | B139: FMCG | C139: MCDOWELL-N | D139: 2023-02-23 | E139: 793.25 | F139: 792.70 | G139: 789.40 | H139: 785.55 | I139: 782.25 | J139: 796.55 | K139: 799.85 | L139: 803.70 | M139: 796 | N139: 788.85 | O139: 14133125 | P139: -0.35%
A140: 130 | B140: Others | C140: MCX | D140: 2023-02-23 | E140: 1412.10 | F140: 1407.88 | G140: 1393.22 | H140: 1374.33 | I140: 1359.67 | J140: 1426.77 | K140: 1441.43 | L140: 1460.32 | M140: 1422.55 | N140: 1389 | O140: 1160400 | P140: -0.68%
A141: 131 | B141: Pharma | C141: METROPOLIS | D141: 2023-02-23 | E141: 1291.05 | F141: 1288.18 | G141: 1273.87 | H141: 1256.68 | I141: 1242.37 | J141: 1305.37 | K141: 1319.68 | L141: 1336.87 | M141: 1302.5 | N141: 1271 | O141: 949200 | P141: -0.29%
A142: 132 | B142: Finance | C142: MFSL | D142: 2023-02-23 | E142: 744.75 | F142: 745.72 | G142: 738.03 | H142: 731.32 | I142: 723.63 | J142: 752.43 | K142: 760.12 | L142: 766.83 | M142: 753.4 | N142: 739 | O142: 3559400 | P142: -3.56%
A143: 133 | B143: Oil_Gas | C143: MGL | D143: 2023-02-23 | E143: 886.95 | F143: 889.82 | G143: 878.48 | H143: 870.02 | I143: 858.68 | J143: 898.28 | K143: 909.62 | L143: 918.08 | M143: 901.15 | N143: 881.35 | O143: 2765600 | P143: 2.07%
A144: 134 | B144: Automobile | C144: MOTHERSON | D144: 2023-02-23 | E144: 79.55 | F144: 80.03 | G144: 77.77 | H144: 75.98 | I144: 73.72 | J144: 81.82 | K144: 84.08 | L144: 85.87 | M144: 82.3 | N144: 78.25 | O144: 70564500 | P144: -9.74%
A145: 135 | B145: Technology | C145: MPHASIS | D145: 2023-02-23 | E145: 2149.65 | F145: 2137.45 | G145: 2122.65 | H145: 2095.65 | I145: 2080.85 | J145: 2164.45 | K145: 2179.25 | L145: 2206.25 | M145: 2152.25 | N145: 2110.45 | O145: 1311475 | P145: -1.41%
A146: 136 | B146: Automobile | C146: MRF | D146: 2023-02-23 | E146: 88349.65 | F146: 89516.62 | G146: 85583.23 | H146: 82816.82 | I146: 78883.43 | J146: 92283.03 | K146: 96216.42 | L146: 98982.83 | M146: 93450 | N146: 86750.2 | O146: 66990 | P146: 22.83%
A147: 137 | B147: Finance | C147: MUTHOOTFIN | D147: 2023-02-23 | E147: 1020.10 | F147: 1016.42 | G147: 1005.93 | H147: 991.77 | I147: 981.28 | J147: 1030.58 | K147: 1041.07 | L147: 1055.23 | M147: 1026.9 | N147: 1002.25 | O147: 6648950 | P147: -0.48%
A148: 138 | B148: Metals | C148: NATIONALUM | D148: 2023-02-23 | E148: 78.45 | F148: 78.38 | G148: 77.57 | H148: 76.68 | I148: 75.87 | J148: 79.27 | K148: 80.08 | L148: 80.97 | M148: 79.2 | N148: 77.5 | O148: 63097500 | P148: -1.48%
A149: 139 | B149: Others | C149: NAUKRI | D149: 2023-02-23 | E149: 3833.60 | F149: 3804.10 | G149: 3759.90 | H149: 3686.20 | I149: 3642.00 | J149: 3877.80 | K149: 3922.00 | L149: 3995.70 | M149: 3848.3 | N149: 3730.4 | O149: 1843000 | P149: -2.15%
A150: 140 | B150: Chemical | C150: NAVINFLUOR | D150: 2023-02-23 | E150: 4215.00 | F150: 4220.30 | G150: 4175.50 | H150: 4136.00 | I150: 4091.20 | J150: 4259.80 | K150: 4304.60 | L150: 4344.10 | M150: 4265.1 | N150: 4180.8 | O150: 569250 | P150: -13.20%
A151: 141 | B151: FMCG | C151: NESTLEIND | D151: 2023-02-23 | E151: 19049.35 | F151: 19078.78 | G151: 19002.67 | H151: 18955.98 | I151: 18879.87 | J151: 19125.47 | K151: 19201.58 | L151: 19248.27 | M151: 19154.9 | N151: 19032.1 | O151: 295240 | P151: 0.48%
A152: 142 | B152: Metals | C152: NMDC | D152: 2023-02-23 | E152: 120.35 | F152: 120.97 | G152: 119.13 | H152: 117.92 | I152: 116.08 | J152: 122.18 | K152: 124.02 | L152: 125.23 | M152: 122.8 | N152: 119.75 | O152: 39726000 | P152: -0.15%
A153: 143 | B153: Power | C153: NTPC | D153: 2023-02-23 | E153: 166.80 | F153: 166.43 | G153: 165.52 | H153: 164.23 | I153: 163.32 | J153: 167.72 | K153: 168.63 | L153: 169.92 | M153: 167.35 | N153: 165.15 | O153: 69403200 | P153: 0.16%
A154: 144 | B154: Realty | C154: OBEROIRLTY | D154: 2023-02-23 | E154: 846.85 | F154: 857.93 | G154: 831.17 | H154: 815.48 | I154: 788.72 | J154: 873.62 | K154: 900.38 | L154: 916.07 | M154: 884.7 | N154: 842.25 | O154: 6181000 | P154: 6.23%
A155: 145 | B155: Technology | C155: OFSS | D155: 2023-02-23 | E155: 3201.35 | F155: 3193.43 | G155: 3171.87 | H155: 3142.38 | I155: 3120.82 | J155: 3222.92 | K155: 3244.48 | L155: 3273.97 | M155: 3215 | N155: 3163.95 | O155: 426400 | P155: -1.02%
A156: 146 | B156: Oil_Gas | C156: ONGC | D156: 2023-02-23 | E156: 146.25 | F156: 145.32 | G156: 144.13 | H156: 142.02 | I156: 140.83 | J156: 147.43 | K156: 148.62 | L156: 150.73 | M156: 146.5 | N156: 143.2 | O156: 37387350 | P156: 2.39%
A157: 147 | B157: Textile | C157: PAGEIND | D157: 2023-02-23 | E157: 38073.60 | F157: 38400.62 | G157: 37482.73 | H157: 36891.87 | I157: 35973.98 | J157: 38991.48 | K157: 39909.37 | L157: 40500.23 | M157: 39318.5 | N157: 37809.75 | O157: 123975 | P157: 2.09%
A158: 148 | B158: Pharma | C158: PEL | D158: 2023-02-23 | E158: 840.70 | F158: 832.32 | G158: 818.63 | H158: 796.57 | I158: 782.88 | J158: 854.38 | K158: 868.07 | L158: 890.13 | M158: 846 | N158: 810.25 | O158: 5306950 | P158: -1.39%
A159: 149 | B159: Technology | C159: PERSISTENT | D159: 2023-02-23 | E159: 4838.75 | F159: 4841.05 | G159: 4787.10 | H159: 4735.45 | I159: 4681.50 | J159: 4892.70 | K159: 4946.65 | L159: 4998.30 | M159: 4895 | N159: 4789.4 | O159: 805350 | P159: -0.37%
A160: 150 | B160: Oil_Gas | C160: PETRONET | D160: 2023-02-23 | E160: 224.15 | F160: 224.50 | G160: 222.25 | H160: 220.35 | I160: 218.10 | J160: 226.40 | K160: 228.65 | L160: 230.55 | M160: 226.75 | N160: 222.6 | O160: 12039000 | P160: -1.45%
A161: 151 | B161: Finance | C161: PFC | D161: 2023-02-23 | E161: 145.50 | F161: 144.12 | G161: 142.53 | H161: 139.57 | I161: 137.98 | J161: 147.08 | K161: 148.67 | L161: 151.63 | M161: 145.7 | N161: 141.15 | O161: 54281000 | P161: -1.11%
A162: 152 | B162: FMCG | C162: PIDILITIND | D162: 2023-02-23 | E162: 2338.80 | F162: 2339.27 | G162: 2327.53 | H162: 2316.27 | I162: 2304.53 | J162: 2350.53 | K162: 2362.27 | L162: 2373.53 | M162: 2351 | N162: 2328 | O162: 2662500 | P162: 1.30%
A163: 153 | B163: Chemical | C163: PIIND | D163: 2023-02-23 | E163: 3194.05 | F163: 3188.02 | G163: 3166.03 | H163: 3138.02 | I163: 3116.03 | J163: 3216.03 | K163: 3238.02 | L163: 3266.03 | M163: 3210 | N163: 3160 | O163: 1972500 | P163: -0.74%
A164: 154 | B164: Banking | C164: PNB | D164: 2023-02-23 | E164: 51.25 | F164: 51.15 | G164: 50.60 | H164: 49.95 | I164: 49.40 | J164: 51.80 | K164: 52.35 | L164: 53.00 | M164: 51.7 | N164: 50.5 | O164: 242144000 | P164: -0.19%
A165: 155 | B165: Others | C165: POLYCAB | D165: 2023-02-23 | E165: 2998.95 | F165: 2989.23 | G165: 2973.52 | H165: 2948.08 | I165: 2932.37 | J165: 3014.67 | K165: 3030.38 | L165: 3055.82 | M165: 3004.95 | N165: 2963.8 | O165: 818700 | P165: 0.22%
A166: 156 | B166: Power | C166: POWERGRID | D166: 2023-02-23 | E166: 213.80 | F166: 213.83 | G166: 213.17 | H166: 212.53 | I166: 211.87 | J166: 214.47 | K166: 215.13 | L166: 215.77 | M166: 214.5 | N166: 213.2 | O166: 31457700 | P166: -0.06%
A167: 157 | B167: Media | C167: PVR | D167: 2023-02-23 | E167: 1689.20 | F167: 1681.00 | G167: 1666.65 | H167: 1644.10 | I167: 1629.75 | J167: 1703.55 | K167: 1717.90 | L167: 1740.45 | M167: 1695.35 | N167: 1658.45 | O167: 2573868 | P167: -1.14%
A168: 158 | B168: Others | C168: RAIN | D168: 2023-02-23 | E168: 170.10 | F168: 170.43 | G168: 168.52 | H168: 166.93 | I168: 165.02 | J168: 172.02 | K168: 173.93 | L168: 175.52 | M168: 172.35 | N168: 168.85 | O168: 10720500 | P168: -0.84%
A169: 159 | B169: Cement | C169: RAMCOCEM | D169: 2023-02-23 | E169: 724.45 | F169: 728.80 | G169: 717.65 | H169: 710.85 | I169: 699.70 | J169: 735.60 | K169: 746.75 | L169: 753.55 | M169: 739.95 | N169: 722 | O169: 3489250 | P169: -0.05%
A170: 160 | B170: Banking | C170: RBLBANK | D170: 2023-02-23 | E170: 168.35 | F170: 167.07 | G170: 165.28 | H170: 162.22 | I170: 160.43 | J170: 170.13 | K170: 171.92 | L170: 174.98 | M170: 168.85 | N170: 164 | O170: 28155000 | P170: 0.66%
A171: 161 | B171: Power | C171: RECLTD | D171: 2023-02-23 | E171: 117.85 | F171: 118.13 | G171: 115.87 | H171: 113.88 | I171: 111.62 | J171: 120.12 | K171: 122.38 | L171: 124.37 | M171: 120.4 | N171: 116.15 | O171: 47656000 | P171: -1.16%
A172: 162 | B172: Oil_Gas | C172: RELIANCE | D172: 2023-02-23 | E172: 2365.45 | F172: 2361.98 | G172: 2345.47 | H172: 2325.48 | I172: 2308.97 | J172: 2381.97 | K172: 2398.48 | L172: 2418.47 | M172: 2378.5 | N172: 2342 | O172: 46902750 | P172: 0.24%
A173: 163 | B173: Metals | C173: SAIL | D173: 2023-02-23 | E173: 85.60 | F173: 85.47 | G173: 84.08 | H173: 82.57 | I173: 81.18 | J173: 86.98 | K173: 88.37 | L173: 89.88 | M173: 86.85 | N173: 83.95 | O173: 113552000 | P173: -0.27%
A174: 164 | B174: Banking | C174: SBICARD | D174: 2023-02-23 | E174: 760.80 | F174: 756.90 | G174: 750.05 | H174: 739.30 | I174: 732.45 | J174: 767.65 | K174: 774.50 | L174: 785.25 | M174: 763.75 | N174: 746.15 | O174: 8033600 | P174: 0.08%
A175: 165 | B175: Finance | C175: SBILIFE | D175: 2023-02-23 | E175: 1182.10 | F175: 1178.33 | G175: 1170.27 | H175: 1158.43 | I175: 1150.37 | J175: 1190.17 | K175: 1198.23 | L175: 1210.07 | M175: 1186.4 | N175: 1166.5 | O175: 6991500 | P175: -1.94%
A176: 166 | B176: Banking | C176: SBIN | D176: 2023-02-23 | E176: 551.70 | F176: 549.25 | G176: 545.90 | H176: 540.10 | I176: 536.75 | J176: 555.05 | K176: 558.40 | L176: 564.20 | M176: 552.6 | N176: 543.45 | O176: 84496500 | P176: -3.27%
A177: 167 | B177: Cement | C177: SHREECEM | D177: 2023-02-23 | E177: 23160.15 | F177: 23402.12 | G177: 22855.98 | H177: 22551.82 | I177: 22005.68 | J177: 23706.28 | K177: 24252.42 | L177: 24556.58 | M177: 23948.25 | N177: 23097.95 | O177: 300850 | P177: 2.49%
A178: 168 | B178: Capital_Goods | C178: SIEMENS | D178: 2023-02-23 | E178: 3117.90 | F178: 3133.85 | G178: 3090.70 | H178: 3063.50 | I178: 3020.35 | J178: 3161.05 | K178: 3204.20 | L178: 3231.40 | M178: 3177 | N178: 3106.65 | O178: 1908500 | P178: -4.92%
A179: 169 | B179: Textile | C179: SRF | D179: 2023-02-23 | E179: 2228.60 | F179: 2224.48 | G179: 2198.17 | H179: 2167.73 | I179: 2141.42 | J179: 2254.92 | K179: 2281.23 | L179: 2311.67 | M179: 2250.8 | N179: 2194.05 | O179: 4542000 | P179: 3.82%
A180: 170 | B180: Finance | C180: SHRIRAMFIN | D180: 2023-02-23 | E180: 1319.70 | F180: 1314.83 | G180: 1307.87 | H180: 1296.03 | I180: 1289.07 | J180: 1326.67 | K180: 1333.63 | L180: 1345.47 | M180: 1321.8 | N180: 1303 | O180: 4738800 | P180: 0.14%
A181: 171 | B181: Pharma | C181: SUNPHARMA | D181: 2023-02-23 | E181: 1011.45 | F181: 1012.55 | G181: 1002.40 | H181: 993.35 | I181: 983.20 | J181: 1021.60 | K181: 1031.75 | L181: 1040.80 | M181: 1022.7 | N181: 1003.5 | O181: 16123800 | P181: 0.59%
A182: 172 | B182: Media | C182: SUNTV | D182: 2023-02-23 | E182: 457.20 | F182: 456.35 | G182: 453.25 | H182: 449.30 | I182: 446.20 | J182: 460.30 | K182: 463.40 | L182: 467.35 | M182: 459.45 | N182: 452.4 | O182: 8772000 | P182: -0.49%
A183: 173 | B183: Pharma | C183: SYNGENE | D183: 2023-02-23 | E183: 573.25 | F183: 569.00 | G183: 558.10 | H183: 542.95 | I183: 532.05 | J183: 584.15 | K183: 595.05 | L183: 610.20 | M183: 579.9 | N183: 553.85 | O183: 3055000 | P183: 0.99%
A184: 174 | B184: Chemical | C184: TATACHEM | D184: 2023-02-23 | E184: 1017.30 | F184: 1024.28 | G184: 1008.57 | H184: 999.83 | I184: 984.12 | J184: 1033.02 | K184: 1048.73 | L184: 1057.47 | M184: 1040 | N184: 1015.55 | O184: 6283500 | P184: 2.66%
A185: 175 | B185: Telecom | C185: TATACOMM | D185: 2023-02-23 | E185: 1239.30 | F185: 1242.15 | G185: 1232.30 | H185: 1225.30 | I185: 1215.45 | J185: 1249.15 | K185: 1259.00 | L185: 1266.00 | M185: 1252 | N185: 1235.15 | O185: 2651500 | P185: -0.90%
A186: 176 | B186: FMCG | C186: TATACONSUM | D186: 2023-02-23 | E186: 725.15 | F186: 725.72 | G186: 722.28 | H186: 719.42 | I186: 715.98 | J186: 728.58 | K186: 732.02 | L186: 734.88 | M186: 729.15 | N186: 722.85 | O186: 11009700 | P186: 2.45%
A187: 177 | B187: Automobile | C187: TATAMOTORS | D187: 2023-02-23 | E187: 438.75 | F187: 438.85 | G187: 434.90 | H187: 431.05 | I187: 427.10 | J187: 442.70 | K187: 446.65 | L187: 450.50 | M187: 442.8 | N187: 435 | O187: 71503650 | P187: -0.83%
A188: 178 | B188: Power | C188: TATAPOWER | D188: 2023-02-23 | E188: 206.25 | F188: 206.02 | G188: 204.03 | H188: 201.82 | I188: 199.83 | J188: 208.23 | K188: 210.22 | L188: 212.43 | M188: 208 | N188: 203.8 | O188: 110571750 | P188: 1.75%
A189: 179 | B189: Metals | C189: TATASTEEL | D189: 2023-02-23 | E189: 111.80 | F189: 111.87 | G189: 110.28 | H189: 108.77 | I189: 107.18 | J189: 113.38 | K189: 114.97 | L189: 116.48 | M189: 113.45 | N189: 110.35 | O189: 189612500 | P189: 2.55%
A190: 180 | B190: Technology | C190: TCS | D190: 2023-02-23 | E190: 3546.15 | F190: 3537.18 | G190: 3522.37 | H190: 3498.58 | I190: 3483.77 | J190: 3560.97 | K190: 3575.78 | L190: 3599.57 | M190: 3552 | N190: 3513.4 | O190: 10243975 | P190: 0.60%
A191: 181 | B191: Technology | C191: TECHM | D191: 2023-02-23 | E191: 1020.60 | F191: 1016.28 | G191: 1010.87 | H191: 1001.13 | I191: 995.72 | J191: 1026.02 | K191: 1031.43 | L191: 1041.17 | M191: 1021.7 | N191: 1006.55 | O191: 15052200 | P191: 1.96%
A192: 182 | B192: FMCG | C192: TITAN | D192: 2023-02-23 | E192: 2472.05 | F192: 2471.87 | G192: 2460.98 | H192: 2449.92 | I192: 2439.03 | J192: 2482.93 | K192: 2493.82 | L192: 2504.88 | M192: 2482.75 | N192: 2460.8 | O192: 7015875 | P192: -0.93%
A193: 183 | B193: Pharma | C193: TORNTPHARM | D193: 2023-02-23 | E193: 1547.75 | F193: 1556.12 | G193: 1536.63 | H193: 1525.52 | I193: 1506.03 | J193: 1567.23 | K193: 1586.72 | L193: 1597.83 | M193: 1575.6 | N193: 1545 | O193: 1738000 | P193: 1.28%
A194: 184 | B194: Power | C194: TORNTPOWER | D194: 2023-02-23 | E194: 451.00 | F194: 451.87 | G194: 448.28 | H194: 445.57 | I194: 441.98 | J194: 454.58 | K194: 458.17 | L194: 460.88 | M194: 455.45 | N194: 449.15 | O194: 3346500 | P194: 4.20%
A195: 185 | B195: Others | C195: TRENT | D195: 2023-02-23 | E195: 1343.70 | F195: 1319.22 | G195: 1291.48 | H195: 1239.27 | I195: 1211.53 | J195: 1371.43 | K195: 1399.17 | L195: 1451.38 | M195: 1346.95 | N195: 1267 | O195: 4654400 | P195: -1.74%
A196: 186 | B196: Automobile | C196: TVSMOTOR | D196: 2023-02-23 | E196: 1052.35 | F196: 1047.80 | G196: 1039.30 | H196: 1026.25 | I196: 1017.75 | J196: 1060.85 | K196: 1069.35 | L196: 1082.40 | M196: 1056.3 | N196: 1034.75 | O196: 7284900 | P196: -1.06%
A197: 187 | B197: FMCG | C197: UBL | D197: 2023-02-23 | E197: 1541.60 | F197: 1552.73 | G197: 1522.22 | H197: 1502.83 | I197: 1472.32 | J197: 1572.12 | K197: 1602.63 | L197: 1622.02 | M197: 1583.25 | N197: 1533.35 | O197: 1499600 | P197: 16.32%
A198: 188 | B198: Cement | C198: ULTRACEMCO | D198: 2023-02-23 | E198: 7211.40 | F198: 7222.75 | G198: 7172.85 | H198: 7134.30 | I198: 7084.40 | J198: 7261.30 | K198: 7311.20 | L198: 7349.75 | M198: 7272.65 | N198: 7184.2 | O198: 1972500 | P198: -0.05%
A199: 189 | B199: Chemical | C199: UPL | D199: 2023-02-23 | E199: 720.40 | F199: 720.70 | G199: 716.70 | H199: 713.00 | I199: 709.00 | J199: 724.40 | K199: 728.40 | L199: 732.10 | M199: 724.7 | N199: 717 | O199: 16075800 | P199: 0.16%
A200: 190 | B200: Metals | C200: VEDL | D200: 2023-02-23 | E200: 311.40 | F200: 312.58 | G200: 308.17 | H200: 304.93 | I200: 300.52 | J200: 315.82 | K200: 320.23 | L200: 323.47 | M200: 317 | N200: 309.35 | O200: 33838000 | P200: 3.44%
A201: 191 | B201: Capital_Goods | C201: VOLTAS | D201: 2023-02-23 | E201: 825.70 | F201: 824.40 | G201: 816.30 | H201: 806.90 | I201: 798.80 | J201: 833.80 | K201: 841.90 | L201: 851.30 | M201: 832.5 | N201: 815 | O201: 6543600 | P201: 2.21%
A202: 192 | B202: Capital_Goods | C202: WHIRLPOOL | D202: 2023-02-23 | E202: 1287.70 | F202: 1281.75 | G202: 1273.55 | H202: 1259.40 | I202: 1251.20 | J202: 1295.90 | K202: 1304.10 | L202: 1318.25 | M202: 1289.95 | N202: 1267.6 | O202: 1036700 | P202: -0.54%
A203: 193 | B203: Technology | C203: WIPRO | D203: 2023-02-23 | E203: 409.20 | F203: 407.93 | G203: 406.32 | H203: 403.43 | I203: 401.82 | J203: 410.82 | K203: 412.43 | L203: 415.32 | M203: 409.55 | N203: 405.05 | O203: 37866000 | P203: 2.23%
A204: 194 | B204: Media | C204: ZEEL | D204: 2023-02-23 | E204: 225.35 | F204: 224.08 | G204: 222.37 | H204: 219.38 | I204: 217.67 | J204: 227.07 | K204: 228.78 | L204: 231.77 | M204: 225.8 | N204: 221.1 | O204: 79260000 | P204: 0.19%
A205: 195 | B205: Pharma | C205: ZYDUSLIFE | D205: 2023-02-23 | E205: 475.05 | F205: 476.63 | G205: 471.77 | H205: 468.48 | I205: 463.62 | J205: 479.92 | K205: 484.78 | L205: 488.07 | M205: 481.5 | N205: 473.35 | O205: 9106200 | P205: -2.99%
A222: Pivot Point: This is trigger point for intra day buy/sell based on the price range of the previous day
... 14 more rows

Sheet Cash Intra
M5: Back to Main Page
A6: FOR INTRA DAY TRADING | K6: =Main!B10 -> 2023-02-10
A8: Sr.no | C8: CLOSE RATE | D8: Pivot Point | E8: Supports | H8: Resistances
E9: S1 | F9: S2 | G9: S3 | H9: R1 | I9: R2 | J9: R3 | K9: HIGH | L9: LOW | M9: Total Trade Quanity in Lakhs
A10: 1 | B10: Nifty 50 | C10: 17893.45 | D10: 17863.38 | E10: 17809.87 | F10: 17726.28 | G10: 17672.77 | H10: 17946.97 | I10: 18000.48 | J10: 18084.07 | K10: 17916.90 | L10: 17779.80
A11: 2 | B11: Nifty Bank | C11: 41554.30 | D11: 41480.42 | E11: 41326.83 | F11: 41099.37 | G11: 40945.78 | H11: 41707.88 | I11: 41861.47 | J11: 42088.93 | K11: 41634.00 | L11: 41252.95
A12: 3 | B12: Nifty CPSE | C12: 2796.95 | D12: 2790.90 | E12: 2782.40 | F12: 2767.85 | G12: 2759.35 | H12: 2805.45 | I12: 2813.95 | J12: 2828.50 | K12: 2799.40 | L12: 2776.35
A13: 4 | B13: Nifty Infra | C13: 5064.15 | D13: 5064.88 | E13: 5043.92 | F13: 5023.68 | G13: 5002.72 | H13: 5085.12 | I13: 5106.08 | J13: 5126.32 | K13: 5085.85 | L13: 5044.65
A14: 5 | B14: Nifty IT | C14: 30990.80 | D14: 30889.73 | E14: 30766.52 | F14: 30542.23 | G14: 30419.02 | H14: 31114.02 | I14: 31237.23 | J14: 31461.52 | K14: 31012.95 | L14: 30665.45
A15: 6 | B15: Nifty PSE | C15: 4349.30 | D15: 4339.92 | E15: 4322.58 | F15: 4295.87 | G15: 4278.53 | H15: 4366.63 | I15: 4383.97 | J15: 4410.68 | K15: 4357.25 | L15: 4313.20
A16: 7 | B16: Nifty Midcap 50 | C16: 8758.55 | D16: 8752.20 | E16: 8725.65 | F16: 8692.75 | G16: 8666.20 | H16: 8785.10 | I16: 8811.65 | J16: 8844.55 | K16: 8778.75 | L16: 8719.30
A17: 8 | B17: ABB | C17: 3128.05 | D17: 3112.28 | E17: 3084.57 | F17: 3041.08 | G17: 3013.37 | H17: 3155.77 | I17: 3183.48 | J17: 3226.97 | K17: 3140 | L17: 3068.8 | M17: 2.6269
A18: 9 | B18: ACC | C18: 1916 | D18: 1925.35 | E18: 1881.70 | F18: 1847.40 | G18: 1803.75 | H18: 1959.65 | I18: 2003.30 | J18: 2037.60 | K18: 1969 | L18: 1891.05 | M18: 14.91436
A19: 10 | B19: AUBANK | C19: 640.85 | D19: 643.20 | E19: 633.65 | F19: 626.45 | G19: 616.90 | H19: 650.40 | I19: 659.95 | J19: 667.15 | K19: 652.75 | L19: 636 | M19: 7.13809
A20: 11 | B20: ABBOTINDIA | C20: 20846.2 | D20: 21080.02 | E20: 20566.18 | F20: 20286.17 | G20: 19772.33 | H20: 21360.03 | I20: 21873.87 | J20: 22153.88 | K20: 21593.85 | L20: 20800 | M20: 0.12723
A21: 12 | B21: ADANIENT | C21: 1925.7 | D21: 1941.70 | E21: 1715.40 | F21: 1505.10 | G21: 1278.80 | H21: 2152.00 | I21: 2378.30 | J21: 2588.60 | K21: 2168 | L21: 1731.4 | M21: 182.79862
A22: 13 | B22: ADANIGREEN | C22: 762.35 | D22: 774.55 | E22: 750.15 | F22: 737.95 | G22: 713.55 | H22: 786.75 | I22: 811.15 | J22: 823.35 | K22: 798.95 | L22: 762.35 | M22: 47.29491
A23: 14 | B23: ADANIPORTS | C23: 582.3 | D23: 572.50 | E23: 556.00 | F23: 529.70 | G23: 513.20 | H23: 598.80 | I23: 615.30 | J23: 641.60 | K23: 589 | L23: 546.2 | M23: 224.94005
A24: 15 | B24: ATGL | C24: 1321.45 | D24: 1321.45 | E24: 1321.45 | F24: 1321.45 | G24: 1321.45 | H24: 1321.45 | I24: 1321.45 | J24: 1321.45 | K24: 1321.45 | L24: 1321.45 | M24: 2.00127
A25: 16 | B25: ADANITRANS | C25: 1249.1 | D25: 1264.73 | E25: 1233.47 | F25: 1217.83 | G25: 1186.57 | H25: 1280.37 | I25: 1311.63 | J25: 1327.27 | K25: 1296 | L25: 1249.1 | M25: 8.31921
A26: 17 | B26: AWL | C26: 439.7 | D26: 428.57 | E26: 417.43 | F26: 395.17 | G26: 384.03 | H26: 450.83 | I26: 461.97 | J26: 484.23 | K26: 439.7 | L26: 406.3 | M26: 127.04925
A27: 18 | B27: ABCAPITAL | C27: 147.1 | D27: 147.17 | E27: 145.33 | F27: 143.57 | G27: 141.73 | H27: 148.93 | I27: 150.77 | J27: 152.53 | K27: 149 | L27: 145.4 | M27: 17.88578
A28: 19 | B28: ABFRL | C28: 256.3 | D28: 253.50 | E28: 249.95 | F28: 243.60 | G28: 240.05 | H28: 259.85 | I28: 263.40 | J28: 269.75 | K28: 257.05 | L28: 247.15 | M28: 30.34157
A29: 20 | B29: ALKEM | C29: 3230.45 | D29: 3216.52 | E29: 3154.88 | F29: 3079.32 | G29: 3017.68 | H29: 3292.08 | I29: 3353.72 | J29: 3429.28 | K29: 3278.15 | L29: 3140.95 | M29: 1.3281
A30: 21 | B30: AMBUJACEM | C30: 357.8 | D30: 363.27 | E30: 348.53 | F30: 339.27 | G30: 324.53 | H30: 372.53 | I30: 387.27 | J30: 396.53 | K30: 378 | L30: 354 | M30: 281.34958
A31: 22 | B31: APOLLOHOSP | C31: 4389.3 | D31: 4372.92 | E31: 4341.38 | F31: 4293.47 | G31: 4261.93 | H31: 4420.83 | I31: 4452.37 | J31: 4500.28 | K31: 4404.45 | L31: 4325 | M31: 2.84239
A32: 23 | B32: ASHOKLEY | C32: 148.85 | D32: 148.33 | E32: 147.52 | F32: 146.18 | G32: 145.37 | H32: 149.67 | I32: 150.48 | J32: 151.82 | K32: 149.15 | L32: 147 | M32: 79.50423
A33: 24 | B33: ASIANPAINT | C33: 2814.6 | D33: 2800.37 | E33: 2780.38 | F33: 2746.17 | G33: 2726.18 | H33: 2834.58 | I33: 2854.57 | J33: 2888.78 | K33: 2820.35 | L33: 2766.15 | M33: 9.46372
A34: 25 | B34: ASTRAL | C34: 2030.25 | D34: 2029.00 | E34: 2011.65 | F34: 1993.05 | G34: 1975.70 | H34: 2047.60 | I34: 2064.95 | J34: 2083.55 | K34: 2046.35 | L34: 2010.4 | M34: 2.89802
A35: 26 | B35: AUROPHARMA | C35: 440.95 | D35: 442.90 | E35: 433.80 | F35: 426.65 | G35: 417.55 | H35: 450.05 | I35: 459.15 | J35: 466.30 | K35: 452 | L35: 435.75 | M35: 21.02287
A36: 27 | B36: DMART | C36: 3482.05 | D36: 3497.12 | E36: 3450.08 | F36: 3418.12 | G36: 3371.08 | H36: 3529.08 | I36: 3576.12 | J36: 3608.08 | K36: 3544.15 | L36: 3465.15 | M36: 3.72567
A37: 28 | B37: AXISBANK | C37: 867.7 | D37: 868.80 | E37: 861.45 | F37: 855.20 | G37: 847.85 | H37: 875.05 | I37: 882.40 | J37: 888.65 | K37: 876.15 | L37: 862.55 | M37: 59.93312
A38: 29 | B38: BAJAJ-AUTO | C38: 3845.75 | D38: 3856.17 | E38: 3821.83 | F38: 3797.92 | G38: 3763.58 | H38: 3880.08 | I38: 3914.42 | J38: 3938.33 | K38: 3890.5 | L38: 3832.25 | M38: 2.49061
A39: 30 | B39: BAJFINANCE | C39: 6455 | D39: 6426.02 | E39: 6364.23 | F39: 6273.47 | G39: 6211.68 | H39: 6516.78 | I39: 6578.57 | J39: 6669.33 | K39: 6487.8 | L39: 6335.25 | M39: 18.38154
A40: 31 | B40: BAJAJFINSV | C40: 1400.25 | D40: 1388.93 | E40: 1367.97 | F40: 1335.68 | G40: 1314.72 | H40: 1421.22 | I40: 1442.18 | J40: 1474.47 | K40: 1409.9 | L40: 1356.65 | M40: 25.936
A41: 32 | B41: BAJAJHLDNG | C41: 6061.3 | D41: 6085.43 | E41: 6000.87 | F41: 5940.43 | G41: 5855.87 | H41: 6145.87 | I41: 6230.43 | J41: 6290.87 | K41: 6170 | L41: 6025 | M41: 0.11981
A42: 33 | B42: BALKRISIND | C42: 2302.45 | D42: 2306.60 | E42: 2288.40 | F42: 2274.35 | G42: 2256.15 | H42: 2320.65 | I42: 2338.85 | J42: 2352.90 | K42: 2324.8 | L42: 2292.55 | M42: 1.09459
A43: 34 | B43: BANDHANBNK | C43: 242.05 | D43: 240.35 | E43: 238.20 | F43: 234.35 | G43: 232.20 | H43: 244.20 | I43: 246.35 | J43: 250.20 | K43: 242.5 | L43: 236.5 | M43: 49.75876
A44: 35 | B44: BANKBARODA | C44: 169.45 | D44: 168.23 | E44: 165.52 | F44: 161.58 | G44: 158.87 | H44: 172.17 | I44: 174.88 | J44: 178.82 | K44: 170.95 | L44: 164.3 | M44: 242.68013
A45: 36 | B45: BANKINDIA | C45: 80.6 | D45: 80.50 | E45: 79.35 | F45: 78.10 | G45: 76.95 | H45: 81.75 | I45: 82.90 | J45: 84.15 | K45: 81.65 | L45: 79.25 | M45: 84.04132
A46: 37 | B46: BATAINDIA | C46: 1514.6 | D46: 1515.00 | E46: 1503.35 | F46: 1492.10 | G46: 1480.45 | H46: 1526.25 | I46: 1537.90 | J46: 1549.15 | K46: 1526.65 | L46: 1503.75 | M46: 1.10727
A47: 38 | B47: BERGEPAINT | C47: 568.55 | D47: 567.20 | E47: 563.15 | F47: 557.75 | G47: 553.70 | H47: 572.60 | I47: 576.65 | J47: 582.05 | K47: 571.25 | L47: 561.8 | M47: 5.21088
A48: 39 | B48: BEL | C48: 95.8 | D48: 96.02 | E48: 95.33 | F48: 94.87 | G48: 94.18 | H48: 96.48 | I48: 97.17 | J48: 97.63 | K48: 96.7 | L48: 95.55 | M48: 65.77385
A49: 40 | B49: BHARATFORG | C49: 869.55 | D49: 869.15 | E49: 863.40 | F49: 857.25 | G49: 851.50 | H49: 875.30 | I49: 881.05 | J49: 887.20 | K49: 874.9 | L49: 863 | M49: 5.60265
A50: 41 | B50: BHEL | C50: 76.35 | D50: 75.92 | E50: 75.23 | F50: 74.12 | G50: 73.43 | H50: 77.03 | I50: 77.72 | J50: 78.83 | K50: 76.6 | L50: 74.8 | M50: 102.29353
A51: 42 | B51: BPCL | C51: 333.7 | D51: 334.25 | E51: 330.80 | F51: 327.90 | G51: 324.45 | H51: 337.15 | I51: 340.60 | J51: 343.50 | K51: 337.7 | L51: 331.35 | M51: 21.37703
A52: 43 | B52: BHARTIARTL | C52: 766.65 | D52: 767.68 | E52: 760.27 | F52: 753.88 | G52: 746.47 | H52: 774.07 | I52: 781.48 | J52: 787.87 | K52: 775.1 | L52: 761.3 | M52: 59.13945
A53: 44 | B53: BIOCON | C53: 243.15 | D53: 243.02 | E53: 241.08 | F53: 239.02 | G53: 237.08 | H53: 245.08 | I53: 247.02 | J53: 249.08 | K53: 244.95 | L53: 240.95 | M53: 17.4629
A54: 45 | B54: BOSCHLTD | C54: 17524.8 | D54: 17489.58 | E54: 17355.22 | F54: 17185.63 | G54: 17051.27 | H54: 17659.17 | I54: 17793.53 | J54: 17963.12 | K54: 17623.95 | L54: 17320 | M54: 0.19549
A55: 46 | B55: BRITANNIA | C55: 4637.35 | D55: 4622.87 | E55: 4589.63 | F55: 4541.92 | G55: 4508.68 | H55: 4670.58 | I55: 4703.82 | J55: 4751.53 | K55: 4656.1 | L55: 4575.15 | M55: 2.84415
A56: 47 | B56: CANBK | C56: 293 | D56: 292.65 | E56: 288.50 | F56: 284.00 | G56: 279.85 | H56: 297.15 | I56: 301.30 | J56: 305.80 | K56: 296.8 | L56: 288.15 | M56: 62.39893
A57: 48 | B57: CHOLAFIN | C57: 796.1 | D57: 796.73 | E57: 790.37 | F57: 784.63 | G57: 778.27 | H57: 802.47 | I57: 808.83 | J57: 814.57 | K57: 803.1 | L57: 791 | M57: 7.42433
A58: 49 | B58: CIPLA | C58: 1021.5 | D58: 1028.70 | E58: 1012.80 | F58: 1004.10 | G58: 988.20 | H58: 1037.40 | I58: 1053.30 | J58: 1062.00 | K58: 1044.6 | L58: 1020 | M58: 13.31902
A59: 50 | B59: CLEAN | C59: 1492.85 | D59: 1497.30 | E59: 1459.60 | F59: 1426.35 | G59: 1388.65 | H59: 1530.55 | I59: 1568.25 | J59: 1601.50 | K59: 1535 | L59: 1464.05 | M59: 1.10683
A60: 51 | B60: COALINDIA | C60: 214.55 | D60: 214.85 | E60: 212.90 | F60: 211.25 | G60: 209.30 | H60: 216.50 | I60: 218.45 | J60: 220.10 | K60: 216.8 | L60: 213.2 | M60: 43.83159
A61: 52 | B61: COFORGE | C61: 4340.5 | D61: 4325.17 | E61: 4290.33 | F61: 4240.17 | G61: 4205.33 | H61: 4375.33 | I61: 4410.17 | J61: 4460.33 | K61: 4360 | L61: 4275 | M61: 3.2901
A62: 53 | B62: COLPAL | C62: 1467.15 | D62: 1464.33 | E62: 1456.67 | F62: 1446.18 | G62: 1438.52 | H62: 1474.82 | I62: 1482.48 | J62: 1492.97 | K62: 1472 | L62: 1453.85 | M62: 2.05978
A63: 54 | B63: CONCOR | C63: 617.45 | D63: 615.68 | E63: 611.77 | F63: 606.08 | G63: 602.17 | H63: 621.37 | I63: 625.28 | J63: 630.97 | K63: 619.6 | L63: 610 | M63: 5.48142
A64: 55 | B64: COROMANDEL | C64: 918.4 | D64: 919.13 | E64: 911.27 | F64: 904.13 | G64: 896.27 | H64: 926.27 | I64: 934.13 | J64: 941.27 | K64: 927 | L64: 912 | M64: 2.19226
A65: 56 | B65: CROMPTON | C65: 314.3 | D65: 315.80 | E65: 311.60 | F65: 308.90 | G65: 304.70 | H65: 318.50 | I65: 322.70 | J65: 325.40 | K65: 320 | L65: 313.1 | M65: 20.21327
A66: 57 | B66: CUMMINSIND | C66: 1578.35 | D66: 1578.77 | E66: 1539.53 | F66: 1500.72 | G66: 1461.48 | H66: 1617.58 | I66: 1656.82 | J66: 1695.63 | K66: 1618 | L66: 1539.95 | M66: 45.34071
A67: 58 | B67: DLF | C67: 356.7 | D67: 357.62 | E67: 352.88 | F67: 349.07 | G67: 344.33 | H67: 361.43 | I67: 366.17 | J67: 369.98 | K67: 362.35 | L67: 353.8 | M67: 22.29848
A68: 59 | B68: DABUR | C68: 533.25 | D68: 533.52 | E68: 530.38 | F68: 527.52 | G68: 524.38 | H68: 536.38 | I68: 539.52 | J68: 542.38 | K68: 536.65 | L68: 530.65 | M68: 10.95213
A69: 60 | B69: DALBHARAT | C69: 1926.25 | D69: 1917.77 | E69: 1903.53 | F69: 1880.82 | G69: 1866.58 | H69: 1940.48 | I69: 1954.72 | J69: 1977.43 | K69: 1932 | L69: 1895.05 | M69: 2.1947
A70: 61 | B70: DEEPAKNTR | C70: 1806.6 | D70: 1812.38 | E70: 1798.22 | F70: 1789.83 | G70: 1775.67 | H70: 1820.77 | I70: 1834.93 | J70: 1843.32 | K70: 1826.55 | L70: 1804 | M70: 2.79792
A71: 62 | B71: DELHIVERY | C71: 318.25 | D71: 320.05 | E71: 314.25 | F71: 310.25 | G71: 304.45 | H71: 324.05 | I71: 329.85 | J71: 333.85 | K71: 325.85 | L71: 316.05 | M71: 14.39019
A72: 63 | B72: DIVISLAB | C72: 2823.15 | D72: 2816.73 | E72: 2777.47 | F72: 2731.78 | G72: 2692.52 | H72: 2862.42 | I72: 2901.68 | J72: 2947.37 | K72: 2856 | L72: 2771.05 | M72: 7.42365
A73: 64 | B73: DIXON | C73: 2690.45 | D73: 2688.62 | E73: 2642.88 | F73: 2595.32 | G73: 2549.58 | H73: 2736.18 | I73: 2781.92 | J73: 2829.48 | K73: 2734.35 | L73: 2641.05 | M73: 3.94355
A74: 65 | B74: LALPATHLAB | C74: 1968.1 | D74: 1956.43 | E74: 1937.87 | F74: 1907.63 | G74: 1889.07 | H74: 1986.67 | I74: 2005.23 | J74: 2035.47 | K74: 1975 | L74: 1926.2 | M74: 1.2316
A75: 66 | B75: DRREDDY | C75: 4487.5 | D75: 4483.55 | E75: 4437.55 | F75: 4387.60 | G75: 4341.60 | H75: 4533.50 | I75: 4579.50 | J75: 4629.45 | K75: 4529.55 | L75: 4433.6 | M75: 4.10962
A76: 67 | B76: EICHERMOT | C76: 3237.15 | D76: 3227.23 | E76: 3204.92 | F76: 3172.68 | G76: 3150.37 | H76: 3259.47 | I76: 3281.78 | J76: 3314.02 | K76: 3249.55 | L76: 3195 | M76: 2.65006
A77: 68 | B77: EMAMILTD | C77: 410.95 | D77: 411.15 | E77: 409.80 | F77: 408.65 | G77: 407.30 | H77: 412.30 | I77: 413.65 | J77: 414.80 | K77: 412.5 | L77: 410 | M77: 1.02015
A78: 69 | B78: ESCORTS | C78: 1970.2 | D78: 1960.42 | E78: 1924.83 | F78: 1879.47 | G78: 1843.88 | H78: 2005.78 | I78: 2041.37 | J78: 2086.73 | K78: 1996 | L78: 1915.05 | M78: 4.19554
A79: 70 | B79: NYKAA | C79: 151.85 | D79: 151.33 | E79: 147.42 | F79: 142.98 | G79: 139.07 | H79: 155.77 | I79: 159.68 | J79: 164.12 | K79: 155.25 | L79: 146.9 | M79: 195.6641
A80: 71 | B80: FEDERALBNK | C80: 129.95 | D80: 130.12 | E80: 128.83 | F80: 127.72 | G80: 126.43 | H80: 131.23 | I80: 132.52 | J80: 133.63 | K80: 131.4 | L80: 129 | M80: 91.28501
A81: 72 | B81: FORTIS | C81: 276.6 | D81: 277.85 | E81: 274.35 | F81: 272.10 | G81: 268.60 | H81: 280.10 | I81: 283.60 | J81: 285.85 | K81: 281.35 | L81: 275.6 | M81: 5.4478
A82: 73 | B82: GAIL | C82: 95.85 | D82: 95.62 | E82: 94.93 | F82: 94.02 | G82: 93.33 | H82: 96.53 | I82: 97.22 | J82: 98.13 | K82: 96.3 | L82: 94.7 | M82: 60.65233
A83: 74 | B83: GLAND | C83: 1301 | D83: 1323.67 | E83: 1267.33 | F83: 1233.67 | G83: 1177.33 | H83: 1357.33 | I83: 1413.67 | J83: 1447.33 | K83: 1380 | L83: 1290 | M83: 10.70952
A84: 75 | B84: GODREJCP | C84: 940.85 | D84: 941.82 | E84: 936.83 | F84: 932.82 | G84: 927.83 | H84: 945.83 | I84: 950.82 | J84: 954.83 | K84: 946.8 | L84: 937.8 | M84: 6.14802
A85: 76 | B85: GODREJPROP | C85: 1173.9 | D85: 1176.48 | E85: 1162.47 | F85: 1151.03 | G85: 1137.02 | H85: 1187.92 | I85: 1201.93 | J85: 1213.37 | K85: 1190.5 | L85: 1165.05 | M85: 2.61113
A86: 77 | B86: GRASIM | C86: 1643.45 | D86: 1644.37 | E86: 1626.73 | F86: 1610.02 | G86: 1592.38 | H86: 1661.08 | I86: 1678.72 | J86: 1695.43 | K86: 1662 | L86: 1627.65 | M86: 10.18831
A87: 78 | B87: GUJGASLTD | C87: 482.8 | D87: 480.17 | E87: 476.38 | F87: 469.97 | G87: 466.18 | H87: 486.58 | I87: 490.37 | J87: 496.78 | K87: 483.95 | L87: 473.75 | M87: 5.98616
A88: 79 | B88: GSPL | C88: 260.05 | D88: 262.67 | E88: 256.48 | F88: 252.92 | G88: 246.73 | H88: 266.23 | I88: 272.42 | J88: 275.98 | K88: 268.85 | L88: 259.1 | M88: 9.01497
A89: 80 | B89: HCLTECH | C89: 1146.35 | D89: 1145.45 | E89: 1138.90 | F89: 1131.45 | G89: 1124.90 | H89: 1152.90 | I89: 1159.45 | J89: 1166.90 | K89: 1152 | L89: 1138 | M89: 15.01083
A90: 81 | B90: HDFCAMC | C90: 1917.8 | D90: 1916.03 | E90: 1899.77 | F90: 1881.73 | G90: 1865.47 | H90: 1934.07 | I90: 1950.33 | J90: 1968.37 | K90: 1932.3 | L90: 1898 | M90: 1.57947
A91: 82 | B91: HDFCBANK | C91: 1650.55 | D91: 1649.25 | E91: 1636.85 | F91: 1623.15 | G91: 1610.75 | H91: 1662.95 | I91: 1675.35 | J91: 1689.05 | K91: 1661.65 | L91: 1635.55 | M91: 58.88668
A92: 83 | B92: HDFCLIFE | C92: 518.65 | D92: 514.52 | E92: 506.33 | F92: 494.02 | G92: 485.83 | H92: 526.83 | I92: 535.02 | J92: 547.33 | K92: 522.7 | L92: 502.2 | M92: 95.16815
A93: 84 | B93: HAVELLS | C93: 1234.75 | D93: 1234.02 | E93: 1224.73 | F93: 1214.72 | G93: 1205.43 | H93: 1244.03 | I93: 1253.32 | J93: 1263.33 | K93: 1243.3 | L93: 1224 | M93: 6.66625
A94: 85 | B94: HEROMOTOCO | C94: 2559.2 | D94: 2574.10 | E94: 2534.20 | F94: 2509.20 | G94: 2469.30 | H94: 2599.10 | I94: 2639.00 | J94: 2664.00 | K94: 2614 | L94: 2549.1 | M94: 12.66011
A95: 86 | B95: HINDALCO | C95: 444.55 | D95: 441.33 | E95: 434.97 | F95: 425.38 | G95: 419.02 | H95: 450.92 | I95: 457.28 | J95: 466.87 | K95: 447.7 | L95: 431.75 | M95: 114.31814
A96: 87 | B96: HAL | C96: 2408.05 | D96: 2413.68 | E96: 2351.37 | F96: 2294.68 | G96: 2232.37 | H96: 2470.37 | I96: 2532.68 | J96: 2589.37 | K96: 2476 | L96: 2357 | M96: 11.42216
A97: 88 | B97: HINDPETRO | C97: 232.05 | D97: 231.70 | E97: 229.70 | F97: 227.35 | G97: 225.35 | H97: 234.05 | I97: 236.05 | J97: 238.40 | K97: 233.7 | L97: 229.35 | M97: 20.84827
A98: 89 | B98: HINDUNILVR | C98: 2586.7 | D98: 2584.20 | E98: 2568.50 | F98: 2550.30 | G98: 2534.60 | H98: 2602.40 | I98: 2618.10 | J98: 2636.30 | K98: 2599.9 | L98: 2566 | M98: 11.02484
A99: 90 | B99: HINDZINC | C99: 327.25 | D99: 328.33 | E99: 324.17 | F99: 321.08 | G99: 316.92 | H99: 331.42 | I99: 335.58 | J99: 338.67 | K99: 332.5 | L99: 325.25 | M99: 5.59495
A100: 91 | B100: HONAUT | C100: 38079.15 | D100: 38000.05 | E100: 37100.20 | F100: 36121.25 | G100: 35221.40 | H100: 38979.00 | I100: 39878.85 | J100: 40857.80 | K100: 38899.9 | L100: 37021.1 | M100: 0.20557
A101: 92 | B101: HDFC | C101: 2673.25 | D101: 2673.57 | E101: 2654.68 | F101: 2636.12 | G101: 2617.23 | H101: 2692.13 | I101: 2711.02 | J101: 2729.58 | K101: 2692.45 | L101: 2655 | M101: 22.85661
A102: 93 | B102: ICICIBANK | C102: 860.8 | D102: 859.10 | E102: 853.30 | F102: 845.80 | G102: 840.00 | H102: 866.60 | I102: 872.40 | J102: 879.90 | K102: 864.9 | L102: 851.6 | M102: 62.99265
A103: 94 | B103: ICICIGI | C103: 1135.25 | D103: 1132.75 | E103: 1125.50 | F103: 1115.75 | G103: 1108.50 | H103: 1142.50 | I103: 1149.75 | J103: 1159.50 | K103: 1140 | L103: 1123 | M103: 2.3484
A104: 95 | B104: ICICIPRULI | C104: 437.25 | D104: 437.22 | E104: 434.33 | F104: 431.42 | G104: 428.53 | H104: 440.13 | I104: 443.02 | J104: 445.93 | K104: 440.1 | L104: 434.3 | M104: 10.49565
A105: 96 | B105: ISEC | C105: 475.3 | D105: 476.55 | E105: 472.25 | F105: 469.20 | G105: 464.90 | H105: 479.60 | I105: 483.90 | J105: 486.95 | K105: 480.85 | L105: 473.5 | M105: 2.02044
A106: 97 | B106: IDFCFIRSTB | C106: 58.75 | D106: 58.88 | E106: 58.07 | F106: 57.38 | G106: 56.57 | H106: 59.57 | I106: 60.38 | J106: 61.07 | K106: 59.7 | L106: 58.2 | M106: 174.45192
A107: 98 | B107: ITC | C107: 374.25 | D107: 375.47 | E107: 370.93 | F107: 367.62 | G107: 363.08 | H107: 378.78 | I107: 383.32 | J107: 386.63 | K107: 380 | L107: 372.15 | M107: 118.61196
A108: 99 | B108: INDIAMART | C108: 4751.55 | D108: 4719.75 | E108: 4673.10 | F108: 4594.65 | G108: 4548.00 | H108: 4798.20 | I108: 4844.85 | J108: 4923.30 | K108: 4766.4 | L108: 4641.3 | M108: 0.56592
A109: 100 | B109: INDIANB | C109: 287 | D109: 286.67 | E109: 284.33 | F109: 281.67 | G109: 279.33 | H109: 289.33 | I109: 291.67 | J109: 294.33 | K109: 289 | L109: 284 | M109: 4.62099
A110: 101 | B110: IEX | C110: 135.65 | D110: 136.58 | E110: 134.47 | F110: 133.28 | G110: 131.17 | H110: 137.77 | I110: 139.88 | J110: 141.07 | K110: 138.7 | L110: 135.4 | M110: 35.33577
A111: 102 | B111: INDHOTEL | C111: 319.65 | D111: 319.78 | E111: 317.47 | F111: 315.28 | G111: 312.97 | H111: 321.97 | I111: 324.28 | J111: 326.47 | K111: 322.1 | L111: 317.6 | M111: 24.54873
A112: 103 | B112: IOC | C112: 79.6 | D112: 79.73 | E112: 78.77 | F112: 77.93 | G112: 76.97 | H112: 80.57 | I112: 81.53 | J112: 82.37 | K112: 80.7 | L112: 78.9 | M112: 86.09974
A113: 104 | B113: IRCTC | C113: 651.45 | D113: 648.38 | E113: 640.07 | F113: 628.68 | G113: 620.37 | H113: 659.77 | I113: 668.08 | J113: 679.47 | K113: 656.7 | L113: 637 | M113: 30.35079
A114: 105 | B114: IGL | C114: 433.15 | D114: 432.23 | E114: 428.02 | F114: 422.88 | G114: 418.67 | H114: 437.37 | I114: 441.58 | J114: 446.72 | K114: 436.45 | L114: 427.1 | M114: 8.33664
A115: 106 | B115: INDUSTOWER | C115: 159.4 | D115: 160.63 | E115: 156.77 | F115: 154.13 | G115: 150.27 | H115: 163.27 | I115: 167.13 | J115: 169.77 | K115: 164.5 | L115: 158 | M115: 69.6609
A116: 107 | B116: INDUSINDBK | C116: 1163.8 | D116: 1156.77 | E116: 1145.33 | F116: 1126.87 | G116: 1115.43 | H116: 1175.23 | I116: 1186.67 | J116: 1205.13 | K116: 1168.2 | L116: 1138.3 | M116: 22.84751
A117: 108 | B117: NAUKRI | C117: 3824.4 | D117: 3794.63 | E117: 3750.67 | F117: 3676.93 | G117: 3632.97 | H117: 3868.37 | I117: 3912.33 | J117: 3986.07 | K117: 3838.6 | L117: 3720.9 | M117: 3.46492
A118: 109 | B118: INFY | C118: 1617 | D118: 1607.60 | E118: 1595.45 | F118: 1573.90 | G118: 1561.75 | H118: 1629.15 | I118: 1641.30 | J118: 1662.85 | K118: 1619.75 | L118: 1586.05 | M118: 69.04911
A119: 110 | B119: INDIGO | C119: 2039.7 | D119: 2046.58 | E119: 2028.17 | F119: 2016.63 | G119: 1998.22 | H119: 2058.12 | I119: 2076.53 | J119: 2088.07 | K119: 2065 | L119: 2035.05 | M119: 4.64624
A120: 111 | B120: IPCALAB | C120: 876.7 | D120: 878.42 | E120: 866.88 | F120: 857.07 | G120: 845.53 | H120: 888.23 | I120: 899.77 | J120: 909.58 | K120: 889.95 | L120: 868.6 | M120: 3.91064
A121: 112 | B121: JSWENERGY | C121: 236.35 | D121: 233.02 | E121: 227.33 | F121: 218.32 | G121: 212.63 | H121: 242.03 | I121: 247.72 | J121: 256.73 | K121: 238.7 | L121: 224 | M121: 13.09389
A122: 113 | B122: JSWSTEEL | C122: 723.75 | D122: 727.87 | E122: 718.33 | F122: 712.92 | G122: 703.38 | H122: 733.28 | I122: 742.82 | J122: 748.23 | K122: 737.4 | L122: 722.45 | M122: 9.567
A123: 114 | B123: JINDALSTEL | C123: 597.05 | D123: 595.18 | E123: 591.02 | F123: 584.98 | G123: 580.82 | H123: 601.22 | I123: 605.38 | J123: 611.42 | K123: 599.35 | L123: 589.15 | M123: 16.36859
A124: 115 | B124: JUBLFOOD | C124: 457.9 | D124: 452.97 | E124: 445.93 | F124: 433.97 | G124: 426.93 | H124: 464.93 | I124: 471.97 | J124: 483.93 | K124: 460 | L124: 441 | M124: 27.24798
A125: 116 | B125: KOTAKBANK | C125: 1770.9 | D125: 1764.68 | E125: 1754.17 | F125: 1737.43 | G125: 1726.92 | H125: 1781.42 | I125: 1791.93 | J125: 1808.67 | K125: 1775.2 | L125: 1747.95 | M125: 21.63825
A126: 117 | B126: L&TFH | C126: 93.95 | D126: 93.42 | E126: 92.53 | F126: 91.12 | G126: 90.23 | H126: 94.83 | I126: 95.72 | J126: 97.13 | K126: 94.3 | L126: 92 | M126: 61.00205
A127: 118 | B127: LTTS | C127: 3622.05 | D127: 3595.02 | E127: 3558.03 | F127: 3494.02 | G127: 3457.03 | H127: 3659.03 | I127: 3696.02 | J127: 3760.03 | K127: 3632 | L127: 3531 | M127: 2.49654
A128: 119 | B128: LICHSGFIN | C128: 380 | D128: 381.65 | E128: 376.40 | F128: 372.80 | G128: 367.55 | H128: 385.25 | I128: 390.50 | J128: 394.10 | K128: 386.9 | L128: 378.05 | M128: 19.9782
A129: 120 | B129: LTIM | C129: 4695.65 | D129: 4699.55 | E129: 4657.60 | F129: 4619.55 | G129: 4577.60 | H129: 4737.60 | I129: 4779.55 | J129: 4817.60 | K129: 4741.5 | L129: 4661.5 | M129: 5.53507
A130: 121 | B130: LT | C130: 2147.4 | D130: 2145.02 | E130: 2138.08 | F130: 2128.77 | G130: 2121.83 | H130: 2154.33 | I130: 2161.27 | J130: 2170.58 | K130: 2151.95 | L130: 2135.7 | M130: 15.63181
A131: 122 | B131: LAURUSLABS | C131: 338.35 | D131: 339.73 | E131: 333.62 | F131: 328.88 | G131: 322.77 | H131: 344.47 | I131: 350.58 | J131: 355.32 | K131: 345.85 | L131: 335 | M131: 9.38425
A132: 123 | B132: LICI | C132: 613.15 | D132: 613.58 | E132: 609.17 | F132: 605.18 | G132: 600.77 | H132: 617.57 | I132: 621.98 | J132: 625.97 | K132: 618 | L132: 609.6 | M132: 14.34333
A133: 124 | B133: LINDEINDIA | C133: 3353.2 | D133: 3356.22 | E133: 3313.43 | F133: 3273.67 | G133: 3230.88 | H133: 3395.98 | I133: 3438.77 | J133: 3478.53 | K133: 3399 | L133: 3316.45 | M133: 0.22314
A134: 125 | B134: LUPIN | C134: 774.35 | D134: 775.55 | E134: 765.35 | F134: 756.35 | G134: 746.15 | H134: 784.55 | I134: 794.75 | J134: 803.75 | K134: 785.75 | L134: 766.55 | M134: 13.34519
A135: 126 | B135: MRF | C135: 88813.05 | D135: 89754.68 | E135: 86409.37 | F135: 84005.68 | G135: 80660.37 | H135: 92158.37 | I135: 95503.68 | J135: 97907.37 | K135: 93100 | L135: 87351 | M135: 0.36042
A136: 127 | B136: M&MFIN | C136: 270.4 | D136: 269.33 | E136: 267.22 | F136: 264.03 | G136: 261.92 | H136: 272.52 | I136: 274.63 | J136: 277.82 | K136: 271.45 | L136: 266.15 | M136: 40.55214
A137: 128 | B137: M&M | C137: 1372.2 | D137: 1373.73 | E137: 1361.47 | F137: 1350.73 | G137: 1338.47 | H137: 1384.47 | I137: 1396.73 | J137: 1407.47 | K137: 1386 | L137: 1363 | M137: 18.66387
A138: 129 | B138: MARICO | C138: 494.2 | D138: 496.00 | E138: 489.70 | F138: 485.20 | G138: 478.90 | H138: 500.50 | I138: 506.80 | J138: 511.30 | K138: 502.3 | L138: 491.5 | M138: 11.21421
A139: 130 | B139: MARUTI | C139: 8801.2 | D139: 8778.07 | E139: 8723.13 | F139: 8645.07 | G139: 8590.13 | H139: 8856.13 | I139: 8911.07 | J139: 8989.13 | K139: 8833 | L139: 8700 | M139: 3.92186
A140: 131 | B140: MFSL | C140: 745.2 | D140: 748.53 | E140: 735.62 | F140: 726.03 | G140: 713.12 | H140: 758.12 | I140: 771.03 | J140: 780.62 | K140: 761.45 | L140: 738.95 | M140: 4.61973
A141: 132 | B141: MAXHEALTH | C141: 440.5 | D141: 439.82 | E141: 437.53 | F141: 434.57 | G141: 432.28 | H141: 442.78 | I141: 445.07 | J141: 448.03 | K141: 442.1 | L141: 436.85 | M141: 5.27432
A142: 133 | B142: MSUMI | C142: 52.45 | D142: 52.83 | E142: 51.77 | F142: 51.08 | G142: 50.02 | H142: 53.52 | I142: 54.58 | J142: 55.27 | K142: 53.9 | L142: 52.15 | M142: 36.13439
A143: 134 | B143: MPHASIS | C143: 2140.15 | D143: 2129.52 | E143: 2114.63 | F143: 2089.12 | G143: 2074.23 | H143: 2155.03 | I143: 2169.92 | J143: 2195.43 | K143: 2144.4 | L143: 2104 | M143: 1.35845
A144: 135 | B144: MUTHOOTFIN | C144: 1017.7 | D144: 1015.10 | E144: 1005.25 | F144: 992.80 | G144: 982.95 | H144: 1027.55 | I144: 1037.40 | J144: 1049.85 | K144: 1024.95 | L144: 1002.65 | M144: 4.53749
A145: 136 | B145: NTPC | C145: 166 | D145: 165.77 | E145: 164.88 | F145: 163.77 | G145: 162.88 | H145: 166.88 | I145: 167.77 | J145: 168.88 | K145: 166.65 | L145: 164.65 | M145: 55.0765
A146: 137 | B146: NATIONALUM | C146: 78.2 | D146: 78.28 | E146: 77.42 | F146: 76.63 | G146: 75.77 | H146: 79.07 | I146: 79.93 | J146: 80.72 | K146: 79.15 | L146: 77.5 | M146: 83.29778
A147: 138 | B147: NAVINFLUOR | C147: 4202.25 | D147: 4219.42 | E147: 4163.93 | F147: 4125.62 | G147: 4070.13 | H147: 4257.73 | I147: 4313.22 | J147: 4351.53 | K147: 4274.9 | L147: 4181.1 | M147: 2.19315
A148: 139 | B148: NESTLEIND | C148: 19000.3 | D148: 19011.83 | E148: 18939.32 | F148: 18878.33 | G148: 18805.82 | H148: 19072.82 | I148: 19145.33 | J148: 19206.32 | K148: 19084.35 | L148: 18950.85 | M148: 0.34734
A149: 140 | B149: NAM-INDIA | C149: 222.75 | D149: 223.58 | E149: 221.57 | F149: 220.38 | G149: 218.37 | H149: 224.77 | I149: 226.78 | J149: 227.97 | K149: 225.6 | L149: 222.4 | M149: 2.91724
A150: 141 | B150: OBEROIRLTY | C150: 845.1 | D150: 857.65 | E150: 827.30 | F150: 809.50 | G150: 779.15 | H150: 875.45 | I150: 905.80 | J150: 923.60 | K150: 888 | L150: 839.85 | M150: 20.16343
A151: 142 | B151: ONGC | C151: 146.2 | D151: 145.27 | E151: 144.13 | F151: 142.07 | G151: 140.93 | H151: 147.33 | I151: 148.47 | J151: 150.53 | K151: 146.4 | L151: 143.2 | M151: 80.78404
A152: 143 | B152: OIL | C152: 229.1 | D152: 230.17 | E152: 225.98 | F152: 222.87 | G152: 218.68 | H152: 233.28 | I152: 237.47 | J152: 240.58 | K152: 234.35 | L152: 227.05 | M152: 11.65964
A153: 144 | B153: PAYTM | C153: 705.95 | D153: 703.72 | E153: 668.73 | F153: 631.52 | G153: 596.53 | H153: 740.93 | I153: 775.92 | J153: 813.13 | K153: 738.7 | L153: 666.5 | M153: 455.07244
A154: 145 | B154: OFSS | C154: 3190.9 | D154: 3187.28 | E154: 3164.97 | F154: 3139.03 | G154: 3116.72 | H154: 3213.22 | I154: 3235.53 | J154: 3261.47 | K154: 3209.6 | L154: 3161.35 | M154: 1.03972
A155: 146 | B155: POLICYBZR | C155: 510.3 | D155: 501.77 | E155: 483.53 | F155: 456.77 | G155: 438.53 | H155: 528.53 | I155: 546.77 | J155: 573.53 | K155: 520 | L155: 475 | M155: 60.69534
A156: 147 | B156: PIIND | C156: 3194.2 | D156: 3185.40 | E156: 3162.85 | F156: 3131.50 | G156: 3108.95 | H156: 3216.75 | I156: 3239.30 | J156: 3270.65 | K156: 3207.95 | L156: 3154.05 | M156: 1.44495
A157: 148 | B157: PAGEIND | C157: 37960.15 | D157: 38378.40 | E157: 37251.75 | F157: 36543.35 | G157: 35416.70 | H157: 39086.80 | I157: 40213.45 | J157: 40921.85 | K157: 39505.05 | L157: 37670 | M157: 0.52798
A158: 149 | B158: PATANJALI | C158: 950.8 | D158: 947.27 | E158: 934.53 | F158: 918.27 | G158: 905.53 | H158: 963.53 | I158: 976.27 | J158: 992.53 | K158: 960 | L158: 931 | M158: 3.88042
A159: 150 | B159: PERSISTENT | C159: 4824.85 | D159: 4832.93 | E159: 4771.92 | F159: 4718.98 | G159: 4657.97 | H159: 4885.87 | I159: 4946.88 | J159: 4999.82 | K159: 4893.95 | L159: 4780 | M159: 1.85521
A160: 151 | B160: PETRONET | C160: 223.65 | D160: 223.85 | E160: 221.50 | F160: 219.35 | G160: 217.00 | H160: 226.00 | I160: 228.35 | J160: 230.50 | K160: 226.2 | L160: 221.7 | M160: 24.18073
A161: 152 | B161: PIDILITIND | C161: 2327.65 | D161: 2327.55 | E161: 2315.10 | F161: 2302.55 | G161: 2290.10 | H161: 2340.10 | I161: 2352.55 | J161: 2365.10 | K161: 2340 | L161: 2315 | M161: 1.77557
A162: 153 | B162: POLYCAB | C162: 2995.7 | D162: 2984.25 | E162: 2966.55 | F162: 2937.40 | G162: 2919.70 | H162: 3013.40 | I162: 3031.10 | J162: 3060.25 | K162: 3001.95 | L162: 2955.1 | M162: 1.72603
A163: 154 | B163: POONAWALLA | C163: 302.3 | D163: 302.82 | E163: 299.98 | F163: 297.67 | G163: 294.83 | H163: 305.13 | I163: 307.97 | J163: 310.28 | K163: 305.65 | L163: 300.5 | M163: 16.60621
A164: 155 | B164: PFC | C164: 145.35 | D164: 144.07 | E164: 142.28 | F164: 139.22 | G164: 137.43 | H164: 147.13 | I164: 148.92 | J164: 151.98 | K164: 145.85 | L164: 141 | M164: 45.75492
A165: 156 | B165: POWERGRID | C165: 212.85 | D165: 212.93 | E165: 211.92 | F165: 210.98 | G165: 209.97 | H165: 213.87 | I165: 214.88 | J165: 215.82 | K165: 213.95 | L165: 212 | M165: 52.58312
A166: 157 | B166: PRESTIGE | C166: 405.35 | D166: 404.50 | E166: 401.30 | F166: 397.25 | G166: 394.05 | H166: 408.55 | I166: 411.75 | J166: 415.80 | K166: 407.7 | L166: 400.45 | M166: 1.53881
A167: 158 | B167: PGHH | C167: 13737.6 | D167: 13725.87 | E167: 13611.83 | F167: 13486.07 | G167: 13372.03 | H167: 13851.63 | I167: 13965.67 | J167: 14091.43 | K167: 13839.9 | L167: 13600.1 | M167: 0.03045
A168: 159 | B168: PNB | C168: 51 | D168: 50.97 | E168: 50.38 | F168: 49.77 | G168: 49.18 | H168: 51.58 | I168: 52.17 | J168: 52.78 | K168: 51.55 | L168: 50.35 | M168: 487.10526
A169: 160 | B169: RECLTD | C169: 117.3 | D169: 117.27 | E169: 115.98 | F169: 114.67 | G169: 113.38 | H169: 118.58 | I169: 119.87 | J169: 121.18 | K169: 118.55 | L169: 115.95 | M169: 65.45269
A170: 161 | B170: RELIANCE | C170: 2356.05 | D170: 2353.63 | E170: 2336.42 | F170: 2316.78 | G170: 2299.57 | H170: 2373.27 | I170: 2390.48 | J170: 2410.12 | K170: 2370.85 | L170: 2334 | M170: 60.79228
A171: 162 | B171: SBICARD | C171: 757.25 | D171: 756.85 | E171: 750.90 | F171: 744.55 | G171: 738.60 | H171: 763.20 | I171: 769.15 | J171: 775.50 | K171: 762.8 | L171: 750.5 | M171: 10.32171
A172: 163 | B172: SBILIFE | C172: 1180.45 | D172: 1176.07 | E172: 1167.13 | F172: 1153.82 | G172: 1144.88 | H172: 1189.38 | I172: 1198.32 | J172: 1211.63 | K172: 1185 | L172: 1162.75 | M172: 21.86484
A173: 164 | B173: SRF | C173: 2218.35 | D173: 2214.10 | E173: 2188.30 | F173: 2158.25 | G173: 2132.45 | H173: 2244.15 | I173: 2269.95 | J173: 2300.00 | K173: 2239.9 | L173: 2184.05 | M173: 6.83252
A174: 165 | B174: MOTHERSON | C174: 79.3 | D174: 79.88 | E174: 77.82 | F174: 76.33 | G174: 74.27 | H174: 81.37 | I174: 83.43 | J174: 84.92 | K174: 81.95 | L174: 78.4 | M174: 252.43262
A175: 166 | B175: SHREECEM | C175: 23199.8 | D175: 23480.10 | E175: 22810.20 | F175: 22420.60 | G175: 21750.70 | H175: 23869.70 | I175: 24539.60 | J175: 24929.20 | K175: 24150 | L175: 23090.5 | M175: 0.72685
A176: 167 | B176: SRTRANSFIN
A177: 168 | B177: SIEMENS | C177: 3103.7 | D177: 3124.57 | E177: 3075.13 | F177: 3046.57 | G177: 2997.13 | H177: 3153.13 | I177: 3202.57 | J177: 3231.13 | K177: 3174 | L177: 3096 | M177: 5.31771
A178: 169 | B178: SONACOMS | C178: 464.9 | D178: 463.80 | E178: 457.25 | F178: 449.60 | G178: 443.05 | H178: 471.45 | I178: 478.00 | J178: 485.65 | K178: 470.35 | L178: 456.15 | M178: 5.83335
A179: 170 | B179: SBIN | C179: 550.8 | D179: 548.53 | E179: 545.07 | F179: 539.33 | G179: 535.87 | H179: 554.27 | I179: 557.73 | J179: 563.47 | K179: 552 | L179: 542.8 | M179: 150.61047
A180: 171 | B180: SAIL | C180: 85.35 | D180: 85.23 | E180: 83.92 | F180: 82.48 | G180: 81.17 | H180: 86.67 | I180: 87.98 | J180: 89.42 | K180: 86.55 | L180: 83.8 | M180: 133.68881
A181: 172 | B181: SUNPHARMA | C181: 1006.8 | D181: 1009.80 | E181: 998.40 | F181: 990.00 | G181: 978.60 | H181: 1018.20 | I181: 1029.60 | J181: 1038.00 | K181: 1021.2 | L181: 1001.4 | M181: 14.74402
A182: 173 | B182: SUNTV | C182: 459 | D182: 458.87 | E182: 454.88 | F182: 450.77 | G182: 446.78 | H182: 462.98 | I182: 466.97 | J182: 471.08 | K182: 462.85 | L182: 454.75 | M182: 2.02279
A183: 174 | B183: SYNGENE | C183: 571.1 | D183: 567.98 | E183: 558.72 | F183: 546.33 | G183: 537.07 | H183: 580.37 | I183: 589.63 | J183: 602.02 | K183: 577.25 | L183: 555.6 | M183: 6.20579
A184: 175 | B184: TVSMOTOR | C184: 1049.8 | D184: 1045.03 | E184: 1035.37 | F184: 1020.93 | G184: 1011.27 | H184: 1059.47 | I184: 1069.13 | J184: 1083.57 | K184: 1054.7 | L184: 1030.6 | M184: 5.39534
A185: 176 | B185: TATACHEM | C185: 1012.55 | D185: 1019.77 | E185: 1003.53 | F185: 994.52 | G185: 978.28 | H185: 1028.78 | I185: 1045.02 | J185: 1054.03 | K185: 1036 | L185: 1010.75 | M185: 6.61402
A186: 177 | B186: TATACOMM | C186: 1234.5 | D186: 1239.02 | E186: 1228.03 | F186: 1221.57 | G186: 1210.58 | H186: 1245.48 | I186: 1256.47 | J186: 1262.93 | K186: 1250 | L186: 1232.55 | M186: 1.21016
A187: 178 | B187: TCS | C187: 3540.85 | D187: 3531.25 | E187: 3514.90 | F187: 3488.95 | G187: 3472.60 | H187: 3557.20 | I187: 3573.55 | J187: 3599.50 | K187: 3547.6 | L187: 3505.3 | M187: 16.55427
A188: 179 | B188: TATACONSUM | C188: 721.95 | D188: 723.03 | E188: 719.72 | F188: 717.48 | G188: 714.17 | H188: 725.27 | I188: 728.58 | J188: 730.82 | K188: 726.35 | L188: 720.8 | M188: 6.88243
A189: 180 | B189: TATAELXSI | C189: 6685.15 | D189: 6686.72 | E189: 6638.43 | F189: 6591.72 | G189: 6543.43 | H189: 6733.43 | I189: 6781.72 | J189: 6828.43 | K189: 6735 | L189: 6640 | M189: 0.77303
A190: 181 | B190: TATAMOTORS | C190: 436.75 | D190: 437.00 | E190: 433.30 | F190: 429.85 | G190: 426.15 | H190: 440.45 | I190: 444.15 | J190: 447.60 | K190: 440.7 | L190: 433.55 | M190: 73.49418
A191: 182 | B191: TATAPOWER | C191: 205.5 | D191: 205.57 | E191: 203.48 | F191: 201.47 | G191: 199.38 | H191: 207.58 | I191: 209.67 | J191: 211.68 | K191: 207.65 | L191: 203.55 | M191: 62.94658
A192: 183 | B192: TATASTEEL | C192: 111.25 | D192: 111.38 | E192: 109.82 | F192: 108.38 | G192: 106.82 | H192: 112.82 | I192: 114.38 | J192: 115.82 | K192: 112.95 | L192: 109.95 | M192: 647.10455
A193: 184 | B193: TTML | C193: 69.25 | D193: 70.45 | E193: 67.50 | F193: 65.75 | G193: 62.80 | H193: 72.20 | I193: 75.15 | J193: 76.90 | K193: 73.4 | L193: 68.7 | M193: 39.13139
A194: 185 | B194: TECHM | C194: 1016 | D194: 1012.10 | E194: 1006.50 | F194: 997.00 | G194: 991.40 | H194: 1021.60 | I194: 1027.20 | J194: 1036.70 | K194: 1017.7 | L194: 1002.6 | M194: 17.82899
A195: 186 | B195: RAMCOCEM | C195: 724.05 | D195: 727.92 | E195: 717.13 | F195: 710.22 | G195: 699.43 | H195: 734.83 | I195: 745.62 | J195: 752.53 | K195: 738.7 | L195: 721 | M195: 3.73232
A196: 187 | B196: TITAN | C196: 2462.55 | D196: 2463.27 | E196: 2450.88 | F196: 2439.22 | G196: 2426.83 | H196: 2474.93 | I196: 2487.32 | J196: 2498.98 | K196: 2475.65 | L196: 2451.6 | M196: 4.64715
A197: 188 | B197: TORNTPHARM | C197: 1540.2 | D197: 1549.75 | E197: 1527.45 | F197: 1514.70 | G197: 1492.40 | H197: 1562.50 | I197: 1584.80 | J197: 1597.55 | K197: 1572.05 | L197: 1537 | M197: 1.19413
A198: 189 | B198: TORNTPOWER | C198: 449.45 | D198: 450.72 | E198: 447.38 | F198: 445.32 | G198: 441.98 | H198: 452.78 | I198: 456.12 | J198: 458.18 | K198: 454.05 | L198: 448.65 | M198: 4.75733
A199: 190 | B199: TRENT | C199: 1341.9 | D199: 1317.57 | E199: 1288.38 | F199: 1234.87 | G199: 1205.68 | H199: 1371.08 | I199: 1400.27 | J199: 1453.78 | K199: 1346.75 | L199: 1264.05 | M199: 41.03779
A200: 191 | B200: TRIDENT | C200: 32.05 | D200: 32.02 | E200: 31.83 | F200: 31.62 | G200: 31.43 | H200: 32.23 | I200: 32.42 | J200: 32.63 | K200: 32.2 | L200: 31.8 | M200: 23.76623
A201: 192 | B201: TIINDIA | C201: 2517.95 | D201: 2529.12 | E201: 2499.83 | F201: 2481.72 | G201: 2452.43 | H201: 2547.23 | I201: 2576.52 | J201: 2594.63 | K201: 2558.4 | L201: 2511 | M201: 0.7608
A202: 193 | B202: UPL | C202: 717.1 | D202: 717.97 | E202: 713.18 | F202: 709.27 | G202: 704.48 | H202: 721.88 | I202: 726.67 | J202: 730.58 | K202: 722.75 | L202: 714.05 | M202: 10.9759
A203: 194 | B203: ULTRACEMCO | C203: 7179.75 | D203: 7196.58 | E203: 7143.17 | F203: 7106.58 | G203: 7053.17 | H203: 7233.17 | I203: 7286.58 | J203: 7323.17 | K203: 7250 | L203: 7160 | M203: 3.34529
A204: 195 | B204: UNIONBANK | C204: 72.55 | D204: 72.53 | E204: 71.42 | F204: 70.28 | G204: 69.17 | H204: 73.67 | I204: 74.78 | J204: 75.92 | K204: 73.65 | L204: 71.4 | M204: 83.05455
A205: 196 | B205: UBL | C205: 1549.75 | D205: 1559.22 | E205: 1530.43 | F205: 1511.12 | G205: 1482.33 | H205: 1578.53 | I205: 1607.32 | J205: 1626.63 | K205: 1588 | L205: 1539.9 | M205: 1.89109
... 29 more rows

Sheet MidCap Intra
L5: Back To Main Page
A6: FOR INTRA DAY TRADING | K6: =Main!B10 -> 2023-02-10
A9: Sr.no | B9: Scrip | C9: CLOSE RATE | D9: Pivot Point | E9: Supports | H9: Resistances
E10: S1 | F10: S2 | G10: S3 | H10: R1 | I10: R2 | J10: R3 | K10: HIGH | L10: LOW | M10: Total Trade Quanity in Lakhs
A11: 1 | B11: 3MINDIA | C11: 23528.35 | D11: 23591.10 | E11: 23187.25 | F11: 22846.15 | G11: 22442.30 | H11: 23932.20 | I11: 24336.05 | J11: 24677.15 | K11: 23994.95 | L11: 23250 | M11: 0.1896
A12: 2 | B12: ABB | C12: 3128.05 | D12: 3112.28 | E12: 3084.57 | F12: 3041.08 | G12: 3013.37 | H12: 3155.77 | I12: 3183.48 | J12: 3226.97 | K12: 3140 | L12: 3068.8 | M12: 2.6269
A13: 3 | B13: ACC | C13: 1916 | D13: 1925.35 | E13: 1881.70 | F13: 1847.40 | G13: 1803.75 | H13: 1959.65 | I13: 2003.30 | J13: 2037.60 | K13: 1969 | L13: 1891.05 | M13: 14.91436
A14: 4 | B14: AIAENG | C14: 2770.15 | D14: 2775.05 | E14: 2750.10 | F14: 2730.05 | G14: 2705.10 | H14: 2795.10 | I14: 2820.05 | J14: 2840.10 | K14: 2800 | L14: 2755 | M14: 0.2702
A15: 5 | B15: APLAPOLLO | C15: 1200.4 | D15: 1199.32 | E15: 1181.13 | F15: 1161.87 | G15: 1143.68 | H15: 1218.58 | I15: 1236.77 | J15: 1256.03 | K15: 1217.5 | L15: 1180.05 | M15: 5.55802
A16: 6 | B16: AUBANK | C16: 640.85 | D16: 643.20 | E16: 633.65 | F16: 626.45 | G16: 616.90 | H16: 650.40 | I16: 659.95 | J16: 667.15 | K16: 652.75 | L16: 636 | M16: 7.13809
A17: 7 | B17: AARTIDRUGS | C17: 380.85 | D17: 386.43 | E17: 374.42 | F17: 367.98 | G17: 355.97 | H17: 392.87 | I17: 404.88 | J17: 411.32 | K17: 398.45 | L17: 380 | M17: 1.99544
A18: 8 | B18: AAVAS | C18: 1995.45 | D18: 1996.78 | E18: 1973.72 | F18: 1951.98 | G18: 1928.92 | H18: 2018.52 | I18: 2041.58 | J18: 2063.32 | K18: 2019.85 | L18: 1975.05 | M18: 0.49487
A19: 9 | B19: ABBOTINDIA | C19: 20846.2 | D19: 21080.02 | E19: 20566.18 | F19: 20286.17 | G19: 19772.33 | H19: 21360.03 | I19: 21873.87 | J19: 22153.88 | K19: 21593.85 | L19: 20800 | M19: 0.12723
A20: 10 | B20: ADANIENT | C20: 1925.7 | D20: 1941.70 | E20: 1715.40 | F20: 1505.10 | G20: 1278.80 | H20: 2152.00 | I20: 2378.30 | J20: 2588.60 | K20: 2168 | L20: 1731.4 | M20: 182.79862
A21: 11 | B21: ADANIGREEN | C21: 762.35 | D21: 774.55 | E21: 750.15 | F21: 737.95 | G21: 713.55 | H21: 786.75 | I21: 811.15 | J21: 823.35 | K21: 798.95 | L21: 762.35 | M21: 47.29491
A22: 12 | B22: ADANIPORTS | C22: 582.3 | D22: 572.50 | E22: 556.00 | F22: 529.70 | G22: 513.20 | H22: 598.80 | I22: 615.30 | J22: 641.60 | K22: 589 | L22: 546.2 | M22: 224.94005
A23: 13 | B23: ATGL | C23: 1321.45 | D23: 1321.45 | E23: 1321.45 | F23: 1321.45 | G23: 1321.45 | H23: 1321.45 | I23: 1321.45 | J23: 1321.45 | K23: 1321.45 | L23: 1321.45 | M23: 2.00127
A24: 14 | B24: ADANITRANS | C24: 1249.1 | D24: 1264.73 | E24: 1233.47 | F24: 1217.83 | G24: 1186.57 | H24: 1280.37 | I24: 1311.63 | J24: 1327.27 | K24: 1296 | L24: 1249.1 | M24: 8.31921
A25: 15 | B25: AWL | C25: 439.7 | D25: 428.57 | E25: 417.43 | F25: 395.17 | G25: 384.03 | H25: 450.83 | I25: 461.97 | J25: 484.23 | K25: 439.7 | L25: 406.3 | M25: 127.04925
A26: 16 | B26: ABCAPITAL | C26: 147.1 | D26: 147.17 | E26: 145.33 | F26: 143.57 | G26: 141.73 | H26: 148.93 | I26: 150.77 | J26: 152.53 | K26: 149 | L26: 145.4 | M26: 17.88578
A27: 17 | B27: ABFRL | C27: 256.3 | D27: 253.50 | E27: 249.95 | F27: 243.60 | G27: 240.05 | H27: 259.85 | I27: 263.40 | J27: 269.75 | K27: 257.05 | L27: 247.15 | M27: 30.34157
A28: 18 | B28: ABSLAMC | C28: 404.95 | D28: 405.48 | E28: 403.47 | F28: 401.98 | G28: 399.97 | H28: 406.97 | I28: 408.98 | J28: 410.47 | K28: 407.5 | L28: 404 | M28: 0.42976
A29: 19 | B29: AEGISCHEM | C29: 352.55 | D29: 354.53 | E29: 349.12 | F29: 345.68 | G29: 340.27 | H29: 357.97 | I29: 363.38 | J29: 366.82 | K29: 359.95 | L29: 351.1 | M29: 2.05558
A30: 20 | B30: AETHER | C30: 899.25 | D30: 898.52 | E30: 892.03 | F30: 884.82 | G30: 878.33 | H30: 905.73 | I30: 912.22 | J30: 919.43 | K30: 905 | L30: 891.3 | M30: 0.27714
A31: 21 | B31: AFFLE | C31: 1043.6 | D31: 1041.20 | E31: 1032.40 | F31: 1021.20 | G31: 1012.40 | H31: 1052.40 | I31: 1061.20 | J31: 1072.40 | K31: 1050 | L31: 1030 | M31: 3.62556
A32: 22 | B32: AJANTPHARM | C32: 1207.2 | D32: 1216.23 | E32: 1182.47 | F32: 1157.73 | G32: 1123.97 | H32: 1240.97 | I32: 1274.73 | J32: 1299.47 | K32: 1250 | L32: 1191.5 | M32: 0.23911
A33: 23 | B33: APLLTD | C33: 521.6 | D33: 524.50 | E33: 518.10 | F33: 514.60 | G33: 508.20 | H33: 528.00 | I33: 534.40 | J33: 537.90 | K33: 530.9 | L33: 521 | M33: 0.45823
A34: 24 | B34: ALKEM | C34: 3230.45 | D34: 3216.52 | E34: 3154.88 | F34: 3079.32 | G34: 3017.68 | H34: 3292.08 | I34: 3353.72 | J34: 3429.28 | K34: 3278.15 | L34: 3140.95 | M34: 1.3281
A35: 25 | B35: ALKYLAMINE | C35: 2606.85 | D35: 2607.48 | E35: 2579.37 | F35: 2551.88 | G35: 2523.77 | H35: 2634.97 | I35: 2663.08 | J35: 2690.57 | K35: 2635.6 | L35: 2580 | M35: 0.34878
A36: 26 | B36: ALLCARGO | C36: 410.15 | D36: 411.67 | E36: 406.48 | F36: 402.82 | G36: 397.63 | H36: 415.33 | I36: 420.52 | J36: 424.18 | K36: 416.85 | L36: 408 | M36: 2.3175
A37: 27 | B37: ALOKINDS | C37: 12.85 | D37: 12.85 | E37: 12.70 | F37: 12.55 | G37: 12.40 | H37: 13.00 | I37: 13.15 | J37: 13.30 | K37: 13 | L37: 12.7 | M37: 13.23487
A38: 28 | B38: AMARAJABAT | C38: 611.95 | D38: 606.22 | E38: 597.23 | F38: 582.52 | G38: 573.53 | H38: 620.93 | I38: 629.92 | J38: 644.63 | K38: 615.2 | L38: 591.5 | M38: 7.69295
A39: 29 | B39: AMBER | C39: 1887.3 | D39: 1887.90 | E39: 1880.35 | F39: 1873.40 | G39: 1865.85 | H39: 1894.85 | I39: 1902.40 | J39: 1909.35 | K39: 1895.45 | L39: 1880.95 | M39: 0.12986
A40: 30 | B40: AMBUJACEM | C40: 357.8 | D40: 363.27 | E40: 348.53 | F40: 339.27 | G40: 324.53 | H40: 372.53 | I40: 387.27 | J40: 396.53 | K40: 378 | L40: 354 | M40: 281.34958
A41: 31 | B41: ANGELONE | C41: 1124.55 | D41: 1140.18 | E41: 1104.37 | F41: 1084.18 | G41: 1048.37 | H41: 1160.37 | I41: 1196.18 | J41: 1216.37 | K41: 1176 | L41: 1120 | M41: 4.34915
A42: 32 | B42: ANURAS | C42: 619.5 | D42: 618.47 | E42: 613.33 | F42: 607.17 | G42: 602.03 | H42: 624.63 | I42: 629.77 | J42: 635.93 | K42: 623.6 | L42: 612.3 | M42: 1.39783
A43: 33 | B43: APOLLOHOSP | C43: 4389.3 | D43: 4372.92 | E43: 4341.38 | F43: 4293.47 | G43: 4261.93 | H43: 4420.83 | I43: 4452.37 | J43: 4500.28 | K43: 4404.45 | L43: 4325 | M43: 2.84239
A44: 34 | B44: APOLLOTYRE | C44: 333.45 | D44: 333.92 | E44: 330.83 | F44: 328.22 | G44: 325.13 | H44: 336.53 | I44: 339.62 | J44: 342.23 | K44: 337 | L44: 331.3 | M44: 21.96089
A45: 35 | B45: APTUS | C45: 266.8 | D45: 268.27 | E45: 263.53 | F45: 260.27 | G45: 255.53 | H45: 271.53 | I45: 276.27 | J45: 279.53 | K45: 273 | L45: 265 | M45: 0.87228
A46: 36 | B46: ASAHIINDIA | C46: 500.8 | D46: 505.22 | E46: 495.58 | F46: 490.37 | G46: 480.73 | H46: 510.43 | I46: 520.07 | J46: 525.28 | K46: 514.85 | L46: 500 | M46: 0.48631
A47: 37 | B47: ASHOKLEY | C47: 148.85 | D47: 148.33 | E47: 147.52 | F47: 146.18 | G47: 145.37 | H47: 149.67 | I47: 150.48 | J47: 151.82 | K47: 149.15 | L47: 147 | M47: 79.50423
A48: 38 | B48: ASIANPAINT | C48: 2814.6 | D48: 2800.37 | E48: 2780.38 | F48: 2746.17 | G48: 2726.18 | H48: 2834.58 | I48: 2854.57 | J48: 2888.78 | K48: 2820.35 | L48: 2766.15 | M48: 9.46372
A49: 39 | B49: ASTERDM | C49: 207.55 | D49: 209.92 | E49: 204.63 | F49: 201.72 | G49: 196.43 | H49: 212.83 | I49: 218.12 | J49: 221.03 | K49: 215.2 | L49: 207 | M49: 1.8219
A50: 40 | B50: ASTRAZEN | C50: 3379.65 | D50: 3367.85 | E50: 3339.70 | F50: 3299.75 | G50: 3271.60 | H50: 3407.80 | I50: 3435.95 | J50: 3475.90 | K50: 3396 | L50: 3327.9 | M50: 0.02902
A51: 41 | B51: ASTRAL | C51: 2030.25 | D51: 2029.00 | E51: 2011.65 | F51: 1993.05 | G51: 1975.70 | H51: 2047.60 | I51: 2064.95 | J51: 2083.55 | K51: 2046.35 | L51: 2010.4 | M51: 2.89802
A52: 42 | B52: ATUL | C52: 7183.95 | D52: 7206.22 | E52: 7135.73 | F52: 7087.52 | G52: 7017.03 | H52: 7254.43 | I52: 7324.92 | J52: 7373.13 | K52: 7276.7 | L52: 7158 | M52: 0.23983
A53: 43 | B53: AUROPHARMA | C53: 440.95 | D53: 442.90 | E53: 433.80 | F53: 426.65 | G53: 417.55 | H53: 450.05 | I53: 459.15 | J53: 466.30 | K53: 452 | L53: 435.75 | M53: 21.02287
A54: 44 | B54: AVANTIFEED | C54: 387.3 | D54: 387.15 | E54: 383.30 | F54: 379.30 | G54: 375.45 | H54: 391.15 | I54: 395.00 | J54: 399.00 | K54: 391 | L54: 383.15 | M54: 0.92599
A55: 45 | B55: DMART | C55: 3482.05 | D55: 3497.12 | E55: 3450.08 | F55: 3418.12 | G55: 3371.08 | H55: 3529.08 | I55: 3576.12 | J55: 3608.08 | K55: 3544.15 | L55: 3465.15 | M55: 3.72567
A56: 46 | B56: AXISBANK | C56: 867.7 | D56: 868.80 | E56: 861.45 | F56: 855.20 | G56: 847.85 | H56: 875.05 | I56: 882.40 | J56: 888.65 | K56: 876.15 | L56: 862.55 | M56: 59.93312
A57: 47 | B57: BASF | C57: 2336.55 | D57: 2343.18 | E57: 2318.97 | F57: 2301.38 | G57: 2277.17 | H57: 2360.77 | I57: 2384.98 | J57: 2402.57 | K57: 2367.4 | L57: 2325.6 | M57: 0.10162
A58: 48 | B58: BSE | C58: 505.7 | D58: 498.77 | E58: 488.03 | F58: 470.37 | G58: 459.63 | H58: 516.43 | I58: 527.17 | J58: 544.83 | K58: 509.5 | L58: 481.1 | M58: 8.92846
A59: 49 | B59: BAJAJ-AUTO | C59: 3845.75 | D59: 3856.17 | E59: 3821.83 | F59: 3797.92 | G59: 3763.58 | H59: 3880.08 | I59: 3914.42 | J59: 3938.33 | K59: 3890.5 | L59: 3832.25 | M59: 2.49061
A60: 50 | B60: BAJAJELEC | C60: 1180 | D60: 1184.60 | E60: 1165.40 | F60: 1150.80 | G60: 1131.60 | H60: 1199.20 | I60: 1218.40 | J60: 1233.00 | K60: 1203.8 | L60: 1170 | M60: 0.88172
A61: 51 | B61: BAJFINANCE | C61: 6455 | D61: 6426.02 | E61: 6364.23 | F61: 6273.47 | G61: 6211.68 | H61: 6516.78 | I61: 6578.57 | J61: 6669.33 | K61: 6487.8 | L61: 6335.25 | M61: 18.38154
A62: 52 | B62: BAJAJFINSV | C62: 1400.25 | D62: 1388.93 | E62: 1367.97 | F62: 1335.68 | G62: 1314.72 | H62: 1421.22 | I62: 1442.18 | J62: 1474.47 | K62: 1409.9 | L62: 1356.65 | M62: 25.936
A63: 53 | B63: BAJAJHLDNG | C63: 6061.3 | D63: 6085.43 | E63: 6000.87 | F63: 5940.43 | G63: 5855.87 | H63: 6145.87 | I63: 6230.43 | J63: 6290.87 | K63: 6170 | L63: 6025 | M63: 0.11981
A64: 54 | B64: BALAMINES | C64: 2195.7 | D64: 2199.10 | E64: 2181.60 | F64: 2167.50 | G64: 2150.00 | H64: 2213.20 | I64: 2230.70 | J64: 2244.80 | K64: 2216.6 | L64: 2185 | M64: 0.32521
A65: 55 | B65: BALKRISIND | C65: 2302.45 | D65: 2306.60 | E65: 2288.40 | F65: 2274.35 | G65: 2256.15 | H65: 2320.65 | I65: 2338.85 | J65: 2352.90 | K65: 2324.8 | L65: 2292.55 | M65: 1.09459
A66: 56 | B66: BALRAMCHIN | C66: 362.85 | D66: 362.10 | E66: 359.55 | F66: 356.25 | G66: 353.70 | H66: 365.40 | I66: 367.95 | J66: 371.25 | K66: 364.65 | L66: 358.8 | M66: 5.63491
A67: 57 | B67: BANDHANBNK | C67: 242.05 | D67: 240.35 | E67: 238.20 | F67: 234.35 | G67: 232.20 | H67: 244.20 | I67: 246.35 | J67: 250.20 | K67: 242.5 | L67: 236.5 | M67: 49.75876
A68: 58 | B68: BANKBARODA | C68: 169.45 | D68: 168.23 | E68: 165.52 | F68: 161.58 | G68: 158.87 | H68: 172.17 | I68: 174.88 | J68: 178.82 | K68: 170.95 | L68: 164.3 | M68: 242.68013
A69: 59 | B69: BANKINDIA | C69: 80.6 | D69: 80.50 | E69: 79.35 | F69: 78.10 | G69: 76.95 | H69: 81.75 | I69: 82.90 | J69: 84.15 | K69: 81.65 | L69: 79.25 | M69: 84.04132
A70: 60 | B70: MAHABANK | C70: 27.8 | D70: 27.87 | E70: 27.58 | F70: 27.37 | G70: 27.08 | H70: 28.08 | I70: 28.37 | J70: 28.58 | K70: 28.15 | L70: 27.65 | M70: 82.41479
A71: 61 | B71: BATAINDIA | C71: 1514.6 | D71: 1515.00 | E71: 1503.35 | F71: 1492.10 | G71: 1480.45 | H71: 1526.25 | I71: 1537.90 | J71: 1549.15 | K71: 1526.65 | L71: 1503.75 | M71: 1.10727
A72: 62 | B72: BAYERCROP | C72: 4449.05 | D72: 4455.33 | E72: 4414.72 | F72: 4380.38 | G72: 4339.77 | H72: 4489.67 | I72: 4530.28 | J72: 4564.62 | K72: 4495.95 | L72: 4421 | M72: 0.06329
A73: 63 | B73: BERGEPAINT | C73: 568.55 | D73: 567.20 | E73: 563.15 | F73: 557.75 | G73: 553.70 | H73: 572.60 | I73: 576.65 | J73: 582.05 | K73: 571.25 | L73: 561.8 | M73: 5.21088
A74: 64 | B74: BDL | C74: 844.2 | D74: 840.87 | E74: 830.73 | F74: 817.27 | G74: 807.13 | H74: 854.33 | I74: 864.47 | J74: 877.93 | K74: 851 | L74: 827.4 | M74: 7.84748
A75: 65 | B75: BEL | C75: 95.8 | D75: 96.02 | E75: 95.33 | F75: 94.87 | G75: 94.18 | H75: 96.48 | I75: 97.17 | J75: 97.63 | K75: 96.7 | L75: 95.55 | M75: 65.77385
A76: 66 | B76: BHARATFORG | C76: 869.55 | D76: 869.15 | E76: 863.40 | F76: 857.25 | G76: 851.50 | H76: 875.30 | I76: 881.05 | J76: 887.20 | K76: 874.9 | L76: 863 | M76: 5.60265
A77: 67 | B77: BHEL | C77: 76.35 | D77: 75.92 | E77: 75.23 | F77: 74.12 | G77: 73.43 | H77: 77.03 | I77: 77.72 | J77: 78.83 | K77: 76.6 | L77: 74.8 | M77: 102.29353
A78: 68 | B78: BPCL | C78: 333.7 | D78: 334.25 | E78: 330.80 | F78: 327.90 | G78: 324.45 | H78: 337.15 | I78: 340.60 | J78: 343.50 | K78: 337.7 | L78: 331.35 | M78: 21.37703
A79: 69 | B79: BHARATRAS | C79: 8975.9 | D79: 8983.50 | E79: 8932.00 | F79: 8888.10 | G79: 8836.60 | H79: 9027.40 | I79: 9078.90 | J79: 9122.80 | K79: 9035 | L79: 8939.6 | M79: 0.00929
A80: 70 | B80: BHARTIARTL | C80: 766.65 | D80: 767.68 | E80: 760.27 | F80: 753.88 | G80: 746.47 | H80: 774.07 | I80: 781.48 | J80: 787.87 | K80: 775.1 | L80: 761.3 | M80: 59.13945
A81: 71 | B81: BIOCON | C81: 243.15 | D81: 243.02 | E81: 241.08 | F81: 239.02 | G81: 237.08 | H81: 245.08 | I81: 247.02 | J81: 249.08 | K81: 244.95 | L81: 240.95 | M81: 17.4629
A82: 72 | B82: BIRLACORPN | C82: 910.25 | D82: 909.25 | E82: 903.00 | F82: 895.75 | G82: 889.50 | H82: 916.50 | I82: 922.75 | J82: 930.00 | K82: 915.5 | L82: 902 | M82: 0.95719
A83: 73 | B83: BSOFT | C83: 288.3 | D83: 287.10 | E83: 285.00 | F83: 281.70 | G83: 279.60 | H83: 290.40 | I83: 292.50 | J83: 295.80 | K83: 289.2 | L83: 283.8 | M83: 15.10346
A84: 74 | B84: BLUEDART | C84: 6471 | D84: 6462.10 | E84: 6399.20 | F84: 6327.40 | G84: 6264.50 | H84: 6533.90 | I84: 6596.80 | J84: 6668.60 | K84: 6525 | L84: 6390.3 | M84: 0.15217
A85: 75 | B85: BLUESTARCO | C85: 1368.5 | D85: 1369.73 | E85: 1358.77 | F85: 1349.03 | G85: 1338.07 | H85: 1379.47 | I85: 1390.43 | J85: 1400.17 | K85: 1380.7 | L85: 1360 | M85: 0.15863
A86: 76 | B86: BBTC | C86: 911.25 | D86: 909.57 | E86: 903.18 | F86: 895.12 | G86: 888.73 | H86: 917.63 | I86: 924.02 | J86: 932.08 | K86: 915.95 | L86: 901.5 | M86: 0.2878
A87: 77 | B87: BORORENEW | C87: 479.35 | D87: 481.17 | E87: 474.93 | F87: 470.52 | G87: 464.28 | H87: 485.58 | I87: 491.82 | J87: 496.23 | K87: 487.4 | L87: 476.75 | M87: 0.97125
A88: 78 | B88: BOSCHLTD | C88: 17524.8 | D88: 17489.58 | E88: 17355.22 | F88: 17185.63 | G88: 17051.27 | H88: 17659.17 | I88: 17793.53 | J88: 17963.12 | K88: 17623.95 | L88: 17320 | M88: 0.19549
A89: 79 | B89: BRIGADE | C89: 501.8 | D89: 497.53 | E89: 492.07 | F89: 482.33 | G89: 476.87 | H89: 507.27 | I89: 512.73 | J89: 522.47 | K89: 503 | L89: 487.8 | M89: 1.48029
A90: 80 | B90: BCG | C90: 25.95 | D90: 26.07 | E90: 25.43 | F90: 24.92 | G90: 24.28 | H90: 26.58 | I90: 27.22 | J90: 27.73 | K90: 26.7 | L90: 25.55 | M90: 285.34205
A91: 81 | B91: BRITANNIA | C91: 4637.35 | D91: 4622.87 | E91: 4589.63 | F91: 4541.92 | G91: 4508.68 | H91: 4670.58 | I91: 4703.82 | J91: 4751.53 | K91: 4656.1 | L91: 4575.15 | M91: 2.84415
A92: 82 | B92: MAPMYINDIA | C92: 1080.55 | D92: 1081.92 | E92: 1071.83 | F92: 1063.12 | G92: 1053.03 | H92: 1090.63 | I92: 1100.72 | J92: 1109.43 | K92: 1092 | L92: 1073.2 | M92: 0.30273
A93: 83 | B93: CCL | C93: 542 | D93: 544.97 | E93: 536.53 | F93: 531.07 | G93: 522.63 | H93: 550.43 | I93: 558.87 | J93: 564.33 | K93: 553.4 | L93: 539.5 | M93: 0.44464
A94: 84 | B94: CESC | C94: 72.8 | D94: 73.00 | E94: 72.30 | F94: 71.80 | G94: 71.10 | H94: 73.50 | I94: 74.20 | J94: 74.70 | K94: 73.7 | L94: 72.5 | M94: 11.45665
A95: 85 | B95: CGPOWER | C95: 311.45 | D95: 311.28 | E95: 306.22 | F95: 300.98 | G95: 295.92 | H95: 316.52 | I95: 321.58 | J95: 326.82 | K95: 316.35 | L95: 306.05 | M95: 25.9123
A96: 86 | B96: CRISIL | C96: 3144.9 | D96: 3148.22 | E96: 3121.23 | F96: 3097.57 | G96: 3070.58 | H96: 3171.88 | I96: 3198.87 | J96: 3222.53 | K96: 3175.2 | L96: 3124.55 | M96: 0.16817
A97: 87 | B97: CSBBANK | C97: 246.8 | D97: 247.83 | E97: 244.97 | F97: 243.13 | G97: 240.27 | H97: 249.67 | I97: 252.53 | J97: 254.37 | K97: 250.7 | L97: 246 | M97: 1.63473
A98: 88 | B98: CAMPUS | C98: 394.65 | D98: 387.63 | E98: 376.57 | F98: 358.48 | G98: 347.42 | H98: 405.72 | I98: 416.78 | J98: 434.87 | K98: 398.7 | L98: 369.55 | M98: 11.57486
A99: 89 | B99: CANFINHOME | C99: 600.35 | D99: 596.02 | E99: 590.13 | F99: 579.92 | G99: 574.03 | H99: 606.23 | I99: 612.12 | J99: 622.33 | K99: 601.9 | L99: 585.8 | M99: 9.85852
A100: 90 | B100: CANBK | C100: 293 | D100: 292.65 | E100: 288.50 | F100: 284.00 | G100: 279.85 | H100: 297.15 | I100: 301.30 | J100: 305.80 | K100: 296.8 | L100: 288.15 | M100: 62.39893
A101: 91 | B101: CAPLIPOINT | C101: 703.25 | D101: 703.88 | E101: 699.92 | F101: 696.58 | G101: 692.62 | H101: 707.22 | I101: 711.18 | J101: 714.52 | K101: 707.85 | L101: 700.55 | M101: 0.09733
A102: 92 | B102: CGCL | C102: 751.5 | D102: 752.50 | E102: 749.65 | F102: 747.80 | G102: 744.95 | H102: 754.35 | I102: 757.20 | J102: 759.05 | K102: 755.35 | L102: 750.65 | M102: 0.93093
A103: 93 | B103: CARBORUNIV | C103: 968.15 | D103: 979.73 | E103: 949.47 | F103: 930.78 | G103: 900.52 | H103: 998.42 | I103: 1028.68 | J103: 1047.37 | K103: 1010 | L103: 961.05 | M103: 0.69296
A104: 94 | B104: CASTROLIND | C104: 119.7 | D104: 119.75 | E104: 119.20 | F104: 118.70 | G104: 118.15 | H104: 120.25 | I104: 120.80 | J104: 121.30 | K104: 120.3 | L104: 119.25 | M104: 2.1231
A105: 95 | B105: CEATLTD | C105: 1523 | D105: 1530.00 | E105: 1508.00 | F105: 1493.00 | G105: 1471.00 | H105: 1545.00 | I105: 1567.00 | J105: 1582.00 | K105: 1552 | L105: 1515 | M105: 0.45376
A106: 96 | B106: CENTRALBK | C106: 27.25 | D106: 27.30 | E106: 26.95 | F106: 26.65 | G106: 26.30 | H106: 27.60 | I106: 27.95 | J106: 28.25 | K106: 27.65 | L106: 27 | M106: 33.63221
A107: 97 | B107: CDSL | C107: 1000.65 | D107: 994.88 | E107: 985.77 | F107: 970.88 | G107: 961.77 | H107: 1009.77 | I107: 1018.88 | J107: 1033.77 | K107: 1004 | L107: 980 | M107: 6.13917
A108: 98 | B108: CENTURYPLY | C108: 511.6 | D108: 512.27 | E108: 506.43 | F108: 501.27 | G108: 495.43 | H108: 517.43 | I108: 523.27 | J108: 528.43 | K108: 518.1 | L108: 507.1 | M108: 0.38417
A109: 99 | B109: CENTURYTEX | C109: 652.85 | D109: 653.38 | E109: 642.97 | F109: 633.08 | G109: 622.67 | H109: 663.27 | I109: 673.68 | J109: 683.57 | K109: 663.8 | L109: 643.5 | M109: 4.78848
A110: 100 | B110: CERA | C110: 5968.7 | D110: 5919.45 | E110: 5848.90 | F110: 5729.10 | G110: 5658.55 | H110: 6039.25 | I110: 6109.80 | J110: 6229.60 | K110: 5990 | L110: 5799.65 | M110: 0.22517
A111: 101 | B111: CHALET | C111: 361.45 | D111: 361.97 | E111: 358.58 | F111: 355.72 | G111: 352.33 | H111: 364.83 | I111: 368.22 | J111: 371.08 | K111: 365.35 | L111: 359.1 | M111: 0.31566
A112: 102 | B112: CHAMBLFERT | C112: 296.75 | D112: 295.45 | E112: 292.00 | F112: 287.25 | G112: 283.80 | H112: 300.20 | I112: 303.65 | J112: 308.40 | K112: 298.9 | L112: 290.7 | M112: 8.13012
A113: 103 | B113: CHEMPLASTS | C113: 433.8 | D113: 434.57 | E113: 431.23 | F113: 428.67 | G113: 425.33 | H113: 437.13 | I113: 440.47 | J113: 443.03 | K113: 437.9 | L113: 432 | M113: 0.64837
A114: 104 | B114: CHOLAHLDNG | C114: 620.75 | D114: 628.13 | E114: 608.17 | F114: 595.58 | G114: 575.62 | H114: 640.72 | I114: 660.68 | J114: 673.27 | K114: 648.1 | L114: 615.55 | M114: 0.42562
A115: 105 | B115: CHOLAFIN | C115: 796.1 | D115: 796.73 | E115: 790.37 | F115: 784.63 | G115: 778.27 | H115: 802.47 | I115: 808.83 | J115: 814.57 | K115: 803.1 | L115: 791 | M115: 7.42433
A116: 106 | B116: CIPLA | C116: 1021.5 | D116: 1028.70 | E116: 1012.80 | F116: 1004.10 | G116: 988.20 | H116: 1037.40 | I116: 1053.30 | J116: 1062.00 | K116: 1044.6 | L116: 1020 | M116: 13.31902
A117: 107 | B117: CUB | C117: 157.25 | D117: 158.05 | E117: 155.60 | F117: 153.95 | G117: 151.50 | H117: 159.70 | I117: 162.15 | J117: 163.80 | K117: 160.5 | L117: 156.4 | M117: 17.79573
A118: 108 | B118: CLEAN | C118: 1492.85 | D118: 1497.30 | E118: 1459.60 | F118: 1426.35 | G118: 1388.65 | H118: 1530.55 | I118: 1568.25 | J118: 1601.50 | K118: 1535 | L118: 1464.05 | M118: 1.10683
A119: 109 | B119: COALINDIA | C119: 214.55 | D119: 214.85 | E119: 212.90 | F119: 211.25 | G119: 209.30 | H119: 216.50 | I119: 218.45 | J119: 220.10 | K119: 216.8 | L119: 213.2 | M119: 43.83159
A120: 110 | B120: COCHINSHIP | C120: 484.05 | D120: 487.98 | E120: 477.07 | F120: 470.08 | G120: 459.17 | H120: 494.97 | I120: 505.88 | J120: 512.87 | K120: 498.9 | L120: 481 | M120: 5.67029
A121: 111 | B121: COFORGE | C121: 4340.5 | D121: 4325.17 | E121: 4290.33 | F121: 4240.17 | G121: 4205.33 | H121: 4375.33 | I121: 4410.17 | J121: 4460.33 | K121: 4360 | L121: 4275 | M121: 3.2901
A122: 112 | B122: COLPAL | C122: 1467.15 | D122: 1464.33 | E122: 1456.67 | F122: 1446.18 | G122: 1438.52 | H122: 1474.82 | I122: 1482.48 | J122: 1492.97 | K122: 1472 | L122: 1453.85 | M122: 2.05978
A123: 113 | B123: CAMS | C123: 2253.1 | D123: 2248.07 | E123: 2230.13 | F123: 2207.17 | G123: 2189.23 | H123: 2271.03 | I123: 2288.97 | J123: 2311.93 | K123: 2266 | L123: 2225.1 | M123: 0.34738
A124: 114 | B124: CONCOR | C124: 617.45 | D124: 615.68 | E124: 611.77 | F124: 606.08 | G124: 602.17 | H124: 621.37 | I124: 625.28 | J124: 630.97 | K124: 619.6 | L124: 610 | M124: 5.48142
A125: 115 | B125: COROMANDEL | C125: 918.4 | D125: 919.13 | E125: 911.27 | F125: 904.13 | G125: 896.27 | H125: 926.27 | I125: 934.13 | J125: 941.27 | K125: 927 | L125: 912 | M125: 2.19226
A126: 116 | B126: CREDITACC | C126: 959.75 | D126: 966.10 | E126: 944.60 | F126: 929.45 | G126: 907.95 | H126: 981.25 | I126: 1002.75 | J126: 1017.90 | K126: 987.6 | L126: 950.95 | M126: 2.34867
A127: 117 | B127: CROMPTON | C127: 314.3 | D127: 315.80 | E127: 311.60 | F127: 308.90 | G127: 304.70 | H127: 318.50 | I127: 322.70 | J127: 325.40 | K127: 320 | L127: 313.1 | M127: 20.21327
A128: 118 | B128: CUMMINSIND | C128: 1578.35 | D128: 1578.77 | E128: 1539.53 | F128: 1500.72 | G128: 1461.48 | H128: 1617.58 | I128: 1656.82 | J128: 1695.63 | K128: 1618 | L128: 1539.95 | M128: 45.34071
A129: 119 | B129: CYIENT | C129: 918.25 | D129: 921.25 | E129: 908.05 | F129: 897.85 | G129: 884.65 | H129: 931.45 | I129: 944.65 | J129: 954.85 | K129: 934.45 | L129: 911.05 | M129: 5.46312
A130: 120 | B130: DCMSHRIRAM | C130: 846.4 | D130: 853.97 | E130: 833.93 | F130: 821.47 | G130: 801.43 | H130: 866.43 | I130: 886.47 | J130: 898.93 | K130: 874 | L130: 841.5 | M130: 0.23887
A131: 121 | B131: DLF | C131: 356.7 | D131: 357.62 | E131: 352.88 | F131: 349.07 | G131: 344.33 | H131: 361.43 | I131: 366.17 | J131: 369.98 | K131: 362.35 | L131: 353.8 | M131: 22.29848
A132: 122 | B132: DABUR | C132: 533.25 | D132: 533.52 | E132: 530.38 | F132: 527.52 | G132: 524.38 | H132: 536.38 | I132: 539.52 | J132: 542.38 | K132: 536.65 | L132: 530.65 | M132: 10.95213
A133: 123 | B133: DALBHARAT | C133: 1926.25 | D133: 1917.77 | E133: 1903.53 | F133: 1880.82 | G133: 1866.58 | H133: 1940.48 | I133: 1954.72 | J133: 1977.43 | K133: 1932 | L133: 1895.05 | M133: 2.1947
A134: 124 | B134: DEEPAKFERT | C134: 630.4 | D134: 634.83 | E134: 621.47 | F134: 612.53 | G134: 599.17 | H134: 643.77 | I134: 657.13 | J134: 666.07 | K134: 648.2 | L134: 625.9 | M134: 2.90212
A135: 125 | B135: DEEPAKNTR | C135: 1806.6 | D135: 1812.38 | E135: 1798.22 | F135: 1789.83 | G135: 1775.67 | H135: 1820.77 | I135: 1834.93 | J135: 1843.32 | K135: 1826.55 | L135: 1804 | M135: 2.79792
A136: 126 | B136: DELHIVERY | C136: 318.25 | D136: 320.05 | E136: 314.25 | F136: 310.25 | G136: 304.45 | H136: 324.05 | I136: 329.85 | J136: 333.85 | K136: 325.85 | L136: 316.05 | M136: 14.39019
A137: 127 | B137: DELTACORP | C137: 196.8 | D137: 195.05 | E137: 192.20 | F137: 187.60 | G137: 184.75 | H137: 199.65 | I137: 202.50 | J137: 207.10 | K137: 197.9 | L137: 190.45 | M137: 31.9251
A138: 128 | B138: DEVYANI | C138: 159.45 | D138: 159.73 | E138: 155.57 | F138: 151.68 | G138: 147.52 | H138: 163.62 | I138: 167.78 | J138: 171.67 | K138: 163.9 | L138: 155.85 | M138: 34.87999
A139: 129 | B139: DHANI | C139: 35.55 | D139: 35.02 | E139: 34.03 | F139: 32.52 | G139: 31.53 | H139: 36.53 | I139: 37.52 | J139: 39.03 | K139: 36 | L139: 33.5 | M139: 61.60827
A140: 130 | B140: DBL | C140: 211.4 | D140: 211.40 | E140: 208.50 | F140: 205.60 | G140: 202.70 | H140: 214.30 | I140: 217.20 | J140: 220.10 | K140: 214.3 | L140: 208.5 | M140: 2.43468
A141: 131 | B141: DIVISLAB | C141: 2823.15 | D141: 2816.73 | E141: 2777.47 | F141: 2731.78 | G141: 2692.52 | H141: 2862.42 | I141: 2901.68 | J141: 2947.37 | K141: 2856 | L141: 2771.05 | M141: 7.42365
A142: 132 | B142: DIXON | C142: 2690.45 | D142: 2688.62 | E142: 2642.88 | F142: 2595.32 | G142: 2549.58 | H142: 2736.18 | I142: 2781.92 | J142: 2829.48 | K142: 2734.35 | L142: 2641.05 | M142: 3.94355
A143: 133 | B143: LALPATHLAB | C143: 1968.1 | D143: 1956.43 | E143: 1937.87 | F143: 1907.63 | G143: 1889.07 | H143: 1986.67 | I143: 2005.23 | J143: 2035.47 | K143: 1975 | L143: 1926.2 | M143: 1.2316
A144: 134 | B144: DRREDDY | C144: 4487.5 | D144: 4483.55 | E144: 4437.55 | F144: 4387.60 | G144: 4341.60 | H144: 4533.50 | I144: 4579.50 | J144: 4629.45 | K144: 4529.55 | L144: 4433.6 | M144: 4.10962
A145: 135 | B145: EIDPARRY | C145: 511.05 | D145: 514.63 | E145: 504.42 | F145: 497.78 | G145: 487.57 | H145: 521.27 | I145: 531.48 | J145: 538.12 | K145: 524.85 | L145: 508 | M145: 1.45526
A146: 136 | B146: EIHOTEL | C146: 169.65 | D146: 170.18 | E146: 166.92 | F146: 164.18 | G146: 160.92 | H146: 172.92 | I146: 176.18 | J146: 178.92 | K146: 173.45 | L146: 167.45 | M146: 8.68247
A147: 137 | B147: EPL | C147: 156 | D147: 155.27 | E147: 154.03 | F147: 152.07 | G147: 150.83 | H147: 157.23 | I147: 158.47 | J147: 160.43 | K147: 156.5 | L147: 153.3 | M147: 1.8039
A148: 138 | B148: EASEMYTRIP | C148: 52.95 | D148: 52.10 | E148: 50.60 | F148: 48.25 | G148: 46.75 | H148: 54.45 | I148: 55.95 | J148: 58.30 | K148: 53.6 | L148: 49.75 | M148: 340.20357
A149: 139 | B149: EDELWEISS | C149: 67.5 | D149: 67.32 | E149: 66.48 | F149: 65.47 | G149: 64.63 | H149: 68.33 | I149: 69.17 | J149: 70.18 | K149: 68.15 | L149: 66.3 | M149: 8.89097
A150: 140 | B150: EICHERMOT | C150: 3237.15 | D150: 3227.23 | E150: 3204.92 | F150: 3172.68 | G150: 3150.37 | H150: 3259.47 | I150: 3281.78 | J150: 3314.02 | K150: 3249.55 | L150: 3195 | M150: 2.65006
A151: 141 | B151: ELGIEQUIP | C151: 439.2 | D151: 434.73 | E151: 425.52 | F151: 411.83 | G151: 402.62 | H151: 448.42 | I151: 457.63 | J151: 471.32 | K151: 443.95 | L151: 421.05 | M151: 6.37563
A152: 142 | B152: EMAMILTD | C152: 410.95 | D152: 411.15 | E152: 409.80 | F152: 408.65 | G152: 407.30 | H152: 412.30 | I152: 413.65 | J152: 414.80 | K152: 412.5 | L152: 410 | M152: 1.02015
A153: 143 | B153: ENDURANCE | C153: 1398.3 | D153: 1405.92 | E153: 1387.38 | F153: 1376.47 | G153: 1357.93 | H153: 1416.83 | I153: 1435.37 | J153: 1446.28 | K153: 1424.45 | L153: 1395 | M153: 0.13528
A154: 144 | B154: ENGINERSIN | C154: 81.35 | D154: 81.98 | E154: 80.47 | F154: 79.58 | G154: 78.07 | H154: 82.87 | I154: 84.38 | J154: 85.27 | K154: 83.5 | L154: 81.1 | M154: 13.36921
A155: 145 | B155: EQUITASBNK | C155: 58 | D155: 57.50 | E155: 56.15 | F155: 54.30 | G155: 52.95 | H155: 59.35 | I155: 60.70 | J155: 62.55 | K155: 58.85 | L155: 55.65 | M155: 95.81265
A156: 146 | B156: ESCORTS | C156: 1970.2 | D156: 1960.42 | E156: 1924.83 | F156: 1879.47 | G156: 1843.88 | H156: 2005.78 | I156: 2041.37 | J156: 2086.73 | K156: 1996 | L156: 1915.05 | M156: 4.19554
A157: 147 | B157: EXIDEIND | C157: 179.75 | D157: 179.37 | E157: 178.48 | F157: 177.22 | G157: 176.33 | H157: 180.63 | I157: 181.52 | J157: 182.78 | K157: 180.25 | L157: 178.1 | M157: 9.33671
A158: 148 | B158: FDC | C158: 264.4 | D158: 264.98 | E158: 260.97 | F158: 257.53 | G158: 253.52 | H158: 268.42 | I158: 272.43 | J158: 275.87 | K158: 269 | L158: 261.55 | M158: 1.89798
A159: 149 | B159: NYKAA | C159: 151.85 | D159: 151.33 | E159: 147.42 | F159: 142.98 | G159: 139.07 | H159: 155.77 | I159: 159.68 | J159: 164.12 | K159: 155.25 | L159: 146.9 | M159: 195.6641
A160: 150 | B160: FEDERALBNK | C160: 129.95 | D160: 130.12 | E160: 128.83 | F160: 127.72 | G160: 126.43 | H160: 131.23 | I160: 132.52 | J160: 133.63 | K160: 131.4 | L160: 129 | M160: 91.28501
A161: 151 | B161: FACT | C161: 270.35 | D161: 265.95 | E161: 261.55 | F161: 252.75 | G161: 248.35 | H161: 274.75 | I161: 279.15 | J161: 287.95 | K161: 270.35 | L161: 257.15 | M161: 5.06486
A162: 152 | B162: FINEORG | C162: 5042.9 | D162: 5100.68 | E162: 4957.37 | F162: 4871.83 | G162: 4728.52 | H162: 5186.22 | I162: 5329.53 | J162: 5415.07 | K162: 5244 | L162: 5015.15 | M162: 0.27075
A163: 153 | B163: FINCABLES | C163: 561.75 | D163: 557.25 | E163: 539.50 | F163: 517.25 | G163: 499.50 | H163: 579.50 | I163: 597.25 | J163: 619.50 | K163: 575 | L163: 535 | M163: 3.7674
A164: 154 | B164: FINPIPE | C164: 175.7 | D164: 176.28 | E164: 173.97 | F164: 172.23 | G164: 169.92 | H164: 178.02 | I164: 180.33 | J164: 182.07 | K164: 178.6 | L164: 174.55 | M164: 3.25937
A165: 155 | B165: FSL | C165: 119.9 | D165: 120.07 | E165: 118.98 | F165: 118.07 | G165: 116.98 | H165: 120.98 | I165: 122.07 | J165: 122.98 | K165: 121.15 | L165: 119.15 | M165: 27.2789
A166: 156 | B166: FORTIS | C166: 276.6 | D166: 277.85 | E166: 274.35 | F166: 272.10 | G166: 268.60 | H166: 280.10 | I166: 283.60 | J166: 285.85 | K166: 281.35 | L166: 275.6 | M166: 5.4478
A167: 157 | B167: GRINFRA | C167: 1134.55 | D167: 1129.55 | E167: 1116.10 | F167: 1097.65 | G167: 1084.20 | H167: 1148.00 | I167: 1161.45 | J167: 1179.90 | K167: 1143 | L167: 1111.1 | M167: 0.21854
A168: 158 | B168: GAIL | C168: 95.85 | D168: 95.62 | E168: 94.93 | F168: 94.02 | G168: 93.33 | H168: 96.53 | I168: 97.22 | J168: 98.13 | K168: 96.3 | L168: 94.7 | M168: 60.65233
A169: 159 | B169: GMMPFAUDLR | C169: 1558 | D169: 1569.13 | E169: 1541.87 | F169: 1525.73 | G169: 1498.47 | H169: 1585.27 | I169: 1612.53 | J169: 1628.67 | K169: 1596.4 | L169: 1553 | M169: 0.52738
A170: 160 | B170: GMRINFRA | C170: 38.75 | D170: 38.65 | E170: 38.40 | F170: 38.05 | G170: 37.80 | H170: 39.00 | I170: 39.25 | J170: 39.60 | K170: 38.9 | L170: 38.3 | M170: 46.50203
A171: 161 | B171: GALAXYSURF | C171: 2315.75 | D171: 2325.27 | E171: 2299.03 | F171: 2282.32 | G171: 2256.08 | H171: 2341.98 | I171: 2368.22 | J171: 2384.93 | K171: 2351.5 | L171: 2308.55 | M171: 0.09233
A172: 162 | B172: GARFIBRES | C172: 3122.7 | D172: 3135.15 | E172: 3077.60 | F172: 3032.50 | G172: 2974.95 | H172: 3180.25 | I172: 3237.80 | J172: 3282.90 | K172: 3192.7 | L172: 3090.05 | M172: 0.03785
A173: 163 | B173: GICRE | C173: 163.7 | D173: 162.87 | E173: 157.88 | F173: 152.07 | G173: 147.08 | H173: 168.68 | I173: 173.67 | J173: 179.48 | K173: 167.85 | L173: 157.05 | M173: 22.48441
A174: 164 | B174: GLAND | C174: 1301 | D174: 1323.67 | E174: 1267.33 | F174: 1233.67 | G174: 1177.33 | H174: 1357.33 | I174: 1413.67 | J174: 1447.33 | K174: 1380 | L174: 1290 | M174: 10.70952
A175: 165 | B175: GLAXO | C175: 1266.15 | D175: 1273.12 | E175: 1253.33 | F175: 1240.52 | G175: 1220.73 | H175: 1285.93 | I175: 1305.72 | J175: 1318.53 | K175: 1292.9 | L175: 1260.3 | M175: 0.24116
A176: 166 | B176: GLENMARK | C176: 394.3 | D176: 396.40 | E176: 390.45 | F176: 386.60 | G176: 380.65 | H176: 400.25 | I176: 406.20 | J176: 410.05 | K176: 402.35 | L176: 392.55 | M176: 3.31296
A177: 167 | B177: GOCOLORS | C177: 1016.2 | D177: 1025.75 | E177: 1002.45 | F177: 988.70 | G177: 965.40 | H177: 1039.50 | I177: 1062.80 | J177: 1076.55 | K177: 1049.05 | L177: 1012 | M177: 0.96548
A178: 168 | B178: GODFRYPHLP | C178: 1816.75 | D178: 1835.40 | E178: 1781.45 | F178: 1746.15 | G178: 1692.20 | H178: 1870.70 | I178: 1924.65 | J178: 1959.95 | K178: 1889.35 | L178: 1800.1 | M178: 0.81578
A179: 169 | B179: GODREJAGRO | C179: 460.8 | D179: 459.27 | E179: 452.53 | F179: 444.27 | G179: 437.53 | H179: 467.53 | I179: 474.27 | J179: 482.53 | K179: 466 | L179: 451 | M179: 3.82079
A180: 170 | B180: GODREJCP | C180: 940.85 | D180: 941.82 | E180: 936.83 | F180: 932.82 | G180: 927.83 | H180: 945.83 | I180: 950.82 | J180: 954.83 | K180: 946.8 | L180: 937.8 | M180: 6.14802
A181: 171 | B181: GODREJIND | C181: 429.8 | D181: 430.78 | E181: 426.87 | F181: 423.93 | G181: 420.02 | H181: 433.72 | I181: 437.63 | J181: 440.57 | K181: 434.7 | L181: 427.85 | M181: 0.5174
A182: 172 | B182: GODREJPROP | C182: 1173.9 | D182: 1176.48 | E182: 1162.47 | F182: 1151.03 | G182: 1137.02 | H182: 1187.92 | I182: 1201.93 | J182: 1213.37 | K182: 1190.5 | L182: 1165.05 | M182: 2.61113
A183: 173 | B183: GRANULES | C183: 289.55 | D183: 289.47 | E183: 286.03 | F183: 282.52 | G183: 279.08 | H183: 292.98 | I183: 296.42 | J183: 299.93 | K183: 292.9 | L183: 285.95 | M183: 5.21581
A184: 174 | B184: GRAPHITE | C184: 330.65 | D184: 331.43 | E184: 327.77 | F184: 324.88 | G184: 321.22 | H184: 334.32 | I184: 337.98 | J184: 340.87 | K184: 335.1 | L184: 328.55 | M184: 3.81841
A185: 175 | B185: GRASIM | C185: 1643.45 | D185: 1644.37 | E185: 1626.73 | F185: 1610.02 | G185: 1592.38 | H185: 1661.08 | I185: 1678.72 | J185: 1695.43 | K185: 1662 | L185: 1627.65 | M185: 10.18831
A186: 176 | B186: GESHIP | C186: 616.5 | D186: 622.92 | E186: 607.58 | F186: 598.67 | G186: 583.33 | H186: 631.83 | I186: 647.17 | J186: 656.08 | K186: 638.25 | L186: 614 | M186: 1.39909
A187: 177 | B187: GREENPANEL | C187: 271.3 | D187: 275.35 | E187: 266.30 | F187: 261.30 | G187: 252.25 | H187: 280.35 | I187: 289.40 | J187: 294.40 | K187: 284.4 | L187: 270.35 | M187: 2.48852
A188: 178 | B188: GRINDWELL | C188: 2070.15 | D188: 2093.50 | E188: 2038.00 | F188: 2005.85 | G188: 1950.35 | H188: 2125.65 | I188: 2181.15 | J188: 2213.30 | K188: 2149 | L188: 2061.35 | M188: 0.33617
A189: 179 | B189: GUJALKALI | C189: 669.35 | D189: 669.82 | E189: 659.53 | F189: 649.72 | G189: 639.43 | H189: 679.63 | I189: 689.92 | J189: 699.73 | K189: 680.1 | L189: 660 | M189: 0.71348
A190: 180 | B190: GAEL | C190: 233.05 | D190: 234.50 | E190: 230.05 | F190: 227.05 | G190: 222.60 | H190: 237.50 | I190: 241.95 | J190: 244.95 | K190: 238.95 | L190: 231.5 | M190: 0.85954
A191: 181 | B191: FLUOROCHEM | C191: 3051.6 | D191: 3009.20 | E191: 2954.40 | F191: 2857.20 | G191: 2802.40 | H191: 3106.40 | I191: 3161.20 | J191: 3258.40 | K191: 3064 | L191: 2912 | M191: 2.81015
A192: 182 | B192: GUJGASLTD | C192: 482.8 | D192: 480.17 | E192: 476.38 | F192: 469.97 | G192: 466.18 | H192: 486.58 | I192: 490.37 | J192: 496.78 | K192: 483.95 | L192: 473.75 | M192: 5.98616
A193: 183 | B193: GNFC | C193: 531.75 | D193: 534.13 | E193: 526.02 | F193: 520.28 | G193: 512.17 | H193: 539.87 | I193: 547.98 | J193: 553.72 | K193: 542.25 | L193: 528.4 | M193: 6.73851
A194: 184 | B194: GPPL | C194: 98.45 | D194: 98.22 | E194: 94.73 | F194: 91.02 | G194: 87.53 | H194: 101.93 | I194: 105.42 | J194: 109.13 | K194: 101.7 | L194: 94.5 | M194: 152.91413
A195: 185 | B195: GSFC | C195: 127.4 | D195: 128.57 | E195: 125.33 | F195: 123.27 | G195: 120.03 | H195: 130.63 | I195: 133.87 | J195: 135.93 | K195: 131.8 | L195: 126.5 | M195: 18.57534
A196: 186 | B196: GSPL | C196: 260.05 | D196: 262.67 | E196: 256.48 | F196: 252.92 | G196: 246.73 | H196: 266.23 | I196: 272.42 | J196: 275.98 | K196: 268.85 | L196: 259.1 | M196: 9.01497
A197: 187 | B197: HEG | C197: 1014.25 | D197: 1018.07 | E197: 1005.58 | F197: 996.92 | G197: 984.43 | H197: 1026.73 | I197: 1039.22 | J197: 1047.88 | K197: 1030.55 | L197: 1009.4 | M197: 1.15343
A198: 188 | B198: HCLTECH | C198: 1146.35 | D198: 1145.45 | E198: 1138.90 | F198: 1131.45 | G198: 1124.90 | H198: 1152.90 | I198: 1159.45 | J198: 1166.90 | K198: 1152 | L198: 1138 | M198: 15.01083
A199: 189 | B199: HDFCAMC | C199: 1917.8 | D199: 1916.03 | E199: 1899.77 | F199: 1881.73 | G199: 1865.47 | H199: 1934.07 | I199: 1950.33 | J199: 1968.37 | K199: 1932.3 | L199: 1898 | M199: 1.57947
A200: 190 | B200: HDFCBANK | C200: 1650.55 | D200: 1649.25 | E200: 1636.85 | F200: 1623.15 | G200: 1610.75 | H200: 1662.95 | I200: 1675.35 | J200: 1689.05 | K200: 1661.65 | L200: 1635.55 | M200: 58.88668
A201: 191 | B201: HDFCLIFE | C201: 518.65 | D201: 514.52 | E201: 506.33 | F201: 494.02 | G201: 485.83 | H201: 526.83 | I201: 535.02 | J201: 547.33 | K201: 522.7 | L201: 502.2 | M201: 95.16815
A202: 192 | B202: HFCL | C202: 68.75 | D202: 68.65 | E202: 67.70 | F202: 66.65 | G202: 65.70 | H202: 69.70 | I202: 70.65 | J202: 71.70 | K202: 69.6 | L202: 67.6 | M202: 50.80161
A203: 193 | B203: HLEGLAS | C203: 591.55 | D203: 590.62 | E203: 582.13 | F203: 572.72 | G203: 564.23 | H203: 600.03 | I203: 608.52 | J203: 617.93 | K203: 599.1 | L203: 581.2 | M203: 0.26748
A204: 194 | B204: HAPPSTMNDS | C204: 841.35 | D204: 842.12 | E204: 834.23 | F204: 827.12 | G204: 819.23 | H204: 849.23 | I204: 857.12 | J204: 864.23 | K204: 850 | L204: 835 | M204: 1.55083
A205: 195 | B205: HATSUN | C205: 881.3 | D205: 881.58 | E205: 876.22 | F205: 871.13 | G205: 865.77 | H205: 886.67 | I205: 892.03 | J205: 897.12 | K205: 886.95 | L205: 876.5 | M205: 0.05498
A206: 196 | B206: HAVELLS | C206: 1234.75 | D206: 1234.02 | E206: 1224.73 | F206: 1214.72 | G206: 1205.43 | H206: 1244.03 | I206: 1253.32 | J206: 1263.33 | K206: 1243.3 | L206: 1224 | M206: 6.66625
... 320 more rows

Sheet Bulk Deals
E6: Back To Main Page
A7: Subject : | B7: BULK DEAL | D7: =Main!B10 -> 2023-02-10
A9: Date | B9: Scrip code | C9: Scrip Name | D9: Client Name | E9: Buy / Sell | F9: Quantity Traded | G9: Trade Price / Wt.Avg.trade price | H9: Exchange
A10: 2023-02-09 | B10: 531878 | C10: ANJANIFIN | D10: DURGESHAGARWAL | E10: BUY | F10: 54,150 | G10: 7.92 | H10: BSE
A11: 2023-02-09 | B11: 523896 | C11: APIL | D11: SMT USHA MUKESH GANDHI | E11: SELL | F11: 23,987 | G11: 29.89 | H11: BSE
A12: 2023-02-09 | B12: 512344 | C12: ARAVALIS | D12: GARDEN VIEW MEADOWS PVT. LTD. | E12: SELL | F12: 688,397 | G12: 3.84 | H12: BSE
A13: 2023-02-09 | B13: 512344 | C13: ARAVALIS | D13: CHANDRALEKHA PODDAR | E13: BUY | F13: 656,008 | G13: 3.84 | H13: BSE
A14: 2023-02-09 | B14: 540681 | C14: CHOTHANI | D14: PRIYA KABRA | E14: SELL | F14: 50,000 | G14: 18 | H14: BSE
A15: 2023-02-09 | B15: 540681 | C15: CHOTHANI | D15: URVASHI PRAVIN SETH | E15: BUY | F15: 50,000 | G15: 18 | H15: BSE
A16: 2023-02-09 | B16: 540811 | C16: DML | D16: CYNESIGE INVESTMENTS PRIVATE LIMITED | E16: SELL | F16: 60,000 | G16: 9.85 | H16: BSE
A17: 2023-02-09 | B17: 543324 | C17: GCSL | D17: BONANZA AGENCY LLP | E17: SELL | F17: 108,000 | G17: 93 | H17: BSE
A18: 2023-02-09 | B18: 540936 | C18: GGL | D18: YACOOBALI AIYUB MOHAMMED | E18: SELL | F18: 81,704 | G18: 19.77 | H18: BSE
A19: 2023-02-09 | B19: 540936 | C19: GGL | D19: YACOOBALI AIYUB MOHAMMED | E19: BUY | F19: 53,374 | G19: 19.38 | H19: BSE
A20: 2023-02-09 | B20: 540266 | C20: GLCL | D20: PAVAN KUMAR | E20: SELL | F20: 100,000 | G20: 39.88 | H20: BSE
A21: 2023-02-09 | B21: 540266 | C21: GLCL | D21: SANJAY B SHAH (HUF) | E21: BUY | F21: 104,843 | G21: 39.98 | H21: BSE
A22: 2023-02-09 | B22: 532015 | C22: GRAVITY | D22: DINESHKOILADA | E22: SELL | F22: 79,933 | G22: 4.04 | H22: BSE
A23: 2023-02-09 | B23: 532015 | C23: GRAVITY | D23: ROSMI PIUS THOMAS PIUS | E23: BUY | F23: 50,000 | G23: 4.04 | H23: BSE
A24: 2023-02-09 | B24: 524458 | C24: INDOEURO | D24: VINIT UMEDMAL PICHA | E24: BUY | F24: 91,801 | G24: 20.39 | H24: BSE
A25: 2023-02-09 | B25: 541337 | C25: MILEFUR | D25: KINCHIT SUNILKUMAR MEHTA HUF | E25: BUY | F25: 192,000 | G25: 6.05 | H25: BSE
A26: 2023-02-09 | B26: 541337 | C26: MILEFUR | D26: VIVEKSAWHNEY | E26: SELL | F26: 87,000 | G26: 6.05 | H26: BSE
A27: 2023-02-09 | B27: 543305 | C27: NAVODAYENT | D27: VIVEK KANDA HUF | E27: BUY | F27: 72,000 | G27: 5.41 | H27: BSE
A28: 2023-02-09 | B28: 531802 | C28: PRERINFRA | D28: GRISHMABEN ALKESHBHAI SHAH | E28: SELL | F28: 133,300 | G28: 34.93 | H28: BSE
A29: 2023-02-09 | B29: 543460 | C29: QRIL | D29: SURBHI AGRAWAL GUPTA | E29: BUY | F29: 14,000 | G29: 106.55 | H29: BSE
A30: 2023-02-09 | B30: 537254 | C30: RCIIND | D30: BON LON SECURITIES LTD | E30: BUY | F30: 718,097 | G30: 5.18 | H30: BSE
A31: 2023-02-09 | B31: 537254 | C31: RCIIND | D31: HARSHIT FINVEST PVT LTD | E31: SELL | F31: 718,240 | G31: 5.18 | H31: BSE
A32: 2023-02-09 | B32: 543171 | C32: ROJL | D32: ZENAB AIYUB YACOOBALI | E32: SELL | F32: 85,698 | G32: 41.75 | H32: BSE
A33: 2023-02-09 | B33: 543171 | C33: ROJL | D33: ZENAB AIYUB YACOOBALI | E33: BUY | F33: 40,731 | G33: 41.61 | H33: BSE
A34: 2023-02-09 | B34: 542753 | C34: SEACOAST | D34: MANISHKUMAR RAICHAND SHAH | E34: SELL | F34: 3,000,000 | G34: 3.6 | H34: BSE
A35: 2023-02-09 | B35: 539026 | C35: SSPNFIN | D35: ADITI SHAILENDRA MEHTA | E35: SELL | F35: 20,000 | G35: 7.7 | H35: BSE
A36: 2023-02-09 | B36: 539026 | C36: SSPNFIN | D36: KRANTI PRABHAKAR SHANBHAG | E36: BUY | F36: 76,000 | G36: 7.66 | H36: BSE
A37: 2023-02-09 | B37: 539026 | C37: SSPNFIN | D37: ANIKKUMARVIJAY | E37: SELL | F37: 52,000 | G37: 7.65 | H37: BSE
A38: 2023-02-09 | B38: 539017 | C38: STARHFL | D38: GHANSHYAM GARG | E38: BUY | F38: 500,000 | G38: 46.7 | H38: BSE
A39: 2023-02-09 | B39: 536264 | C39: TIGERLOGS | D39: TIGER SOFTECH INDIA PRIVATE LIMITED | E39: SELL | F39: 56,000 | G39: 404.07 | H39: BSE
A40: 2023-02-09 | B40: 500426 | C40: UTLINDS | D40: RAJESH RAMBHAROSE AGRAWAL | E40: BUY | F40: 17,881 | G40: 1.83 | H40: BSE
A41: 2023-02-09 | B41: 500426 | C41: UTLINDS | D41: RAJESH RAMBHAROSE AGRAWAL | E41: SELL | F41: 619,333 | G41: 1.84 | H41: BSE
A42: 2023-02-09 | B42: 500426 | C42: UTLINDS | D42: SUNILBHAI SHANKARLAL SHAH | E42: BUY | F42: 300,000 | G42: 1.83 | H42: BSE
A43: 2023-02-09 | B43: 539402 | C43: VAL | D43: SAMEER RAMESH GIRI | E43: BUY | F43: 84,810 | G43: 23.03 | H43: BSE
A44: 2023-02-09 | B44: 543436 | C44: WITS | D44: PRABHABEN CHANDULAL TUVER | E44: BUY | F44: 16,000 | G44: 180 | H44: BSE
A45: 2023-02-09 | B45: 543436 | C45: WITS | D45: PARTH SHAH | E45: SELL | F45: 16,000 | G45: 180 | H45: BSE
A46: 2023-02-09 | B46: AKG | C46: AKG Exim Limited | D46: MUNISH BAJAJ | E46: BUY | F46: 175,000 | G46: 27.9 | H46: NSE
A47: 2023-02-09 | B47: ATULAUTO | C47: Atul Auto Limited | D47: XTX MARKETS LLP | E47: BUY | F47: 149,072 | G47: 370.29 | H47: NSE
A48: 2023-02-09 | B48: ATULAUTO | C48: Atul Auto Limited | D48: QE SECURITIES | E48: BUY | F48: 108,246 | G48: 372.18 | H48: NSE
A49: 2023-02-09 | B49: ATULAUTO | C49: Atul Auto Limited | D49: GRAVITON RESEARCH CAPITAL LLP | E49: BUY | F49: 255,926 | G49: 370.76 | H49: NSE
A50: 2023-02-09 | B50: JETFREIGHT | C50: Jet Freight Logistics Ltd | D50: SAHITAY COMMOSALES LLP | E50: BUY | F50: 477,481 | G50: 16.28 | H50: NSE
A51: 2023-02-09 | B51: JETFREIGHT | C51: Jet Freight Logistics Ltd | D51: JILESH NAVIN CHHEDA | E51: BUY | F51: 403,375 | G51: 15.87 | H51: NSE
A52: 2023-02-09 | B52: JETFREIGHT | C52: Jet Freight Logistics Ltd | D52: JYOTIKA DEEPAK SHENOY | E52: BUY | F52: 200,000 | G52: 16 | H52: NSE
A53: 2023-02-09 | B53: MARSHALL | C53: Marshall Machines Ltd | D53: RAJNEESH AGARWAL HUF | E53: BUY | F53: 100,502 | G53: 35.99 | H53: NSE
A54: 2023-02-09 | B54: MARSHALL | C54: Marshall Machines Ltd | D54: JILESH NAVIN CHHEDA | E54: BUY | F54: 133,365 | G54: 35.84 | H54: NSE
A55: 2023-02-09 | B55: MHLXMIRU | C55: Mahalaxmi Rubtech Limited | D55: K M VISARIA FAMILY TRUST | E55: BUY | F55: 100,000 | G55: 270 | H55: NSE
A56: 2023-02-09 | B56: NARMADA | C56: Narmada Agrobase Limited | D56: GOPIKUMAR BHAVANBHAI KHANT | E56: BUY | F56: 90,252 | G56: 26.06 | H56: NSE
A57: 2023-02-09 | B57: SCAPDVR | C57: Stampede Capital Limited | D57: MUDUPULAVEMULA SURENDRANADHA REDDY | E57: BUY | F57: 253,634 | G57: 9 | H57: NSE
A58: 2023-02-09 | B58: SCAPDVR | C58: Stampede Capital Limited | D58: CITADEL SECURITIES INDIA MARKETS PRIVATE LIMITED | E58: BUY | F58: 209,850 | G58: 8.99 | H58: NSE
A59: 2023-02-09 | B59: SCAPDVR | C59: Stampede Capital Limited | D59: NIKHIL OMPRAKASH MALPANI | E59: BUY | F59: 310,051 | G59: 9.67 | H59: NSE
A60: 2023-02-09 | B60: SCAPDVR | C60: Stampede Capital Limited | D60: B.W.TRADERS | E60: BUY | F60: 300,000 | G60: 8.8 | H60: NSE
A61: 2023-02-09 | B61: TVTODAY | C61: TV Today Network Limited | D61: SEETHA KUMARI | E61: BUY | F61: 1,090 | G61: 304.5 | H61: NSE
A62: 2023-02-09 | B62: ATULAUTO | C62: Atul Auto Limited | D62: GRAVITON RESEARCH CAPITAL LLP | E62: SELL | F62: 255,926 | G62: 370.81 | H62: NSE
A63: 2023-02-09 | B63: ATULAUTO | C63: Atul Auto Limited | D63: XTX MARKETS LLP | E63: SELL | F63: 142,938 | G63: 370.16 | H63: NSE
A64: 2023-02-09 | B64: ATULAUTO | C64: Atul Auto Limited | D64: QE SECURITIES | E64: SELL | F64: 113,648 | G64: 369.24 | H64: NSE
A65: 2023-02-09 | B65: HOMESFY | C65: Homesfy Realty Limited | D65: CITRINE FUND LIMITED | E65: SELL | F65: 24,000 | G65: 625.82 | H65: NSE
A66: 2023-02-09 | B66: JETFREIGHT | C66: Jet Freight Logistics Ltd | D66: SAHITAY COMMOSALES LLP | E66: SELL | F66: 477,481 | G66: 16.25 | H66: NSE
A67: 2023-02-09 | B67: JETFREIGHT | C67: Jet Freight Logistics Ltd | D67: JILESH NAVIN CHHEDA | E67: SELL | F67: 403,375 | G67: 16.03 | H67: NSE
A68: 2023-02-09 | B68: MARSHALL | C68: Marshall Machines Ltd | D68: JILESH NAVIN CHHEDA | E68: SELL | F68: 133,365 | G68: 36.11 | H68: NSE
A69: 2023-02-09 | B69: MHLXMIRU | C69: Mahalaxmi Rubtech Limited | D69: AMAYSHA TEXTILES PRIVATE LIMITED | E69: SELL | F69: 64,329 | G69: 270.04 | H69: NSE
A70: 2023-02-09 | B70: MHLXMIRU | C70: Mahalaxmi Rubtech Limited | D70: KABRA KAILASH | E70: SELL | F70: 64,108 | G70: 270.04 | H70: NSE
A71: 2023-02-09 | B71: NARMADA | C71: Narmada Agrobase Limited | D71: GOPIKUMAR BHAVANBHAI KHANT | E71: SELL | F71: 30,294 | G71: 26.3 | H71: NSE
A72: 2023-02-09 | B72: SCAPDVR | C72: Stampede Capital Limited | D72: CITADEL SECURITIES INDIA MARKETS PRIVATE LIMITED | E72: SELL | F72: 297,686 | G72: 9.65 | H72: NSE
A73: 2023-02-09 | B73: SCAPDVR | C73: Stampede Capital Limited | D73: MUDUPULAVEMULA SURENDRANADHA REDDY | E73: SELL | F73: 353,634 | G73: 9.18 | H73: NSE
A74: 2023-02-09 | B74: TVTODAY | C74: TV Today Network Limited | D74: SEETHA KUMARI | E74: SELL | F74: 470,156 | G74: 305.3 | H74: NSE

Sheet Call Tracker (Equity & F&O)
M5: Back To Main Page
A6: Retail Research Technical Calls & Fundamental Performance Report for the month of Jan-2022
M7: =Main!B10 -> 2023-02-10
B8: Positional Call
A9: Sr.no | B9: Date | D9: Company | E9: Rec | F9: Rec Price | G9: Stop Loss*** | H9: Call Closed At | I9: Target | J9: Remark | K9: Profit / Loss per Share | L9: All charges | M9: Net Gain / Loss % | N9: Status | O9: Closed Date | P9: Market Closing Price
A10: 1 | B10: 2022-10-27 | D10: ASHOKLEY | E10: Buy | F10: 147 | G10: 137 | H10: 154.5 | I10: 160-170 | J10: Profit of Rs.7.5/- | K10: =H10-F10 -> 7.5 | L10: =(F10*-0.7)/100 -> -1.03 | M10: =(K10+L10)/F10 -> 4.40% | N10: Successful | O10: 2022-02-02 | R10: N
A11: 2 | B11: 2022-11-25 | D11: SANOFI | E11: Buy | F11: 5670 | G11: 5250 | H11: 5905 | I11: 6200-6500 | J11: Part profit of Rs.235/- | K11: =H11-F11 -> 235 | L11: =(F11*-0.7)/100 -> -39.69 | M11: =(K11+L11)/F11 -> 3.44% | N11: Successful | O11: 2022-12-28 | R11: H
A12: 3 | B12: 2022-12-01 | D12: TCS | E12: Buy<> | F12: 3380 | G12: 3140 | I12: 3800-4000 | J12: Open | R12: H
A13: 4 | B13: 2023-01-10 | D13: BHARTIARTL | E13: Buy | F13: 780-800 | G13: 735 | I13: 870-900 | J13: Open | R13: H
A14: 5 | B14: 2023-01-16 | D14: NAVINFLUOR | E14: Buy | F14: 4025 | G14: 3770 | H14: 4260 | I14: 4300-4500 | J14: Profit of Rs.235/- | K14: =H14-F14 -> 235 | L14: =(F14*-0.7)/100 -> -28.18 | M14: =(K14+L14)/F14 -> 5.14% | N14: Successful | O14: 2023-02-07 | R14: N
A15: 6 | B15: 2023-01-19 | D15: SRF | E15: Buy | F15: 2140 | G15: 2000 | H15: 2235 | I15: 2300-2400 | J15: Part Profit of Rs.95/- | K15: 95 | L15: -14.98 | M15: 3.74% | N15: Successful | O15: 2023-02-09 | R15: N
A16: 7 | B16: 2023-01-24 | D16: PIIND | E16: Accu | F16: 3045 | G16: 2890 | H16: 3195 | I16: 3300-3400 | J16: Part Profit of Rs.150/- | K16: =H16-F16 -> 150 | L16: =(F16*-0.7)/100 -> -21.32 | M16: =(K16+L16)/F16 -> 4.23% | N16: Successful | O16: 2023-02-09 | R16: H
A17: 8 | B17: 2023-01-24 | D17: KIMS | E17: Buy | F17: 1435 | G17: 1340 | H17: 1512.5 | I17: 1580-1650 | J17: Part Profit of Rs.77.5/- | K17: =H17-F17 -> 77.5 | L17: =(F17*-0.7)/100 -> -10.05 | M17: =(K17+L17)/F17 -> 4.70% | N17: Successful | O17: 2023-01-31 | R17: N
A18: 9 | B18: 2023-01-25 | D18: REDINGTON | E18: Accu | F18: 177.5 | G18: 167 | H18: 189.5 | I18: 195-200 | J18: Profit of Rs.12/- | K18: =H18-F18 -> 12 | L18: =(F18*-0.7)/100 -> -1.24 | M18: =(K18+L18)/F18 -> 6.06% | N18: Successful | O18: 2023-02-01 | R18: H
A19: 10 | B19: 2023-01-27 | D19: HDFCAMC | E19: Accu | F19: 1930-1890 | G19: 1790 | I19: 2050-2150 | J19: Open | R19: H
A20: 11 | B20: 2023-02-01 | D20: FLUOROCHEM | E20: Accu | F20: 2645 | G20: 2480 | H20: 2840 | I20: 2900-3000 | J20: Profit of Rs.195/- | K20: =H20-F20 -> 195 | L20: =(F20*-0.7)/100 -> -18.52 | M20: =(K20+L20)/F20 -> 6.67% | N20: Successful | O20: 2023-02-07
A21: 12 | B21: 2023-02-01 | D21: AXISBANK | E21: Accu | F21: 825-850 | G21: 790 | I21: 900-950 | J21: Open
A22: 13 | B22: 2023-02-02 | D22: SBIN | E22: Accu | F22: 522.5 | G22: 478 | H22: 550.5 | I22: 570-600 | J22: Part profit of Rs.28/- | K22: =H22-F22 -> 28 | L22: =(F22*-0.7)/100 -> -3.66 | M22: =(K22+L22)/F22 -> 4.66% | N22: Successful | O22: 2023-02-07
A23: 14 | B23: 2023-02-06 | D23: LTIM | E23: Accu | F23: 4500 | G23: 4190 | H23: 4692.5 | I23: 4800-5000 | J23: Part profit of Rs.192.5/- | K23: =H23-F23 -> 192.5 | L23: =(F23*-0.7)/100 -> -31.50 | M23: =(K23+L23)/F23 -> 3.58% | N23: Successful | O23: 2023-02-08
A24: 15 | B24: 2023-02-06 | D24: JSWSTEEL | E24: Accu | F24: 717.5-695 | G24: 660 | I24: 770-800 | J24: Open
A25: 16 | B25: 2023-02-06 | D25: ACC | E25: Accu | F25: 1890 | G25: 1745 | H25: 2025 | I25: 2100-2200 | J25: Profit of Rs.135/- | K25: =H25-F25 -> 135 | L25: =(F25*-0.7)/100 -> -13.23 | M25: =(K25+L25)/F25 -> 6.44% | N25: Successful | O25: 2023-02-07
A26: 17 | B26: 2023-02-08 | D26: INTELLECT | E26: Accu | F26: 452.5-432.5 | G26: 415 | I26: 490-510 | J26: Open
A31: CLBS = Closing Basis ***
A32: Dividend adjusted <> | F32: Reinitiated $
A33: Part book {} | D33: s | F33: Revised stoploss #
B35: Momentum Call
A36: Sr.no | B36: Date | D36: Company | E36: Rec | F36: Rec Price | G36: Stop Loss | H36: Call Closed At | I36: Target | J36: Remark | K36: Profit / Loss per Share/Lot | L36: All charges | M36: Net Gain / Loss % | N36: Status | O36: Closed Date
A37: 1 | B37: 2023-01-31 | D37: SBIN | E37: Buy | F37: 551 | G37: 530 | H37: 530 | I37: 575-585 | J37: Loss of Rs.21 | K37: =H37-F37 -> -21 | L37: =(F37*-0.7)/100 -> -3.86 | M37: =(K37+L37)/F37 -> -4.51% | N37: Unsuccessful | O37: 2023-02-01 | R37: H
A38: 2 | B38: 2023-02-01 | D38: LT | E38: Buy | F38: 2110 | G38: 2035 | H38: 2175 | I38: 2200-2250 | J38: Profit of Rs.65/- | K38: 65 | L38: =(F38*-0.07)/100 -> -1.48 | M38: 3.01% | N38: Successful | O38: 2023-02-01
A39: 3 | B39: 2023-02-01 | D39: AVANTIFEED | E39: Buy | F39: 406 | G39: 390 | H39: 388 | I39: 425-435 | J39: Loss of Rs.18 | K39: =H39-F39 -> -18 | L39: =(F39*-0.07)/100 -> -0.28 | M39: =(K39+L39)/F39 -> -4.50% | N39: Unsuccessful | O39: 2023-02-01
A40: 4 | B40: 2023-02-01 | D40: SIEMENS | E40: Buy | F40: 2965 | G40: 2850 | H40: 3044 | I40: 3100-3150 | J40: Profit of Rs.79/- | K40: 79 | L40: =(F40*-0.7)/100 -> -20.76 | M40: 1.96% | N40: Successful | O40: 2023-02-03
A41: 5 | B41: 2023-02-02 | D41: RELIANCE | E41: Buy | F41: 2310-2320 | G41: 2245 | I41: 2400-2450 | J41: Open
A42: 6 | B42: 2023-02-02 | D42: LT | E42: Buy | F42: 2120-2130 | G42: 2060 | I42: 2220-2260 | J42: Open
A43: 7 | B43: 2023-02-07 | D43: PRESTIGE | E43: Buy | F43: 398-400 | G43: 387 | I43: 415-425 | J43: Open
A44: 8 | B44: 2023-02-07 | D44: M&M | E44: Buy | F44: 1360-1370 | G44: 1330 | I44: 1410-1430 | J44: Open
A45: 9 | B45: 2023-02-08 | D45: BHARTIARTL | E45: Buy | F45: 770-775 | G45: 748 | I45: 800-810 | J45: Open
A49: CLBS = Closing Basis *** | H49: *
A50: Dividend adjusted <> | F50: Reinitiated $
F51: Revised stoploss #
A53: Master Trade High Risk
A54: Sr.no | B54: Date | D54: Company | E54: Rec | F54: Rec Price | G54: Stop Loss | H54: Call Closed At | I54: Target | J54: Remark | K54: Profit / Loss per share | L54: All charges | M54: Gain / Loss per Lot | N54: Lot | O54: Status | P54: Closed Date
A55: 1 | B55: 2023-02-09 | D55: RELIANCE FEB FUT | E55: Buy | F55: 2344-2348 | G55: 2297 | I55: 2420-2450 | J55: Open
A57: Master Trade Medium Risk
A58: Sr.no | B58: Date | D58: Company | E58: Rec | F58: Rec Price | G58: Stop Loss | H58: Call Closed At | I58: Target | J58: Remark | K58: Profit/ Loss per lot | L58: All charges | M58: Gain / Loss per Lot | N58: Lot | O58: Status | P58: Closed Date
A59: 1 | B59: 2023-01-25 | D59: BEL 107 CE FEB | E59: Buy | F59: 0.95 | G59: 0.2 | H59: 0.95 | I59: 2-2.50 | J59: Neutral/- | K59: =H59-F59 -> 0 | L59: 100.00 | M59: =(K59*N59)-L59 -> -100.0 | N59: 5700 | O59: Neutral | P59: 2023-02-01 | R59: H
A60: 2 | B60: 2023-01-27 | D60: NIFTY 17800 CE 2 FEB | E60: Buy | F60: 107.5 | H60: 202.5 | J60: Profit of Rs.21 /- | K60: =H60-F60 -> 95 | L60: 100.00 | M60: 850.0 | N60: 50 | O60: Successful | P60: 2023-02-01 | R60: N
D61: NIFTY 17300 PE 2 FEB | E61: Buy | F61: 77.5 | H61: 3.5 | K61: =H61-F61 -> -74 | L61: 100.00 | N61: 50
A62: 3 | B62: 2023-02-01 | D62: NIFTY 17800 PE 2 FEB | E62: Buy | F62: 96 | G62: 18 | H62: 147.5 | I62: 200-250 | J62: Profit of Rs.51.5 /- | K62: =H62-F62 -> 51.5 | L62: 100.00 | M62: 2475.0 | N62: 50 | O62: Successful | P62: 2023-02-01
A63: 4 | B63: 2023-02-03 | D63: RELIANCE 2360 CE FEB | E63: Buy | F63: 41 | G63: 24 | H63: 46 | I63: 70-80 | J63: Profit of Rs.5 /- | K63: =H63-F63 -> 5 | L63: 100.00 | M63: =(K63*N63)-100 -> 1150.0 | N63: 250 | O63: Successful | P63: 2023-02-08
A64: 5 | B64: 2023-02-09 | D64: HDFCLIFE 510 PE FEB | E64: Buy | F64: 6-6.8 | G64: 3 | I64: 10-12.0 | J64: Open
A67: Techno -Funda (positional)
A68: Sr.no | B68: Date | D68: Company | E68: Rec | F68: Rec Price | G68: Stop Loss*** | H68: Call Closed At | I68: Target | J68: Remark | K68: Profit / Loss per Share/Lot | L68: All charges | M68: Net Gain / Loss % | N68: Status | O68: Closed Date | P68: Market Closing Price
A69: 1 | B69: 2022-10-06 | D69: AMBIKCO | E69: Buy | F69: 1420-1620 | G69: 1220 | I69: 2000-2300 | J69: Open | R69: H
A71: CLBS = Closing Basis *** | F71: Reinitiated $
A72: Dividend adjusted <> | F72: Revised stoploss # | H72: .................
B76: Investment Idea
A77: Sr.no | B77: Date | D77: Company | E77: Rec | F77: Rec Price | G77: Point of Review | H77: Close Rate | I77: Target | J77: Remark | K77: Profit / Loss per Share | L77: Gain / Loss % | M77: Status | N77: Closed Date
A78: 1 | B78: 2013-11-01 | D78: L&T Finance Holding | E78: Accu | F78: 82.00 | G78: - | H78: 100 | I78: 100.00 | J78: Target Achieved | K78: =H78-F78 -> 18.00 | L78: =K78/F78 -> 21.95% | M78: Successful | N78: 2016-10-14
A79: 2 | B79: 2014-06-04 | D79: Finolex Inds | E79: Buy | F79: 257.00 | G79: - | H79: 300 | I79: 300.00 | J79: Target Achieved | K79: 43.00 | L79: 16.73% | M79: Successful | N79: 2014-07-02
A80: 3 | B80: 2014-07-08 | D80: JK Cement | E80: Buy | F80: 393.00 | G80: - | H80: 468 | I80: 468.00 | J80: Target Achieved | K80: 75.00 | L80: 19.08% | M80: Successful | N80: 2014-08-12
A81: 4 | B81: 2014-08-06 | D81: Finolex Cables | E81: Buy | F81: 205.00 | G81: - | H81: 275 | I81: 250.00 | J81: Target Achieved | K81: 70.00 | L81: 34.15% | M81: Successful | N81: 2014-11-19
A82: 5 | B82: 2014-09-04 | D82: Exide Inds | E82: Buy | F82: 162.00 | G82: - | H82: 190 | I82: 190.00 | J82: Target Achieved | K82: 28.00 | L82: 17.28% | M82: Successful | N82: 2015-01-02
A83: 6 | B83: 2014-09-04 | D83: Deepak Nitrite | E83: Buy | F83: 75.00 | G83: - | H83: 91.5 | I83: 95-100 | J83: Profit of Rs.16.50/- | K83: 16.50 | L83: 22.00% | M83: Successful | N83: 2014-11-11
A84: 7 | B84: 2014-10-01 | D84: Mercks | E84: Buy | F84: 850.00 | G84: - | H84: 982.5 | I84: 1050.00 | J84: Profit of Rs.132.50/- | K84: 132.50 | L84: 15.59% | M84: Successful | N84: 2015-02-04
A85: 8 | B85: 2014-10-01 | D85: Grindwell Norton | E85: Buy | F85: 475.00 | G85: - | H85: 515 | I85: 600.00 | J85: Profit of Rs.40/- | K85: 40.00 | L85: 8.42% | M85: Successful | N85: 2014-10-27
A86: 9 | B86: 2014-10-01 | D86: Snowman Logistics | E86: Buy | F86: 86.00 | G86: - | H86: 99 | I86: 140.00 | J86: Profit of Rs.13.00/- | K86: 13.00 | L86: 15.12% | M86: Successful | N86: 2014-10-27
A87: 10 | B87: 2014-10-14 | D87: Birla Corp | E87: Buy | F87: 496.60 | G87: - | H87: 621 | I87: 580.00 | J87: Target Achieved | K87: 124.40 | L87: 25.05% | M87: Successful | N87: 2016-08-23
A88: 11 | B88: 2014-10-14 | D88: Ultratech Cem | E88: Buy | F88: 2481.90 | G88: - | H88: 2840 | I88: 2870.00 | J88: Profit of Rs.358.10/- | K88: 358.10 | L88: 14.43% | M88: Successful | N88: 2015-01-13
A89: 12 | B89: 2014-10-16 | D89: Sintex Inds | E89: Buy | F89: 84.50 | G89: - | H89: 93 | I89: 110.00 | J89: Profit of Rs.8.50/- | K89: 8.50 | L89: 10.06% | M89: Successful | N89: 2014-10-27
A90: 13 | B90: 2014-10-16 | D90: HSIL | E90: Buy | F90: 401.00 | G90: - | H90: 428 | I90: 450.00 | J90: Profit of Rs.27.00/- | K90: 27.00 | L90: 6.73% | M90: Successful | N90: 2015-01-16
A91: 14 | B91: 2014-10-16 | D91: Eveready Inds | E91: Buy | F91: 101.00 | G91: - | H91: 112 | I91: 120.00 | J91: Profit of Rs.11.00/- | K91: 11.00 | L91: 10.89% | M91: Successful | N91: 2014-10-27
A92: 15 | B92: 2014-11-11 | D92: Pennar Inds | E92: Buy | F92: 59.00 | G92: - | H92: 76 | I92: 76.00 | J92: Target Achieved | K92: 17.00 | L92: 28.81% | M92: Successful | N92: 2017-10-24
A93: 16 | B93: 2014-11-11 | D93: Snowman Logistics | E93: Buy | F93: 99.00 | G93: - | H93: 120 | I93: 120.00 | J93: Profit of Rs.21/- | K93: 21.00 | L93: 21.21% | M93: Successful | N93: 2014-11-17
A94: 17 | B94: 2014-11-13 | D94: Dharamsi Morarji Chem | E94: Buy | F94: 22.00 | G94: - | H94: 33.55 | I94: 32.00 | J94: Profit of Rs 11.55/- | K94: 11.55 | L94: 52.50% | M94: Successful | N94: 2015-07-03
A95: 18 | B95: 2014-12-03 | D95: Tatachem | E95: Buy | F95: 440.00 | G95: - | H95: 520 | I95: 520.00 | J95: Profit of Rs 80.00/- | K95: 80.00 | L95: 18.18% | M95: Successful | N95: 2015-07-23
A96: 19 | B96: 2014-12-03 | D96: Advanta | E96: Buy | F96: 360.00 | G96: - | H96: 427 | I96: 425.00 | J96: Profit of Rs.67.00/- | K96: 67.00 | L96: 18.61% | M96: Successful | N96: 2015-02-23
A97: 20 | B97: 2015-01-08 | D97: GDL | E97: Buy | F97: 360.00 | G97: - | H97: 455 | I97: 420.00 | J97: Profit of Rs.95.00/- | K97: 95.00 | L97: 26.39% | M97: Successful | N97: 2015-01-20
A98: 21 | B98: 2015-01-08 | D98: NRB Bearing | E98: Buy | F98: 130.00 | H98: 175.5 | I98: 165.00 | J98: Profit of Rs 45.50/- | K98: 45.50 | L98: 35.00% | M98: Successful | N98: 2017-12-19
A99: 22 | B99: 2015-02-05 | D99: GSFC | E99: Accu | F99: 98.00 | H99: 120 | I99: 120.00 | J99: Target Achieved | K99: 22.00 | L99: 22.45% | M99: Successful | N99: 2017-01-18
A100: 23 | B100: 2015-02-05 | D100: Sundrmfast | E100: Accu | F100: 196.00 | H100: 262 | I100: 255.00 | J100: Target Achieved | K100: 66.00 | L100: 33.67% | M100: Successful | N100: 2016-08-17
A101: 24 | B101: 2015-03-04 | D101: GPPL | E101: Accu | F101: 235 | H101: 77.00 | I101: 280-285 | J101: Loss of Rs.158/- | K101: -158.00 | L101: -67.23% | M101: Unsuccessful | N101: 2019-02-26
A102: 25 | B102: 2015-03-04 | D102: ORIENTCEM | E102: Accu | F102: 185.00 | H102: 224 | I102: 220-225 | J102: Target Achieved | K102: 39.00 | L102: 21.08% | M102: Successful | N102: 2016-10-04
A103: 26 | B103: 2015-03-27 | D103: PFS | E103: Accu | F103: 49.5 | H103: 15.85 | I103: 67.00 | J103: Loss of Rs.33.65/- | K103: -33.65 | L103: -68% | M103: Unsuccessful | N103: 2019-06-11
A104: 27 | B104: 2015-03-30 | D104: Walchandnagar Ind Ltd | E104: Accu | F104: 183.50 | H104: 219 | I104: 218.00 | J104: Profit of Rs.35.50/- | K104: 35.50 | L104: 19.35% | M104: Successful | N104: 2015-04-09
A105: 28 | B105: 2015-04-20 | D105: Kalpataru Power Transmission Ltd | E105: Accu | F105: =(227+237)/2 -> 232.00 | H105: 298 | I105: 298.00 | J105: Target Achieved | K105: 66.00 | L105: 28.45% | M105: Successful | N105: 2017-03-29
A106: 29 | B106: 2015-05-04 | D106: Mastek Ltd | E106: Buy | F106: 385.00 | H106: =212.5+331 -> 543.5 | I106: 510.00 | J106: Profit of Rs 158.50/- | K106: 158.50 | L106: 41.17% | M106: Successful | N106: 2015-08-19
A107: 30 | B107: 2015-05-04 | D107: Suprajit Eng | E107: Buy | F107: 115.50 | H107: 146 | I107: 142.00 | J107: Profit of Rs 30.50/- | K107: 30.50 | L107: 26.41% | M107: Successful | N107: 2015-07-17
A108: 31 | B108: 2015-05-27 | D108: TCI | E108: Buy | F108: 237.50 | H108: 279.5 | I108: 278.00 | J108: Target Achieved | K108: 42.00 | L108: 17.68% | M108: Successful | N108: 2015-08-06
A109: 32 | B109: 2015-06-19 | D109: HSIL | E109: Accu | F109: 340.00 | H109: 448 | I109: 448.00 | J109: Target Achieved | K109: 108.00 | L109: 31.76% | M109: Successful | N109: 2017-10-10
A110: 33 | B110: 2015-07-06 | D110: Capital First | E110: Accu | F110: 390.00 | H110: 460 | I110: 460.00 | J110: Target Achieved | K110: 70.00 | L110: 17.95% | M110: Successful | N110: 2016-04-18
A111: 34 | B111: 2015-07-10 | D111: Dolphin OffShore | E111: Accu | F111: 122.5 | H111: 61.00 | I111: 172.00 | J111: Loss of Rs.61.50/- | K111: -61.50 | L111: -50.20% | M111: Unsuccessful | N111: 2018-08-21
A112: 35 | B112: 2015-08-03 | D112: Allcargo logistics | E112: Accu | F112: 297.50 | H112: 350 | I112: 360.00 | J112: Profit of Rs 52.50/- | K112: 52.50 | L112: 17.65% | M112: Successful | N112: 2015-08-16
A113: 36 | B113: 2015-08-03 | D113: Camline Fine | E113: Accu | F113: 115.50 | H113: 149 | I113: 140.00 | J113: Profit of Rs 33.50/- | K113: 33.50 | L113: 29.00% | M113: Successful | N113: 2017-01-05
A114: 37 | B114: 2015-09-04 | D114: TCI | E114: Accu | F114: 226.00 | H114: 292 | I114: 292.00 | J114: Target Achieved | K114: 66.00 | L114: 29.20% | M114: Successful | N114: 2015-10-09
A115: 38 | B115: 2015-09-07 | D115: Kalpataru Power Transmission Ltd | E115: Accu | F115: 232.50 | H115: 312.5 | I115: 310.00 | J115: Target Achieved | K115: 80.00 | L115: 34.41% | M115: Successful | N115: 2017-03-29
A116: 39 | B116: 2015-09-21 | D116: LLOYD ELECTRIC & ENG LTD | E116: Accu | F116: 196.50 | H116: 238 | I116: 238.00 | J116: Target Achieved | K116: 41.50 | L116: 21.12% | M116: Successful | N116: 2015-10-14
A117: 40 | B117: 2015-09-24 | D117: L&T Finance Holding | E117: Accu | F117: 65.00 | H117: 82 | I117: 82.00 | J117: Target Achieved | K117: 17.00 | L117: 26.15% | M117: Successful | N117: 2016-07-27
A118: 41 | B118: 2015-10-14 | D118: KEC International ltd | E118: Accu | F118: 144.00 | H118: 182.5 | I118: 181.00 | J118: Target Achieved | K118: 38.50 | L118: 26.74% | M118: Successful | N118: 2017-03-23
A119: 42 | B119: 2015-10-14 | D119: Gruh Finance | E119: Accu | F119: 264.00 | H119: 311 | I119: 311.00 | J119: Target Achieved | K119: 47.00 | L119: 17.80% | M119: Successful | N119: 2016-08-22
A120: 43 | B120: 2015-11-10 | D120: Pidilitind | E120: Buy | F120: 549.50 | H120: 630 | I120: 630.00 | J120: Target Achieved | K120: 80.50 | L120: 14.65% | M120: Successful | N120: 2016-02-19
A121: 44 | B121: 2015-12-04 | D121: Zensar Technology | E121: Accu | F121: 1027.50 | H121: 1315 | I121: 1250.00 | J121: Target Achieved | K121: 287.50 | L121: 27.98% | M121: Successful | N121: 2018-05-24
A122: 45 | B122: 2015-12-29 | D122: Vinati Organics Ltd | E122: Accu | F122: 465.00 | H122: 540 | I122: 540.00 | J122: Target Achieved | K122: 75.00 | L122: 16.13% | M122: Successful | N122: 2016-06-09
A123: 46 | B123: 2016-01-11 | D123: GSFC | E123: Buy | F123: 81.00 | H123: 110 | I123: 110.00 | J123: Target Achieved | K123: 29.00 | L123: 35.80% | M123: Successful | N123: 2017-01-10
A124: 47 | B124: 2016-01-13 | D124: SSWL | E124: Buy | F124: 417.50 | H124: 547 | I124: 535.00 | J124: Target Achieved | K124: 129.50 | L124: 31.02% | M124: Successful | N124: 2016-07-27
A125: 48 | B125: 2016-02-08 | D125: Persistent System Ltd | E125: Accu | F125: 650.00 | H125: 800 | I125: 800.00 | J125: Target Achieved | K125: 150.00 | L125: 23.08% | M125: Successful | N125: 2018-02-23
A126: 49 | B126: 2016-03-04 | D126: UPL | E126: Accu | F126: 437.50 | H126: 504.5 | I126: 522.00 | J126: Profit of Rs.67/- | K126: 67.00 | L126: 15.31% | M126: Successful | N126: 2016-04-20
A127: 50 | B127: 2016-03-09 | D127: Ashoka Buildcon Ltd | E127: Accu | F127: 189.50 | H127: 218 | I127: 218.00 | J127: Target Achieved | K127: 28.50 | L127: 15.04% | M127: Successful | N127: 2017-10-26
A128: 51 | B128: 2016-04-11 | D128: PTC INDIA FIN SERV LTD | E128: Accu | F128: 36.5 | H128: 15.85 | I128: 60.00 | J128: Loss of Rs.20.65/- | K128: -20.65 | L128: -56.58% | M128: Unsuccessful | N128: 2019-06-11
A129: 52 | B129: 2016-04-12 | D129: CAMLINFINE $ | E129: Accu | F129: 93.00 | H129: 149 | I129: 140.00 | J129: Profit of Rs 56/- | K129: 56.00 | L129: 60.22% | M129: Successful | N129: 2017-01-05
A130: 53 | B130: 2016-04-12 | D130: Greaves Cotton Ltd. | E130: Accu | F130: 130.00 | H130: 150 | I130: 150-155 | J130: Target Achieved | K130: 20.00 | L130: 15.38% | M130: Successful | N130: 2016-07-13
A131: 54 | B131: 2016-04-13 | D131: DHFL | E131: Accu | F131: 196.00 | H131: 299 | I131: 299.00 | J131: Target Achieved | K131: 103.00 | L131: 52.55% | M131: Successful | N131: 2016-09-07
A132: 55 | B132: 2016-04-13 | D132: Magma | E132: Accu | F132: 88.00 | H132: 103 | I132: 103.00 | J132: Target Achieved | K132: 15.00 | L132: 17.05% | M132: Successful | N132: 2016-06-09
A133: 56 | B133: 2016-05-02 | D133: KEC International ltd $ | E133: Accu | F133: 127.50 | H133: 148 | I133: 148-150 | J133: Target Achieved | K133: =H133-F133 -> 20.50 | L133: =K133/F133 -> 16.08% | M133: Successful | N133: 2016-07-13
A134: 57 | B134: 2016-05-03 | D134: Mindtree | E134: Accu | F134: 675.00 | H134: 815 | I134: 790-800 | J134: Target Achieved | K134: =H134-F134 -> 140.00 | L134: =K134/F134 -> 20.74% | M134: Successful | N134: 2018-02-23
A135: 58 | B135: 2016-06-01 | D135: Atulauto | E135: Accu | F135: 500 | H135: 232.50 | I135: 565-570 | J135: Loss of Rs.267.50 /- | K135: =H135-F135 -> -267.50 | L135: =K135/F135 -> -53.50% | M135: Unsuccessful | N135: 2019-09-27
A136: 59 | B136: 2016-06-06 | D136: TRITURBINE | E136: Accu | F136: 110.00 | H136: 126.5 | I136: 125.00 | J136: Profit of Rs.16.50/- | K136: =H136-F136 -> 16.50 | L136: =K136/F136 -> 15.00% | M136: Successful | N136: 2016-07-01
A137: 60 | B137: 2016-06-17 | D137: Pennar Industries Ltd | E137: Accu | F137: 44.00 | H137: 69.5 | I137: 69.50 | J137: Profit of Rs.25.50/- | K137: =H137-F137 -> 25.50 | L137: =K137/F137 -> 57.95% | M137: Successful | N137: 2017-08-30
A138: 61 | B138: 2016-06-28 | D138: EVEREADY | E138: Accu | F138: 262.50 | H138: 340 | I138: 333.00 | J138: Profit of Rs.77.50/- | K138: 77.50 | L138: 29.52% | M138: Successful | N138: 2017-10-09
A139: 62 | B139: 2016-06-28 | D139: FIEMIND | E139: Accu | F139: 840.00 | H139: 1230 | I139: 1230.00 | J139: Target Achieved | K139: 390.00 | L139: 46.43% | M139: Successful | N139: 2016-10-06
A140: 63 | B140: 2016-07-05 | D140: Bajaj Corp Ltd | E140: Accu | F140: 395 | H140: =(468.5+342.5)/2 -> 405.50 | I140: 510.00 | J140: Profit of Rs.10.50/- | K140: =H140-F140 -> 10.50 | L140: =K140/F140 -> 3% | M140: Neutral | N140: 2019-05-21
A141: 64 | B141: 2016-08-02 | D141: GPPL $ | E141: Buy | F141: =169.5-12.8 -> 156.7 | H141: 77.00 | I141: 198-200 | J141: Loss of Rs.79.7/- | K141: -79.70 | L141: -50.86% | M141: Unsuccessful | N141: 2019-02-26
A142: 65 | B142: 2016-08-04 | D142: WONDERLA HOLIDAYS LTD | E142: Accu | F142: 400 | H142: 305.00 | I142: 475.00 | J142: Loss of Rs.95/- | K142: -95.00 | L142: -23.75% | M142: Unsuccessful | N142: 2019-05-21
A143: 66 | B143: 2016-08-11 | D143: CAMLINFINE | E143: Accu | F143: 86.50 | H143: 130 | I143: 130.00 | J143: Profit of Rs.43.50/- | K143: 43.50 | L143: 50.29% | M143: Successful | N143: 2017-12-22
A144: 67 | B144: 2016-08-18 | D144: GRANULES | E144: Accu | F144: 133.5 | H144: 126.50 | I144: 178.00 | J144: Exit | K144: -7.00 | L144: -5.24% | M144: Unsuccessful | N144: 2016-09-02
A145: 68 | B145: 2016-08-31 | D145: VA TECH WABAG | E145: Accu | F145: 560.00 | H145: 725 | I145: 725.00 | J145: Target Achieved | K145: 165.00 | L145: 29.46% | M145: Successful | N145: 2016-03-27
A146: 69 | B146: 2016-09-01 | D146: SKIPPER LIMITED | E146: Accu | F146: 160.50 | H146: 210 | I146: 210.00 | J146: Target Achieved | K146: 49.50 | L146: 30.84% | M146: Successful | N146: 2017-05-16
A147: 70 | B147: 2016-10-03 | D147: IFBIND | E147: Accu | F147: 430.00 | H147: 596 | I147: 575.00 | J147: Profit of Rs.166/- | K147: 166.00 | L147: 38.60% | M147: Successful | N147: 2017-02-03
A148: 71 | B148: 2016-10-14 | D148: ASIANTILES | E148: Accu | F148: 280.00 | H148: 345 | I148: 345.00 | J148: Target Achieved | K148: =H148-F148 -> 65.00 | L148: =K148/F148 -> 23.21% | M148: Successful | N148: 2017-03-20
A149: 72 | B149: 2016-10-14 | D149: DEEPIND | E149: Accu | F149: 245.00 | H149: 325.5 | I149: 330.00 | J149: Profit of Rs.80.5/- | K149: 80.50 | L149: =K149/F149 -> 32.86% | M149: Successful | N149: 2017-02-03
A150: 73 | B150: 2016-10-17 | D150: DCBBANK | E150: Accu | F150: 125.00 | H150: 160 | I150: 160.00 | J150: Target Achieved | K150: 35.00 | L150: 28.00% | M150: Successful | N150: 2017-03-09
A151: 74 | B151: 2016-10-17 | D151: ORIENTREF | E151: Accu | F151: 114.00 | H151: 145 | I151: 145.00 | J151: Target Achieved | K151: 31.00 | L151: =K151/F151 -> 27.19% | M151: Successful | N151: 2017-05-04
A152: 75 | B152: 2016-10-17 | D152: GANECOS | E152: Accu | F152: 212.00 | H152: 280 | I152: 276.00 | J152: Profit of Rs.68/- | K152: 68.00 | L152: =K152/F152 -> 32.08% | M152: Successful | N152: 2017-05-03
A153: 76 | B153: 2016-11-04 | D153: NBCC | E153: Accu | F153: 155.00 | H153: 210 | I153: 210.00 | J153: Profit of Rs.55/- | K153: 55.00 | L153: =K153/F153 -> 35.48% | M153: Successful | N153: 2017-07-28
A154: 77 | B154: 2016-12-06 | D154: PRECAM | E154: Accu | F154: 150.5 | H154: 72.50 | I154: 174.00 | J154: Loss of Rs.78/- | K154: -78.00 | L154: -51.83% | M154: Unsuccessful | N154: 2018-08-21
A155: 78 | B155: 2016-12-08 | D155: INFRATEL | E155: Accu | F155: 380.00 | H155: 478 | I155: 468.00 | J155: Target Achieved | K155: =H155-F155 -> 98.00 | L155: =K155/F155 -> 25.79% | M155: Successful | N155: 2017-10-17
A156: 79 | B156: 2016-12-30 | D156: GODREJPROP | E156: Accu | F156: 305.00 | H156: 375 | I156: 375.00 | J156: Target Achieved | K156: =H156-F156 -> 70.00 | L156: =K156/F156 -> 22.95% | M156: Successful | N156: 2017-02-02
A157: 80 | B157: 2017-01-04 | D157: DEEPAKNTR | E157: Accu | F157: 99.50 | H157: 158 | I157: 158.00 | J157: Target Achieved | K157: =H157-F157 -> 58.50 | L157: =K157/F157 -> 58.79% | M157: Successful | N157: 2017-06-12
A158: 81 | B158: 2017-01-04 | D158: DEEPAKNTR | E158: Accu | F158: 99.50 | H158: 158 | I158: 158.00 | J158: Target Achieved | K158: 58.50 | L158: 58.79% | M158: Successful | N158: 2017-06-12
A159: 82 | B159: 2017-02-20 | D159: RECLTD | E159: Accu | F159: 140.50 | H159: 220 | I159: 220.00 | J159: Target Achieved | K159: =H159-F159 -> 79.50 | L159: =K159/F159 -> 56.58% | M159: Successful | N159: 2017-05-09
A160: 83 | B160: 2017-02-20 | D160: SUBROS | E160: Accu | F160: 202.50 | H160: 234 | I160: 234.00 | J160: Target Achieved | K160: 31.50 | L160: 15.56% | M160: Successful | N160: 2017-04-11
A161: 84 | B161: 2017-03-24 | D161: VRLLOG | E161: Accu | F161: 300.50 | H161: 417.5 | I161: 420.00 | J161: Profit of Rs.117/- | K161: =H161-F161 -> 117.00 | L161: =K161/F161 -> 38.94% | M161: Successful | N161: 2017-12-01
A162: 85 | B162: 2017-03-24 | D162: FIEMIND | E162: Accu | F162: 850.00 | H162: 1042.5 | I162: 1023.00 | J162: Profit of Rs 192.50/- | K162: 192.50 | L162: 22.65% | M162: Successful | N162: 2017-04-05
A163: 86 | B163: 2017-04-05 | D163: RATNAMANI | E163: Accu | F163: 785.00 | H163: 930 | I163: 920.00 | J163: Profit of Rs.145/- | K163: =H163-F163 -> 145.00 | L163: =K163/F163 -> 18.47% | M163: Successful | N163: 2017-08-29
A164: 87 | B164: 2017-04-06 | D164: ZEEMEDIA | E164: Accu | F164: 40 | H164: 13.10 | I164: 60.00 | J164: Loss of Rs.26.9/- | K164: -26.90 | L164: -67.25% | M164: Unsuccessful | N164: 2018-02-07
A165: 88 | B165: 2017-04-12 | D165: DABUR | E165: Accu | F165: 289.50 | H165: 354 | I165: 360.00 | J165: Profit of Rs.64.5/- | K165: =H165-F165 -> 64.50 | L165: =K165/F165 -> 22.28% | M165: Successful | N165: 2017-11-01
A166: 89 | B166: 2017-04-20 | D166: KPRMILL | E166: Accu | F166: 700.00 | H166: 840 | I166: 840.00 | J166: Profit of Rs.140/- | K166: 140.00 | L166: 20.00% | M166: Successful | N166: 2017-06-07
A167: 90 | B167: 2017-06-01 | D167: ESSELPACK | E167: Accu | F167: 130.00 | H167: 144.25 | I167: 170.00 | J167: Profit of Rs.14.25/- | K167: 14.25 | L167: 10.96% | M167: Successful | N167: 2019-07-29
A168: 91 | B168: 2017-06-15 | D168: KEI | E168: Accu | F168: 214.50 | H168: 262 | I168: 262.00 | J168: Profit of Rs.47.5/- | K168: 47.50 | L168: 22.14% | M168: Successful | N168: 2017-08-30
A169: 92 | B169: 2017-07-17 | D169: MAYURUNIQ | E169: Accu | F169: 370.00 | H169: 447.5 | I169: 450.00 | J169: Target Achieved | K169: 77.50 | L169: 20.95% | M169: Successful | N169: 2017-10-27
A170: 93 | B170: 2017-07-27 | D170: RAMCOCEM | E170: Accu | F170: 657.50 | H170: 825 | I170: 820.00 | J170: Target Achieved | K170: 167.50 | L170: 25.48% | M170: Successful | N170: 2017-12-21
A171: 94 | B171: 2017-08-17 | D171: FINPIPE | E171: Accu | F171: 605.00 | H171: 750 | I171: 750.00 | J171: Profit of Rs.145/- | K171: 145.00 | L171: 23.97% | M171: Successful | N171: 2017-10-19
A172: 95 | B172: 2017-09-01 | D172: SHK | E172: Accu | F172: 255 | H172: 217.25 | I172: 320.00 | J172: Loss of Rs.37.75/- | K172: -37.75 | L172: -15% | M172: Unsuccessful | N172: 2019-07-15
A173: 96 | B173: 2017-09-19 | D173: SKIPPER | E173: Accu | F173: 215.00 | H173: 258 | I173: 258.00 | J173: Target Achieved | K173: 43.00 | L173: 20.00% | M173: Successful | N173: 2017-11-01
A174: 97 | B174: 2017-09-19 | D174: SKIPPER | E174: Accu | F174: 215.00 | H174: 258 | I174: 258.00 | J174: Target Achieved | K174: 43.00 | L174: 20.00% | M174: Successful | N174: 2017-11-01
A175: 98 | B175: 2017-09-20 | D175: CAMLINFINE$ | E175: Accu | F175: 75.00 | H175: 90 | I175: 90.00 | J175: Profit of Rs.15.00/- | K175: =H175-F175 -> 15.00 | L175: =K175/F175 -> 20.00% | M175: Successful | N175: 2017-10-11
A176: 99 | B176: 2017-10-03 | D176: GNA | E176: Accu | F176: 315.00 | H176: 392 | I176: 384.00 | J176: Profit of Rs.77/- | K176: 77.00 | L176: 24.44% | M176: Successful | N176: 2017-10-09
A177: 100 | B177: 2017-10-05 | D177: NOCIL | E177: Accu | F177: 145.00 | H177: 179 | I177: 180.00 | J177: Profit of Rs.34/- | K177: 34.00 | L177: 23.45% | M177: Successful | N177: 2017-10-17
A178: 101 | B178: 2017-10-06 | D178: CENTURYPLY | E178: Accu | F178: 256.00 | H178: 323 | I178: 320.00 | J178: Target Achieved | K178: 67.00 | L178: 26.17% | M178: Successful | N178: 2017-11-28
A179: 102 | B179: 2017-10-09 | D179: EIHOTEL | E179: Accu | F179: 137.50 | H179: 184 | I179: 183.00 | J179: Profit of Rs.46.5/- | K179: 46.50 | L179: 33.82% | M179: Successful | N179: 2018-01-08
A180: 103 | B180: 2017-10-10 | D180: NRBBEARING | E180: Accu | F180: 125.50 | H180: 158 | I180: 155.00 | J180: Profit of Rs.32.5/- | K180: 32.50 | L180: 25.90% | M180: Successful | N180: 2017-11-28
A181: 104 | B181: 2017-10-10 | D181: BOROSIL | E181: Accu | F181: 895.00 | H181: 1122.5 | I181: 1078.00 | J181: Profit of Rs.227.5/- | K181: 227.50 | L181: 25.42% | M181: Successful | N181: 2018-01-17
A182: 105 | B182: 2017-10-12 | D182: CYIENT | E182: Accu | F182: 525.00 | H182: 629 | I182: 629.00 | J182: Target Achieved | K182: 104.00 | L182: 19.81% | M182: Successful | N182: 2018-01-19
A183: 106 | B183: 2017-11-07 | D183: HATSUN | E183: Accu | F183: 740.00 | H183: 892.5 | I183: 900.00 | J183: Profit of Rs.152.5/- | K183: =H183-F183 -> 152.50 | L183: =K183/F183 -> 20.61% | M183: Successful | N183: 2017-11-13
A184: 107 | B184: 2017-12-04 | D184: SANGHIIND | E184: Accu | F184: 118.50 | H184: 143.5 | I184: 145.00 | J184: Profit of Rs.25/- | K184: =H184-F184 -> 25.00 | L184: =K184/F184 -> 21.10% | M184: Successful | N184: 2017-12-28
A185: 108 | B185: 2017-12-21 | D185: KAJARIACER | E185: Accu | F185: 715 | H185: 500.00 | I185: 872.00 | J185: Loss of Rs.215/- | K185: =H185-F185 -> -215.00 | L185: =K185/F185 -> -30.07% | M185: Unsuccessful | N185: 2019-07-24
A186: 109 | B186: 2017-12-29 | D186: GNA | E186: Accu | F186: 435.00 | H186: 542.5 | I186: 539.00 | J186: Target Achieved | K186: 107.50 | L186: 24.71% | M186: Successful | N186: 2018-04-16
A187: 110 | B187: 2017-12-29 | D187: ZENSARTECH | E187: Accu | F187: 885.00 | H187: 1090 | I187: 1084.00 | J187: Target Achieved | K187: 205.00 | L187: 23.16% | M187: Successful | N187: 2018-04-23
A188: 111 | B188: 2018-04-02 | D188: EVERESTIND | E188: Accu | F188: 478.50 | H188: 442 | I188: 613.00 | J188: Loss of Rs.36.50 /- | K188: =H188-F188 -> -36.50 | L188: =K188/F188 -> -7.63% | M188: Unsuccessful | N188: 2019-10-24
A189: 112 | B189: 2018-04-04 | D189: GPPL$ | E189: Accu | F189: =141.5-7.3 -> 134.2 | H189: 77.00 | I189: 180.00 | J189: Loss of Rs.57.2/- | K189: =H189-F189 -> -57.20 | L189: =K189/F189 -> -42.62% | M189: Unsuccessful | N189: 2019-02-26
A190: 113 | B190: 2018-04-19 | D190: MANPASAND | E190: Accu | F190: 430 | H190: 220.00 | I190: 537.00 | J190: Loss of Rs.210/- | K190: =H190-F190 -> -210.00 | L190: =K190/F190 -> -48.84% | M190: Unsuccessful | N190: 2018-06-01
A191: 114 | B191: 2018-04-30 | D191: HEIDELBERG | E191: Accu | F191: 153.5 | H191: 196 | I191: 196.00 | J191: Profit of Rs.42.50/- | K191: =H191-F191 -> 42.50 | L191: =K191/F191 -> 27.69% | M191: Successful | N191: 2019-05-20
A192: 115 | B192: 2018-07-25 | D192: ZEEMEDIA | E192: Accu | F192: 27.5 | H192: 13.10 | I192: 60.00 | J192: Loss of Rs.14.40/- | K192: -14.40 | L192: -52.36% | M192: Unsuccessful | N192: 2018-02-07
A193: 116 | B193: 2018-08-06 | D193: GABRIEL | E193: Accu | F193: 148.5 | H193: 102 | I193: 182.00 | J193: Loss of Rs.46.50/- | K193: =H193-F193 -> -46.50 | L193: =K193/F193 -> -31.31% | M193: Unsuccessful | N193: 2019-07-15
A194: 117 | B194: 2018-08-23 | D194: INDIANHUME | E194: Accu | F194: 285 | H194: 355 | I194: 364.00 | J194: Profit of Rs.70/- | K194: 70.00 | L194: 24.56% | M194: Successful | N194: 2018-12-21
A195: 118 | B195: 2018-08-29 | D195: GRINDWELL | E195: Accu | F195: 525 | H195: 585 | I195: 635.00 | J195: Profit of Rs.60- | K195: =H195-F195 -> 60.00 | L195: =K195/F195 -> 11.43% | M195: Successful | N195: 2019-07-16
A196: 119 | B196: 2018-10-22 | D196: FINPIPE | E196: Accu | F196: 475 | H196: 574 | I196: 570.00 | J196: Target Achieved | K196: 99.00 | L196: 20.84% | M196: Successful | N196: 2018-10-30
A197: 120 | B197: 2018-10-24 | D197: GULFOILLUB | E197: Accu | F197: 707.5 | H197: 872 | I197: 872.00 | J197: Target Achieved | K197: 164.50 | L197: 23.25% | M197: Successful | N197: 2019-01-17
A198: 121 | B198: 2018-10-25 | D198: DBCORP | E198: Accu | F198: 162 | H198: 204 | I198: 209.00 | J198: Profit of Rs.42/- | K198: 42.00 | L198: 25.93% | M198: Successful | N198: 2019-03-15
A199: 122 | B199: 2018-10-26 | D199: RITES | E199: Accu | F199: 240 | H199: 297 | I199: 297.00 | J199: Target Achieved | K199: 57.00 | L199: 23.75% | M199: Successful | N199: 2018-11-13
A200: 123 | B200: 2018-12-05 | D200: BRIGADE | E200: Accu | F200: 202.5 | H200: 255 | I200: 252.00 | J200: Target Achieved | K200: 52.50 | L200: 25.93% | M200: Successful | N200: 2019-03-18 | R200: V
A201: 124 | B201: 2018-12-31 | D201: JKCEMENT | E201: Accu | F201: 710 | H201: 866 | I201: 866.00 | J201: Target Achieved | K201: 156.00 | L201: 21.97% | M201: Successful | N201: 2019-03-29 | R201: V
A202: 125 | B202: 2019-02-26 | D202: MARICO | E202: Accu | F202: 337.25 | H202: 398.5 | I202: 411.00 | J202: Profit of Rs.61.25/- | K202: 61.25 | L202: 18.16% | M202: Successful | N202: 2019-10-22 | R202: V
A203: 126 | B203: 2019-04-04 | D203: ITDCEM | E203: Accu | F203: 130 | H203: 65 | I203: 158.00 | J203: Loss of Rs.65 /- | K203: -65.00 | L203: -50.00% | M203: Unsuccessful | N203: 2019-09-18 | R203: K
A204: 127 | B204: 2017-10-09 | D204: RECLTD | E204: Accu | F204: 141.5 | H204: 183.5 | I204: 210.00 | J204: Profit of Rs.42/- | K204: 42.00 | L204: 29.68% | M204: Successful | N204: 2017-11-03 | R204: K
A205: 128 | B205: 2017-12-05 | D205: ALLCARGO | E205: Accu | F205: 172.00 | H205: 155.25 | I205: 230.00 | J205: Loss of Rs.16.75/- | K205: -16.75 | L205: -9.74% | M205: Unsuccessful | N205: 2019-11-18 | R205: K
A206: 129 | B206: 2018-10-25 | D206: GODREJCP | E206: Accu | F206: 698.5 | H206: 890 | I206: 890.00 | J206: Profit of Rs.191.50/- | K206: 191.50 | L206: 27.42% | M206: Successful | N206: 2021-05-12 | R206: V
A207: 130 | B207: 2017-05-22 | D207: GREAVESCOT | E207: Accu | F207: 127.6 | H207: 138 | I207: 190.00 | J207: Profit of Rs.10.40 | K207: 10.40 | L207: 8.15% | M207: Successful | N207: 2019-11-05 | R207: K
A208: 131 | B208: 2018-02-27 | D208: MOLDTKPAC | E208: Accu | F208: 317 | H208: 382.5 | I208: 398.00 | J208: Profit of Rs.65.5 | K208: 65.50 | L208: 20.66% | M208: Successful | N208: 2021-02-11 | R208: K
A209: 132 | B209: 2018-03-05 | D209: LICHSGFIN | E209: Accu | F209: =510-14.4 -> 495.60 | H209: 350 | I209: 672.00 | J209: Loss of Rs.145.60/- | K209: -145.60 | L209: -29.38% | M209: Unsuccessful | N209: 2020-02-26 | R209: V
A210: 133 | B210: 2018-05-17 | D210: PHILIPCARB | E210: Accu | F210: 230.30 | H210: 102.5 | I210: 348.00 | J210: Loss of Rs.127.80/- | K210: -127.80 | L210: -55.49% | M210: Unsuccessful | N210: 2020-03-06 | R210: V
A211: 134 | B211: 2018-06-07 | D211: KEC | E211: Accu | F211: =342.5-5.1 -> 337.4 | H211: 412.5 | I211: 439.00 | J211: Profit of Rs.75.10 | K211: 75.10 | L211: 22.26% | M211: Successful | N211: 2021-02-03 | R211: K
A212: 135 | B212: 2018-07-04 | D212: ASHOKLEY | E212: Accu | F212: =127.5-5.53 -> 121.97 | H212: 122.50 | I212: 170.00 | J212: Profit of Rs.0.53/- | K212: 0.53 | L212: 0% | M212: Neutral | N212: 2021-08-23 | R212: V
A213: 136 | B213: 2018-07-13 | D213: FCONSUMER | E213: Accu | F213: 46.50 | H213: 17 | I213: 59.00 | J213: Loss of Rs.29.50/- | K213: =H213-F213 -> -29.50 | L213: =K213/F213 -> -63.44% | M213: Unsuccessful | N213: 2020-02-26 | R213: V
A214: 137 | B214: 2018-10-23 | D214: JKPAPER | E214: Accu | F214: 156.5 | H214: 207.5 | I214: 191.00 | J214: Target Achieved | K214: 51.00 | L214: 32.59% | M214: Successful | N214: 2021-06-22 | R214: V
A215: 138 | B215: 2018-12-05 | D215: CCL | E215: Accu | F215: 259.5 | H215: 320 | I215: 320.00 | J215: Target Achieved | K215: 60.50 | L215: 23.31% | M215: Successful | N215: 2021-05-07 | R215: V
A216: 139 | B216: 2018-12-05 | D216: VARROC | E216: Accu | F216: 715 | H216: 445 | I216: 840.00 | J216: Loss of Rs.270/- | K216: -270.00 | L216: -37.76% | M216: Unsuccessful | N216: 2019-12-01 | R216: V
A217: 140 | B217: 2019-01-04 | D217: MGL | E217: Accu | F217: 875 | H217: 1165 | I217: 1185.00 | J217: Profit of Rs.290/- | K217: 290.00 | L217: 33.14% | M217: Successful | N217: 2020-01-17 | R217: V
A218: 141 | B218: 2019-04-04 | D218: COCHINSHIP | E218: Accu | F218: =387-14.63 -> 372.37 | H218: 490 | I218: 490.00 | J218: Target Achieved | K218: 117.63 | L218: 31.59% | M218: Successful | N218: 2020-01-20 | R218: V
A219: 142 | B219: 2019-04-23 | D219: MAHINDCIE | E219: Buy | F219: 220 | H219: 127.5 | I219: 284.00 | J219: Loss of Rs.92.50/- | K219: -92.50 | L219: -42.05% | M219: Unsuccessful | N219: 2020-03-06 | R219: V
A220: 143 | B220: 2019-06-06 | D220: RADICO | E220: Buy | F220: 332.8 | H220: 405 | I220: 419.00 | J220: Profit of Rs.72.20/- | K220: 72.20 | L220: 21.69% | M220: Successful | N220: 2020-01-30 | R220: K
... 39 more rows
